Workbook

Sheet Impressum

Sheet Tool
D3: Identity of the farm: | E3: Mr example | N3: Scenario | Q3: Gestating sow red clover silage 1 kg
D4: Farmer's name: | E4: Guido | N4: Feeding phase | Q4: Finisher
D5: Date: | E5: 2020-12-10 | I5: =TEXT(E5,"aaaammjj") -> 20201210 | N5: Category of animal | Q5: =_xlfn.IFNA(VLOOKUP($Q$10,Requirement,4,FALSE),) -> 0
D6: Objectives(Kg) | E6: 100 | N6: Weight/age | Q6: =_xlfn.IFNA(VLOOKUP($Q$10,Requirement,5,FALSE),) -> 0
D7: Number of phasis of feeds | E7: 2
D8: Stage of growth | E8: 35
D9: Ration quantity | E9: 500 | F9: Kg (Grinder capacity)
Q10: =Q3&"_"&Q4 -> Gestating sow red clover silage 1 kg_Finisher
D11: Feedstuffs | E11: Kg | F11: % | G11: ME growing pig (MJ/Kg) | H11: NE growing pig (MJ/Kg) | I11: ME pig adult (MJ/Kg) | J11: NE pig adult (MJ/Kg) | K11: CP % raw | L11: Fiber % raw | M11: FAT % raw | N11: LYS % raw | O11: THR % raw | P11: MET % Raw | Q11: MET+CYS % raw | R11: TRY % raw | S11: DIS LYS pig % | T11: DIS THR pig % | U11: DIS MET pig % | V11: DIS MET+CYS pig % | W11: DIS TRY PIG% | X11: Ca % Raw | Y11: P % Raw | Z11: Na % Raw | AB11: Optimization levels | AC11: =CONCATENATE("Inclusing Levels ",Q5) -> Inclusing Levels 0 | AD11: TAKE CARE OF | AF11: Feedstuffs cost (€/T) | AG11: Ration costs (€) | AJ11: C16:0 % Fat | AK11: C18:0 % Fat | AL11: C18:1 % Fat (Oleic) | AM11: C18:2 % Fat (linoleic) | AN11: C18:3 % Fat (Alpha linolenic) | AO11: Mg g/kg Raw | AP11: K g/kg as fed
C12: 1 | E12: =_xlfn.IFNA($E$9*F12/100,0) -> 0.00 | F12: 0.00 | G12: =_xlfn.IFNA(VLOOKUP(D12,Feedstuffs,29,FALSE),0) -> 0.00 | H12: =_xlfn.IFNA(VLOOKUP(D12,Feedstuffs,31,FALSE),0) -> 0.00 | I12: =_xlfn.IFNA(VLOOKUP(D12,Feedstuffs,33,FALSE),0) -> 0.00 | J12: =_xlfn.IFNA(VLOOKUP(D12,Feedstuffs,35,FALSE),0) -> 0.00 | K12: =_xlfn.IFNA(VLOOKUP(D12,Feedstuffs,5,FALSE),0) -> 0.00 | L12: =_xlfn.IFNA(VLOOKUP(D12,Feedstuffs,6,),0) -> 0.00 | M12: =_xlfn.IFNA(VLOOKUP(D12,Feedstuffs,7,FALSE),0) -> 0.00 | N12: =_xlfn.IFNA(VLOOKUP(D12,Feedstuffs,9,FALSE),0) -> 0.00 | O12: =_xlfn.IFNA(VLOOKUP(D12,Feedstuffs,10,FALSE),0) -> 0.00 | P12: =_xlfn.IFNA(VLOOKUP(D12,Feedstuffs,11,FALSE),0) -> 0.00 | Q12: =_xlfn.IFNA(VLOOKUP(D12,Feedstuffs,12,FALSE),0) -> 0.00 | R12: =_xlfn.IFNA(VLOOKUP(D12,Feedstuffs,13,FALSE),0) -> 0.00 | S12: =_xlfn.IFNA(VLOOKUP(D12,Feedstuffs,39,FALSE),0) -> 0.00 | T12: =_xlfn.IFNA(VLOOKUP(D12,Feedstuffs,40,FALSE),0) -> 0.00 | U12: =_xlfn.IFNA(VLOOKUP(D12,Feedstuffs,41,FALSE),0) -> 0.00 | V12: =_xlfn.IFNA(VLOOKUP(D12,Feedstuffs,43,FALSE),0) -> 0.00 | W12: =_xlfn.IFNA(VLOOKUP(D12,Feedstuffs,44,FALSE),0) -> 0.00 | X12: =_xlfn.IFNA(VLOOKUP(D12,Feedstuffs,20,FALSE),0) -> 0.00 | Y12: =_xlfn.IFNA(VLOOKUP(D12,Feedstuffs,21,FALSE),0) -> 0.00 | Z12: =_xlfn.IFNA(VLOOKUP(D12,Feedstuffs,22,FALSE),0) -> 0.00 | AB12: 0.00 | AC12: =_xlfn.IFNA(IF($Q$5="Piglets",(VLOOKUP(D12,Feedstuffs,37,FALSE)),IF($Q$5="Pigs and sows",(VLOOKUP(D12,Feedstuffs,38,FALSE)))),"") -> FALSE | AD12: =IF(D12<>"",IF($E$11="%",IF(E12>AC12,"SUP",IF(E12=AC12,"MAX","OK")),IF(F12>AC12,"HIGH",IF(F12=AC12,"MAX","OK"))),"") ->  | AF12: 0 | AG12: =E12*AF12/1000 -> 0 | AH12: =F12*AF12/$AG$27 ->  | AJ12: =_xlfn.IFNA(VLOOKUP(D12,Feedstuffs,15,FALSE),0) -> 0.00 | AK12: =_xlfn.IFNA(VLOOKUP(D12,Feedstuffs,16,FALSE),0) -> 0.00 | AL12: =_xlfn.IFNA(VLOOKUP(D12,Feedstuffs,17,FALSE),0) -> 0.00 | AM12: =_xlfn.IFNA(VLOOKUP(D12,Feedstuffs,18,FALSE),0) -> 0.00 | AN12: =_xlfn.IFNA(VLOOKUP(D12,Feedstuffs,19,FALSE),0) -> 0.00 | AO12: =_xlfn.IFNA(VLOOKUP(D12,Feedstuffs,24,FALSE),0) -> 0.00 | AP12: =_xlfn.IFNA(VLOOKUP(D12,Feedstuffs,25,FALSE),0) -> 0.00
C13: 2 | E13: =_xlfn.IFNA($E$9*F13/100,0) -> 0.00 | F13: 0.00 | G13: 0.00 | H13: 0.00 | I13: 0.00 | J13: 0.00 | K13: 0.00 | L13: 0.00 | M13: 0.00 | N13: 0.00 | O13: 0.00 | P13: 0.00 | Q13: 0.00 | R13: 0.00 | S13: 0.00 | T13: 0.00 | U13: 0.00 | V13: 0.00 | W13: 0.00 | X13: =_xlfn.IFNA(VLOOKUP(D13,Feedstuffs,20,FALSE),0) -> 0.00 | Y13: 0.00 | Z13: =_xlfn.IFNA(VLOOKUP(D13,Feedstuffs,22,FALSE),0) -> 0.00 | AB13: 0.00 | AC13: =_xlfn.IFNA(IF($Q$5="Piglets",(VLOOKUP(D13,Feedstuffs,37,FALSE)),IF($Q$5="Pigs and sows",(VLOOKUP(D13,Feedstuffs,38,FALSE)))),"") -> FALSE | AD13: =IF(D13<>"",IF($E$11="%",IF(E13>AC13,"SUP",IF(E13=AC13,"MAX","OK")),IF(F13>AC13,"HIGH",IF(F13=AC13,"MAX","OK"))),"") ->  | AF13: 0 | AG13: =E13*AF13/1000 -> 0 | AJ13: 0.00 | AK13: 0.00 | AL13: 0.00 | AM13: 0.00 | AN13: 0.00 | AO13: 0.00 | AP13: 0.00
C14: 3 | E14: 0.00 | F14: 0.00 | G14: 0.00 | H14: 0.00 | I14: 0.00 | J14: 0.00 | K14: 0.00 | L14: 0.00 | M14: 0.00 | N14: 0.00 | O14: 0.00 | P14: 0.00 | Q14: 0.00 | R14: 0.00 | S14: 0.00 | T14: 0.00 | U14: 0.00 | V14: 0.00 | W14: 0.00 | X14: 0.00 | Y14: 0.00 | Z14: 0.00 | AB14: 0.00 | AC14: FALSE | AF14: 0 | AG14: 0 | AJ14: 0.00 | AK14: 0.00 | AL14: 0.00 | AM14: 0.00 | AN14: 0.00 | AO14: 0.00 | AP14: 0.00
C15: 4 | E15: 0.00 | F15: 0.00 | G15: 0.00 | H15: 0.00 | I15: 0.00 | J15: 0.00 | K15: 0.00 | L15: 0.00 | M15: 0.00 | N15: 0.00 | O15: 0.00 | P15: 0.00 | Q15: 0.00 | R15: 0.00 | S15: 0.00 | T15: 0.00 | U15: 0.00 | V15: 0.00 | W15: 0.00 | X15: 0.00 | Y15: 0.00 | Z15: 0.00 | AB15: 0.00 | AC15: FALSE | AF15: 0 | AG15: 0 | AJ15: 0.00 | AK15: 0.00 | AL15: 0.00 | AM15: 0.00 | AN15: 0.00 | AO15: 0.00 | AP15: 0.00
C16: 5 | E16: 0.00 | F16: 0.00 | G16: 0.00 | H16: 0.00 | I16: 0.00 | J16: 0.00 | K16: 0.00 | L16: 0.00 | M16: 0.00 | N16: 0.00 | O16: 0.00 | P16: 0.00 | Q16: 0.00 | R16: 0.00 | S16: 0.00 | T16: 0.00 | U16: 0.00 | V16: 0.00 | W16: 0.00 | X16: 0.00 | Y16: 0.00 | Z16: 0.00 | AB16: 0.00 | AC16: FALSE | AF16: 0 | AG16: 0 | AJ16: 0.00 | AK16: 0.00 | AL16: 0.00 | AM16: 0.00 | AN16: 0.00 | AO16: 0.00 | AP16: 0.00
C17: 6 | E17: 0.00 | F17: 0.00 | G17: 0.00 | H17: 0.00 | I17: 0.00 | J17: 0.00 | K17: 0.00 | L17: 0.00 | M17: 0.00 | N17: 0.00 | O17: 0.00 | P17: 0.00 | Q17: 0.00 | R17: 0.00 | S17: 0.00 | T17: 0.00 | U17: 0.00 | V17: 0.00 | W17: 0.00 | X17: 0.00 | Y17: 0.00 | Z17: 0.00 | AB17: 0.00 | AC17: FALSE | AF17: 0 | AG17: 0 | AJ17: 0.00 | AK17: 0.00 | AL17: 0.00 | AM17: 0.00 | AN17: 0.00 | AO17: 0.00 | AP17: 0.00
C18: 7 | E18: 0.00 | F18: 0.00 | G18: 0.00 | H18: 0.00 | I18: 0.00 | J18: 0.00 | K18: 0.00 | L18: 0.00 | M18: 0.00 | N18: 0.00 | O18: 0.00 | P18: 0.00 | Q18: 0.00 | R18: 0.00 | S18: 0.00 | T18: 0.00 | U18: 0.00 | V18: 0.00 | W18: 0.00 | X18: 0.00 | Y18: 0.00 | Z18: 0.00 | AB18: 0.00 | AC18: FALSE | AF18: 0 | AG18: 0 | AJ18: 0.00 | AK18: 0.00 | AL18: 0.00 | AM18: 0.00 | AN18: 0.00 | AO18: 0.00 | AP18: 0.00
C19: 8 | E19: 0.00 | F19: 0.00 | G19: 0.00 | H19: 0.00 | I19: 0.00 | J19: 0.00 | K19: 0.00 | L19: 0.00 | M19: 0.00 | N19: 0.00 | O19: 0.00 | P19: 0.00 | Q19: 0.00 | R19: 0.00 | S19: 0.00 | T19: 0.00 | U19: 0.00 | V19: 0.00 | W19: 0.00 | X19: 0.00 | Y19: 0.00 | Z19: 0.00 | AB19: 0.00 | AC19: FALSE | AF19: 0 | AG19: 0 | AJ19: 0.00 | AK19: 0.00 | AL19: 0.00 | AM19: 0.00 | AN19: 0.00 | AO19: 0.00 | AP19: 0.00
C20: 9 | E20: 0.00 | F20: 0.00 | G20: 0.00 | H20: 0.00 | I20: 0.00 | J20: 0.00 | K20: 0.00 | L20: 0.00 | M20: 0.00 | N20: 0.00 | O20: 0.00 | P20: 0.00 | Q20: 0.00 | R20: 0.00 | S20: 0.00 | T20: 0.00 | U20: 0.00 | V20: =_xlfn.IFNA(VLOOKUP(D20,Feedstuffs,43,FALSE),0) -> 0.00 | W20: 0.00 | X20: 0.00 | Y20: 0.00 | Z20: 0.00 | AB20: 0.00 | AC20: FALSE | AF20: 0 | AG20: 0 | AJ20: 0.00 | AK20: 0.00 | AL20: 0.00 | AM20: 0.00 | AN20: 0.00 | AO20: 0.00 | AP20: 0.00
C21: 10 | E21: 0.00 | F21: 0.00 | G21: =_xlfn.IFNA(VLOOKUP(D21,Feedstuffs,29,FALSE),0) -> 0.00 | H21: =_xlfn.IFNA(VLOOKUP(D21,Feedstuffs,31,FALSE),0) -> 0.00 | I21: =_xlfn.IFNA(VLOOKUP(D21,Feedstuffs,33,FALSE),0) -> 0.00 | J21: =_xlfn.IFNA(VLOOKUP(D21,Feedstuffs,35,FALSE),0) -> 0.00 | K21: =_xlfn.IFNA(VLOOKUP(D21,Feedstuffs,5,FALSE),0) -> 0.00 | L21: =_xlfn.IFNA(VLOOKUP(D21,Feedstuffs,6,),0) -> 0.00 | M21: =_xlfn.IFNA(VLOOKUP(D21,Feedstuffs,7,FALSE),0) -> 0.00 | N21: =_xlfn.IFNA(VLOOKUP(D21,Feedstuffs,9,FALSE),0) -> 0.00 | O21: =_xlfn.IFNA(VLOOKUP(D21,Feedstuffs,10,FALSE),0) -> 0.00 | P21: =_xlfn.IFNA(VLOOKUP(D21,Feedstuffs,11,FALSE),0) -> 0.00 | Q21: =_xlfn.IFNA(VLOOKUP(D21,Feedstuffs,12,FALSE),0) -> 0.00 | R21: =_xlfn.IFNA(VLOOKUP(D21,Feedstuffs,13,FALSE),0) -> 0.00 | S21: =_xlfn.IFNA(VLOOKUP(D21,Feedstuffs,39,FALSE),0) -> 0.00 | T21: =_xlfn.IFNA(VLOOKUP(D21,Feedstuffs,40,FALSE),0) -> 0.00 | U21: =_xlfn.IFNA(VLOOKUP(D21,Feedstuffs,41,FALSE),0) -> 0.00 | V21: =_xlfn.IFNA(VLOOKUP(D21,Feedstuffs,43,FALSE),0) -> 0.00 | W21: =_xlfn.IFNA(VLOOKUP(D21,Feedstuffs,44,FALSE),0) -> 0.00 | X21: =_xlfn.IFNA(VLOOKUP(D21,Feedstuffs,20,FALSE),0) -> 0.00 | Y21: =_xlfn.IFNA(VLOOKUP(D21,Feedstuffs,21,FALSE),0) -> 0.00 | Z21: =_xlfn.IFNA(VLOOKUP(D21,Feedstuffs,22,FALSE),0) -> 0.00 | AB21: 0.00 | AC21: FALSE | AF21: 0 | AG21: 0 | AJ21: =_xlfn.IFNA(VLOOKUP(D21,Feedstuffs,15,FALSE),0) -> 0.00 | AK21: =_xlfn.IFNA(VLOOKUP(D21,Feedstuffs,16,FALSE),0) -> 0.00 | AL21: =_xlfn.IFNA(VLOOKUP(D21,Feedstuffs,17,FALSE),0) -> 0.00 | AM21: =_xlfn.IFNA(VLOOKUP(D21,Feedstuffs,18,FALSE),0) -> 0.00 | AN21: =_xlfn.IFNA(VLOOKUP(D21,Feedstuffs,19,FALSE),0) -> 0.00 | AO21: =_xlfn.IFNA(VLOOKUP(D21,Feedstuffs,24,FALSE),0) -> 0.00 | AP21: =_xlfn.IFNA(VLOOKUP(D21,Feedstuffs,25,FALSE),0) -> 0.00
C22: 11 | E22: 0.00 | F22: 0.00 | G22: 0.00 | H22: 0.00 | I22: 0.00 | J22: 0.00 | K22: 0.00 | L22: 0.00 | M22: 0.00 | N22: 0.00 | O22: 0.00 | P22: 0.00 | Q22: 0.00 | R22: 0.00 | S22: 0.00 | T22: 0.00 | U22: 0.00 | V22: 0.00 | W22: 0.00 | X22: 0.00 | Y22: 0.00 | Z22: 0.00 | AB22: 0.00 | AC22: FALSE | AF22: 0 | AG22: 0 | AJ22: 0.00 | AK22: 0.00 | AL22: 0.00 | AM22: 0.00 | AN22: 0.00 | AO22: 0.00 | AP22: 0.00
C23: 12 | E23: 0.00 | F23: 0.00 | G23: 0.00 | H23: 0.00 | I23: 0.00 | J23: 0.00 | K23: 0.00 | L23: 0.00 | M23: 0.00 | N23: 0.00 | O23: 0.00 | P23: 0.00 | Q23: 0.00 | R23: 0.00 | S23: 0.00 | T23: 0.00 | U23: 0.00 | V23: 0.00 | W23: 0.00 | X23: 0.00 | Y23: 0.00 | Z23: 0.00 | AB23: 0.00 | AC23: FALSE | AF23: 0 | AG23: 0 | AH23: =F23*AF23/$AG$27 ->  | AJ23: =_xlfn.IFNA(VLOOKUP(D23,Feedstuffs,15,FALSE),0) -> 0.00 | AK23: =_xlfn.IFNA(VLOOKUP(D23,Feedstuffs,16,FALSE),0) -> 0.00 | AL23: =_xlfn.IFNA(VLOOKUP(D23,Feedstuffs,17,FALSE),0) -> 0.00 | AM23: =_xlfn.IFNA(VLOOKUP(D23,Feedstuffs,18,FALSE),0) -> 0.00 | AN23: =_xlfn.IFNA(VLOOKUP(D23,Feedstuffs,19,FALSE),0) -> 0.00 | AO23: =_xlfn.IFNA(VLOOKUP(D23,Feedstuffs,24,FALSE),0) -> 0.00 | AP23: =_xlfn.IFNA(VLOOKUP(D23,Feedstuffs,25,FALSE),0) -> 0.00
D25: TOTAL | E25: =SUM(E12:E23) -> 0.00 | F25: =SUM(F12:F23) -> 0.00 | G25: =SUMPRODUCT($F$12:$F$23,G12:G23)/100 -> 0.00 | H25: 0.00 | I25: =SUMPRODUCT($F$12:$F$23,I12:I23)/100 -> 0.00 | J25: 0.00 | K25: 0.00 | L25: 0.00 | M25: 0.00 | N25: =SUMPRODUCT($F$12:$F$23,N12:N23)/10 -> 0.00 | O25: 0.00 | P25: 0.00 | Q25: =SUMPRODUCT($F$12:$F$23,Q12:Q23)/10 -> 0.00 | R25: 0.00 | S25: 0.00 | T25: 0.00 | U25: 0.00 | V25: 0.00 | W25: 0.00 | X25: 0.00 | Y25: 0.00 | Z25: =SUMPRODUCT($F$12:$F$23,Z12:Z23)/10 -> 0.00 | AG25: =SUM(AG12:AG23) -> 0 | AJ25: =SUMPRODUCT($F$12:$F$23,AJ12:AJ23)/100 -> 0.00 | AK25: 0.00 | AL25: 0.00 | AM25: 0.00 | AN25: 0.00 | AO25: 0.00 | AP25: 0.00
D26: Grinder capacity? | E26: =E9-E25 -> 500.00 | F26: kg
G27: ME growing pigs | H27: NE growng pigs | I27: ME adult pigs | J27: NE adult pigs | K27: CP % max | L27: Fiber Obj | M27: FAT Obj | N27: LYS Min | O27: THR Min | P27: MET Min | Q27: MET+CYS Min | R27: TRY Min | S27: DIS Lys | T27: DIS THR | U27: DIS MET | V27: DIS MET + CYS | W27: DIS TRY | X27: Ca Obj | Y27: P Obj | Z27: Na Obj | AF27: Feed Price (€/T) | AG27: =SUMPRODUCT(F12:F23,AF12:AF23)/100 -> 0
F28: Min | G28: =_xlfn.IFNA(VLOOKUP($Q$10,Requirement,43,FALSE),) -> 0.00 | H28: =_xlfn.IFNA(VLOOKUP($Q$10,Requirement,45,FALSE),) -> 0.00 | I28: =_xlfn.IFNA(VLOOKUP($Q$10,Requirement,6,FALSE),) -> 0.00 | J28: =_xlfn.IFNA(VLOOKUP($Q$10,Requirement,8,FALSE),) -> 0.00 | K28: =_xlfn.IFNA(VLOOKUP($Q$10,Requirement,10,FALSE),) -> 0.00 | L28: =_xlfn.IFNA(VLOOKUP($Q$10,Requirement,12,FALSE),) -> 0.00 | M28: =_xlfn.IFNA(VLOOKUP($Q$10,Requirement,14,FALSE),) -> 0.00 | N28: =_xlfn.IFNA(VLOOKUP($Q$10,Requirement,23,FALSE),) -> 0.00 | O28: =_xlfn.IFNA(VLOOKUP($Q$10,Requirement,39,FALSE),) -> 0.00 | P28: =_xlfn.IFNA(VLOOKUP($Q$10,Requirement,27,FALSE),) -> 0.00 | Q28: =_xlfn.IFNA(VLOOKUP($Q$10,Requirement,35,FALSE),) -> 0.00 | R28: =_xlfn.IFNA(VLOOKUP($Q$10,Requirement,31,FALSE),) -> 0.00 | S28: =_xlfn.IFNA(VLOOKUP($Q$10,Requirement,25,FALSE),) -> 0.00 | T28: =_xlfn.IFNA(VLOOKUP($Q$10,Requirement,41,FALSE),) -> 0.00 | U28: =_xlfn.IFNA(VLOOKUP($Q$10,Requirement,29,FALSE),) -> 0.00 | V28: =_xlfn.IFNA(VLOOKUP($Q$10,Requirement,37,FALSE),) -> 0.00 | W28: =_xlfn.IFNA(VLOOKUP($Q$10,Requirement,33,FALSE),) -> 0.00 | X28: =_xlfn.IFNA(VLOOKUP($Q$10,Requirement,16,FALSE),) -> 0.00 | Y28: =_xlfn.IFNA(VLOOKUP($Q$10,Requirement,18,FALSE),) -> 0.00 | Z28: =_xlfn.IFNA(VLOOKUP($Q$10,Requirement,21,FALSE),) -> 0.00
F29: Max | G29: =_xlfn.IFNA(VLOOKUP($Q$10,Requirement,44,FALSE),) -> 0.00 | H29: =_xlfn.IFNA(VLOOKUP($Q$10,Requirement,46,FALSE),) -> 0.00 | I29: =_xlfn.IFNA(VLOOKUP($Q$10,Requirement,7,FALSE),) -> 0.00 | J29: =_xlfn.IFNA(VLOOKUP($Q$10,Requirement,9,FALSE),) -> 0.00 | K29: =_xlfn.IFNA(VLOOKUP($Q$10,Requirement,11,FALSE),) -> 0.00 | L29: =_xlfn.IFNA(VLOOKUP($Q$10,Requirement,13,FALSE),) -> 0.00 | M29: =_xlfn.IFNA(VLOOKUP($Q$10,Requirement,15,FALSE),) -> 0.00 | N29: =_xlfn.IFNA(VLOOKUP($Q$10,Requirement,24,FALSE),) -> 0.00 | O29: =_xlfn.IFNA(VLOOKUP($Q$10,Requirement,40,FALSE),) -> 0.00 | P29: =_xlfn.IFNA(VLOOKUP($Q$10,Requirement,28,FALSE),) -> 0.00 | Q29: =_xlfn.IFNA(VLOOKUP($Q$10,Requirement,36,FALSE),) -> 0.00 | R29: =_xlfn.IFNA(VLOOKUP($Q$10,Requirement,32,FALSE),) -> 0.00 | S29: =_xlfn.IFNA(VLOOKUP($Q$10,Requirement,26,FALSE),) -> 0.00 | T29: =_xlfn.IFNA(VLOOKUP($Q$10,Requirement,42,FALSE),) -> 0.00 | U29: =_xlfn.IFNA(VLOOKUP($Q$10,Requirement,30,FALSE),) -> 0.00 | V29: =_xlfn.IFNA(VLOOKUP($Q$10,Requirement,38,FALSE),) -> 0.00 | W29: =_xlfn.IFNA(VLOOKUP($Q$10,Requirement,34,FALSE),) -> 0.00 | X29: =_xlfn.IFNA(VLOOKUP($Q$10,Requirement,17,FALSE),) -> 0.00 | Y29: =_xlfn.IFNA(VLOOKUP($Q$10,Requirement,19,FALSE),) -> 0.00 | Z29: =_xlfn.IFNA(VLOOKUP($Q$10,Requirement,22,FALSE),) -> 0.00
G32: List selections
G33: Manual selections

Sheet Database_Feedstuffs
D1: Main Constituents | I1: Total Amino Acid | O1: Total Fatty acid | T1: Total Minerals | Z1: Total Energy of Pigs | AK1: Inclusion levels in the Pigs diet | AM1: Amino Acid Digestibility
A2: Feedstuffs | B2: Matière première | C2: Class | D2: DM % | E2: CP % | F2: Fiber % | G2: FAT % | H2: Ash % | I2: LYS % | J2: THR % | K2: MET % | L2: MET+CYS % | M2: TRY % | N2: CYS % | O2: C16:0 % Fat | P2: C18:0 % Fat | Q2: C18:1 % Fat (Oleic) | R2: C18:2 % Fat (linoleic) | S2: C18:3 % Fat (Alpha linolenic) | T2: Ca % | U2: P % | V2: Na % | W2: Phytate P g/kg | X2: Mg % | Y2: K % as fed | Z2: DE growing pig Mj/kg | AA2: DE Pig adult Mj/kg | AB2: Dig. P pig (without phytase) g/kg | AC2: ME growing pig Mj/kg | AD2: ME growing pig (Kcal/Kg) | AE2: NE growing pig Mj/kg | AF2: NE growing pig Kcal/kg | AG2: ME pig adult Mj/kg | AH2: ME pig adult Kcal/Kg | AI2: NE pig adult Mj/kg | AJ2: NE pig adult Kcal/Kg | AK2: Piglet % max | AL2: Pigs and sows % max | AM2: DIS LYS pig % | AN2: DIS THR pig % | AO2: DIS MET pig % | AP2: DIS CYS pig % | AQ2: DIS MET+CYS pig % | AR2: DIS TRY pig % | AS2: Source
A3: Alfalfa protein concentrate | C3: Other | D3: 92.0 | E3: 49.2 | F3: 2.9 | G3: 8.2 | H3: 10.1 | I3: 2.94 | J3: 2.34 | K3: 1.00 | L3: 1.47 | M3: 0.75 | N3: 0.47 | O3: 16.6 | P3: 2.8 | Q3: 7.6 | R3: 29.3 | S3: 35.8 | T3: 3.37 | U3: 0.84 | V3: 0.01 | W3: 0.4 | X3: 0.14 | Y3: 0.70 | Z3: 15.23 | AA3: 15.77 | AB3: 0.00 | AC3: 13.93 | AD3: 3330 | AE3: 9.00 | AF3: 2150 | AG3: 14.31 | AH3: 3420 | AI3: 9.33 | AJ3: 2230 | AK3: 10 | AL3: 10 | AM3: 0.00 | AN3: 0.00 | AO3: 0.00 | AP3: 0.00 | AQ3: 0.00 | AR3: 0.00
A4: Alfalfa, dehydrated, protein < 16% | C4: Dehydrated forage | D4: 92.6 | E4: 13.6 | F4: 28.9 | G4: 2.2 | H4: 9.5 | I4: 0.52 | J4: 0.46 | K4: 0.11 | L4: 0.30 | M4: 0.19 | N4: 0.19 | O4: 16.6 | P4: 2.8 | Q4: 7.6 | R4: 29.3 | S4: 35.8 | T4: 1.77 | U4: 0.24 | V4: 0.06 | W4: 0.1 | X4: 0.19 | Y4: 2.30 | Z4: 7.28 | AA4: 7.95 | AB4: 0.70 | AC4: 6.82 | AD4: 1630 | AE4: 3.72 | AF4: 890 | AG4: 7.20 | AH4: 1720 | AI4: 4.02 | AJ4: 960 | AK4: 0.00 | AL4: 10 | AM4: 0.2700000048 | AN4: 0.2799999952 | AO4: 0.08000000119 | AP4: 0.06000000238 | AQ4: 0.1399999976 | AR4: 0.08999999762 | AS4: Organic table (ITAB &AFZ)
A5: Alfalfa, dehydrated, protein 16-18% | C5: Dehydrated forage | D5: 91.9 | E5: 15.6 | F5: 26.5 | G5: 2.2 | H5: 9.8 | I5: 0.66 | J5: 0.57 | K5: 0.16 | L5: 0.36 | M5: 0.22 | N5: 0.20 | O5: 16.6 | P5: 2.8 | Q5: 7.6 | R5: 29.3 | S5: 35.8 | T5: 2.05 | U5: 0.23 | V5: 0.03 | W5: 0.1 | X5: 0.18 | Y5: 2.38 | Z5: 7.57 | AA5: 8.20 | AB5: 1.00 | AC5: 7.07 | AD5: 1690 | AE5: 3.93 | AF5: 940 | AG5: 7.45 | AH5: 1780 | AI5: 4.23 | AJ5: 1010 | AK5: 0.00 | AL5: 10 | AM5: 0.3700000048 | AN5: 0.3599999905 | AO5: 0.1200000048 | AP5: 0.06999999881 | AQ5: 0.1899999976 | AR5: 0.1 | AS5: Organic table (ITAB &AFZ)
A6: Alfalfa, dehydrated, protein 17-19% | C6: Dehydrated forage | D6: 92.1 | E6: 16.4 | F6: 25.4 | G6: 2.3 | H6: 10.0 | I6: 0.72 | J6: 0.61 | K6: 0.18 | L6: 0.39 | M6: 0.23 | N6: 0.21 | O6: 16.6 | P6: 2.8 | Q6: 7.6 | R6: 29.3 | S6: 35.8 | T6: 1.88 | U6: 0.24 | V6: 0.04 | W6: 0.1 | X6: 0.19 | Y6: 2.22 | Z6: 7.74 | AA6: 8.37 | AB6: 0.90 | AC6: 7.20 | AD6: 1720 | AE6: 4.06 | AF6: 970 | AG6: 7.57 | AH6: 1810 | AI6: 4.35 | AJ6: 1040 | AK6: 0.00 | AL6: 10 | AM6: 0.4099999905 | AN6: 0.3900000095 | AO6: 0.1399999976 | AP6: 0.06999999881 | AQ6: 0.2099999905 | AR6: 0.1100000024 | AS6: Organic table (ITAB &AFZ)
A7: Alfalfa, dehydrated, protein 19-22% | C7: Dehydrated forage | D7: 92.0 | E7: 18.6 | F7: 23.6 | G7: 2.8 | H7: 10.6 | I7: 0.86 | J7: 0.72 | K7: 0.23 | L7: 0.46 | M7: 0.26 | N7: 0.23 | O7: 16.6 | P7: 2.8 | Q7: 7.6 | R7: 29.3 | S7: 35.8 | T7: 2.00 | U7: 0.24 | V7: 0.04 | W7: 0.1 | X7: 0.19 | Y7: 2.30 | Z7: 8.03 | AA7: 8.62 | AB7: 0.80 | AC7: 7.49 | AD7: 1790 | AE7: 4.27 | AF7: 1020 | AG7: 0.00 | AH7: 0 | AI7: 4.56 | AJ7: 1090 | AK7: 0.00 | AL7: 10 | AM7: 0.5300000191 | AN7: 0.4699999809 | AO7: 0.1799999952 | AP7: 0.08000000119 | AQ7: 0.2599999905 | AR7: 0.1200000048 | AS7: Organic table (ITAB &AFZ)
A8: Apple Pulp (Dried) | C8: Other plant product | D8: 91.0 | E8: 7.3 | F8: 26.4 | G8: 3.0 | H8: 2.1 | I8: 0.31 | J8: 0.23 | K8: 0.11 | L8: 0.18 | M8: 0.08 | N8: 0.07 | O8: 3.5 | P8: 0.3 | Q8: 1.2 | R8: 14.4 | S8: 1.9 | T8: 0.09 | U8: 0.12 | V8: 0.26 | W8: 0.1 | X8: 0.01 | Y8: 0.30 | Z8: 8.90 | AA8: 10.10 | AB8: 0.00 | AC8: 8.50 | AD8: 2020 | AE8: 5.20 | AF8: 1250 | AG8: 9.30 | AH8: 2230 | AI8: 5.90 | AJ8: 1410 | AK8: 0.00 | AL8: 0.00 | AM8: 0.18 | AN8: 0.14 | AO8: 0.08 | AP8: 0.04 | AQ8: 0.13 | AR8: 0.05 | AS8: Feedtable (INRA)
A9: Barley 10,3% CP | B9: Orge 10,3% MAT | C9: Cereals | D9: 87.9 | E9: 10.3 | F9: 4.7 | G9: 1.8 | H9: 2.2 | I9: 0.40 | J9: 0.37 | K9: 0.18 | L9: 0.42 | M9: 0.13 | N9: 0.24 | O9: 21.2 | P9: 1.1 | Q9: 13.4 | R9: 55.9 | S9: 8.7 | T9: 0.07 | U9: 0.34 | V9: 0.00 | W9: 1.8 | X9: 0.11 | Y9: 0.49 | Z9: 13.01 | AA9: 13.39 | AB9: 1.1 | AC9: 12.59 | AD9: 3010 | AE9: 9.71 | AF9: 2320 | AG9: 12.85 | AH9: 3070 | AI9: 9.92 | AJ9: 2370 | AK9: 40 | AL9: 50 | AM9: 0.28 | AN9: 0.25 | AO9: 0.14 | AP9: 0.19 | AQ9: 0.33 | AR9: 0.10 | AS9: Organic table (ITAB &AFZ)
A10: Barley 8,3% CP | B10: Orge 8,3% MAT | C10: Cereals | D10: 87.9 | E10: 8.3 | F10: 4.7 | G10: 1.8 | H10: 2.2 | I10: 0.32 | J10: 0.29 | K10: 0.14 | L10: 0.34 | M10: 0.11 | N10: 0.20 | O10: 21.2 | P10: 1.1 | Q10: 13.4 | R10: 55.9 | S10: 8.7 | T10: 0.07 | U10: 0.34 | V10: 0.00 | W10: 1.8 | X10: 0.11 | Y10: 0.49 | Z10: 12.93 | AA10: 13.26 | AB10: 1.1 | AC10: 12.55 | AD10: 3000 | AE10: 9.67 | AF10: 2310 | AG10: 12.80 | AH10: 3060 | AI10: 9.87 | AJ10: 2360 | AK10: 40 | AL10: 50 | AM10: 0.28 | AN10: 0.25 | AO10: 0.14 | AP10: 0.19 | AQ10: 0.33 | AR10: 0.10 | AS10: Organic table (ITAB &AFZ)
A11: Barley 9,3% CP | B11: Orge 9,3% MAT | C11: Cereals | D11: 87.9 | E11: 9.3 | F11: 4.7 | G11: 1.8 | H11: 2.2 | I11: 0.36 | J11: 0.33 | K11: 0.16 | L11: 0.38 | M11: 0.12 | N11: 0.22 | O11: 21.2 | P11: 1.1 | Q11: 13.4 | R11: 55.9 | S11: 8.7 | T11: 0.07 | U11: 0.34 | V11: 0.00 | W11: 1.8 | X11: 0.11 | Y11: 0.49 | Z11: 12.93 | AA11: 13.26 | AB11: 1.1 | AC11: 12.51 | AD11: 2990 | AE11: 9.62 | AF11: 2300 | AG11: 12.76 | AH11: 3050 | AI11: 9.83 | AJ11: 2350 | AK11: 40 | AL11: 50 | AM11: 0.28 | AN11: 0.25 | AO11: 0.14 | AP11: 0.19 | AQ11: 0.33 | AR11: 0.10 | AS11: Organic table (ITAB &AFZ)
A12: Beetroot pulp (dried) | C12: Other plant product | D12: 88.8 | E12: 7.9 | F12: 17.2 | G12: 0.8 | H12: 6.3 | I12: 0.46 | J12: 0.36 | K12: 0.13 | L12: 0.22 | M12: 0.08 | N12: 0.09 | O12: 20.6 | P12: 1.4 | Q12: 9.7 | R12: 57.8 | S12: 10.5 | T12: 1.29 | U12: 0.09 | V12: 0.05 | W12: 0.1 | X12: 0.16 | Y12: 0.40 | Z12: 10.79 | AA12: 12.26 | AB12: 0.00 | AC12: 10.17 | AD12: 2430 | AE12: 6.15 | AF12: 1470 | AG12: 11.00 | AH12: 2630 | AI12: 7.11 | AJ12: 1700 | AK12: 5 | AL12: 20 | AM12: 0.23 | AN12: 0.11 | AO12: 0.08 | AP12: 0.02 | AQ12: 0.10 | AR12: 0.03 | AS12: INRA feed table 902
A13: Bicalcium Phosphate | C13: Minerals | D13: 97.0 | E13: 0.00 | F13: 0.00 | G13: 0.00 | H13: 88.5 | I13: 0.00 | J13: 0.00 | K13: 0.00 | L13: 0.00 | M13: 0.00 | N13: 0.00 | O13: 0.0 | P13: 0.0 | Q13: 0.0 | R13: 0.0 | S13: 0.0 | T13: 27.20 | U13: 20.40 | V13: 0.25 | W13: 0.00 | X13: 0.59 | Y13: 0.22 | Z13: 0.00 | AA13: 0.00 | AB13: 0.00 | AC13: 0.00 | AD13: 0.00 | AE13: 0.00 | AF13: 0.00 | AG13: 0.00 | AH13: 0.00 | AI13: 0.00 | AJ13: 0.00 | AK13: 5 | AL13: 5 | AM13: 0.00 | AN13: 0.00 | AO13: 0.00 | AP13: 0.00 | AQ13: 0.00 | AR13: 0.00 | AS13: INRA table
A14: Blue Lupine | C14: Legume seeds | D14: 90.3 | E14: 30.3 | F14: 14.2 | G14: 5.4 | H14: 3.2 | I14: 1.53 | J14: 1.18 | K14: 0.26 | L14: 0.80 | M14: 0.22 | N14: 0.54 | O14: 6.9 | P14: 3.6 | Q14: 31.9 | R14: 46.7 | S14: 4.8 | T14: 0.26 | U14: 0.34 | V14: 0.00 | W14: 2.1 | X14: 0.19 | Y14: 0.99 | Z14: 14.31 | AA14: 15.73 | AB14: 1.7 | AC14: 13.31 | AD14: 3180 | AE14: 8.45 | AF14: 2020 | AG14: 14.35 | AH14: 3430 | AI14: 9.33 | AJ14: 2230 | AK14: 5 | AL14: 10 | AM14: 1.33 | AN14: 0.98 | AO14: 0.23 | AP14: 0.47 | AQ14: 0.69 | AR14: 1.24 | AS14: INRA feed table 2002
A15: Brewery draft dried | C15: Wheat by-products | D15: 91.0 | E15: 25.8 | F15: 15.8 | G15: 6.7 | H15: 4.6 | I15: 0.31 | J15: 0.32 | K15: 0.15 | L15: 0.33 | M15: 0.12 | N15: 0.18 | O15: 0.00 | P15: 0.00 | Q15: 0.00 | R15: 0.00 | S15: 0.00 | T15: 0.27 | U15: 0.57 | V15: 0.00 | W15: 0.00 | X15: 0.26 | Y15: 0.46 | Z15: 14.10 | AA15: 0.00 | AB15: 0.00 | AC15: 14.08 | AD15: 3364 | AE15: 0.00 | AF15: 0.00 | AG15: 0.00 | AH15: 0.00 | AI15: 0.00 | AJ15: 0.00 | AK15: 0.00 | AL15: 20 | AM15: 0.00 | AN15: 0.00 | AO15: 0.00 | AP15: 0.00 | AQ15: 0.00 | AR15: 0.00 | AS15: Albuquerque et al., R. Bras. Zootec., v.41, n.7, p.1784-1788, 2012
A16: Buckwheat | B16: Sarrasin | C16: Cereals | D16: 84.9 | E16: 13.2 | F16: 13.1 | G16: 2.6 | H16: 2.9 | I16: 0.57 | J16: 0.36 | K16: 0.23 | L16: 0.41 | M16: 0.06 | N16: 0.18 | O16: 16.6 | P16: 1.6 | Q16: 35.8 | R16: 36.8 | S16: 4.1 | T16: 0.22 | U16: 0.33 | V16: 0.00 | W16: 0.00 | X16: 0.01 | Y16: 0.00 | Z16: 12.30 | AA16: 0.00 | AB16: 0.00 | AC16: 11.88 | AD16: 2840 | AE16: 9.21 | AF16: 2200 | AG16: 0.00 | AH16: 0.00 | AI16: 0.00 | AJ16: 0.00 | AK16: 0.00 | AL16: 40 | AM16: 0.00 | AN16: 0.00 | AO16: 0.00 | AP16: 0.00 | AQ16: 0.00 | AR16: 0.00 | AS16: Feedipedia
A17: Calcium carbonate | C17: Minerals | D17: 99.9 | E17: 0.0 | F17: 0.0 | G17: 0.0 | H17: 99.3 | I17: 0.00 | J17: 0.00 | K17: 0.00 | L17: 0.00 | M17: 0.00 | N17: 0.00 | O17: 0.0 | P17: 0.0 | Q17: 0.0 | R17: 0.0 | S17: 0.0 | T17: 38.70 | U17: 0.03 | V17: 0.06 | W17: 0.00 | X17: 0.04 | Y17: 0.00 | Z17: 0.00 | AA17: 0.00 | AB17: 0.00 | AC17: 0.00 | AD17: 0 | AE17: 0.00 | AF17: 0.00 | AG17: 0.00 | AH17: 0.00 | AI17: 0.00 | AJ17: 0.00 | AK17: 5 | AL17: 5 | AM17: 0.00 | AN17: 0.00 | AO17: 0.00 | AP17: 0.00 | AQ17: 0.00 | AR17: 0.00 | AS17: Organic table (ITAB &AFZ)
A18: Camelina cake | C18: Oilseeds (Cake) | D18: 91.1 | E18: 33.2 | F18: 11.5 | G18: 14.5 | H18: 5.5 | I18: 1.54 | J18: 1.30 | K18: 0.64 | L18: 1.39 | M18: 0.38 | N18: 0.76 | O18: 8.1 | P18: 2.5 | Q18: 18.3 | R18: 24.6 | S18: 33.2 | T18: 0.34 | U18: 0.86 | V18: 0.01 | W18: 5.2 | X18: 0.36 | Y18: 1.20 | Z18: 11.34 | AA18: 12.59 | AB18: 2.8 | AC18: 10.46 | AD18: 2500 | AE18: 7.87 | AF18: 1880 | AG18: 11.59 | AH18: 2770 | AI18: 8.41 | AJ18: 2010 | AK18: 5 | AL18: 5 | AM18: 0.82 | AN18: 0.66 | AO18: 0.47 | AP18: 0.41 | AQ18: 0.88 | AR18: 0.31 | AS18: Organic table (ITAB &AFZ)
A19: Chickpea (Extruded) | C19: Legume seeds | D19: 87.9 | E19: 18.6 | F19: 3.4 | G19: 5.5 | H19: 2.9 | I19: 1.26 | J19: 0.66 | K19: 0.23 | L19: 0.45 | M19: 0.17 | N19: 0.22 | O19: 25.5 | P19: 1.8 | Q19: 53.3 | R19: 13.1 | S19: 5.5 | T19: 0.12 | U19: 0.41 | V19: 0.03 | W19: 2.0 | X19: 0.13 | Y19: 0.96 | Z19: 14.77 | AA19: 15.36 | AB19: 0.00 | AC19: 14.18 | AD19: 3390 | AE19: 10.67 | AF19: 2550 | AG19: 14.64 | AH19: 3500 | AI19: 11.00 | AJ19: 2630 | AK19: 10 | AL19: 25 | AM19: 0.00 | AN19: 0.00 | AO19: 0.00 | AP19: 0.00 | AQ19: 0.00 | AR19: 0.00 | AS19: INRA feed table 2002
A20: Conventionnal corn gluten | C20: Cereals byproducts | D20: 87.8 | E20: 18.9 | F20: 7.9 | G20: 2.5 | H20: 5.7 | I20: 0.60 | J20: 0.65 | K20: 0.32 | L20: 0.67 | M20: 0.13 | N20: 0.35 | O20: 10.5 | P20: 1.8 | Q20: 26.1 | R20: 59.5 | S20: 1.3 | T20: 0.14 | U20: 0.86 | V20: 0.08 | W20: 5.6 | X20: 0.37 | Y20: 1.35 | Z20: 10.46 | AA20: 12.34 | AB20: 1.9 | AC20: 9.83 | AD20: 2350 | AE20: 6.57 | AF20: 1570 | AG20: 11.42 | AH20: 2730 | AI20: 7.74 | AJ20: 1850 | AK20: 5 | AL20: 5 | AM20: 0.40 | AN20: 0.46 | AO20: 0.21 | AP20: 0.24 | AQ20: 0.51 | AR20: 0.08 | AS20: INRA feed table 2602
A21: Conventionnal potato protein | C21: Root byproduct | D21: 91.8 | E21: 77.2 | F21: 0.8 | G21: 0.6 | H21: 2.4 | I21: 5.89 | J21: 4.34 | K21: 1.70 | L21: 2.75 | M21: 1.08 | N21: 1.05 | O21: 17.8 | P21: 5.4 | Q21: 1.9 | R21: 56.5 | S21: 17.2 | T21: 0.20 | U21: 0.41 | V21: 0.04 | W21: 0.6 | X21: 0.05 | Y21: 0.54 | Z21: 19.87 | AA21: 20.00 | AB21: 0.00 | AC21: 17.82 | AD21: 4260 | AE21: 10.33 | AF21: 2470 | AG21: 17.87 | AH21: 4270 | AI21: 10.59 | AJ21: 2530 | AK21: 5 | AL21: 5 | AM21: 0.53 | AN21: 0.39 | AO21: 0.16 | AP21: 0.08 | AQ21: 0.24 | AR21: 0.08 | AS21: INRA feed table 102
A22: Corn 7,6% CP | B22: Maïs 7,6% MAT | C22: Cereals | D22: 86.4 | E22: 7.6 | F22: 2.3 | G22: 3.3 | H22: 1.2 | I22: 0.23 | J22: 0.29 | K22: 0.16 | L22: 0.35 | M22: 0.05 | N22: 0.19 | O22: 3.2 | P22: 0.5 | Q22: 7.9 | R22: 17.9 | S22: 0.4 | T22: 0.04 | U22: 0.26 | V22: 0.01 | W22: 1.9 | X22: 0.11 | Y22: 0.31 | Z22: 14.02 | AA22: 14.60 | AB22: 0.7 | AC22: 13.68 | AD22: 3270 | AE22: 10.96 | AF22: 2620 | AG22: 14.18 | AH22: 3390 | AI22: 11.30 | AJ22: 2700 | AK22: 50 | AL22: 50 | AM22: 0.19 | AN22: 0.24 | AO22: 0.15 | AP22: 0.17 | AQ22: 0.32 | AR22: 0.04 | AS22: Organic table (ITAB &AFZ)
A23: Corn 8,6% CP | B23: Maïs 8,6% MAT | C23: Cereals | D23: 86.4 | E23: 7.6 | F23: 2.3 | G23: 3.3 | H23: 1.2 | I23: 0.26 | J23: 0.33 | K23: 0.18 | L23: 0.40 | M23: 0.06 | N23: 0.22 | O23: 3.2 | P23: 0.5 | Q23: 7.9 | R23: 17.9 | S23: 0.4 | T23: 0.04 | U23: 0.26 | V23: 0.01 | W23: 1.9 | X23: 0.11 | Y23: 0.31 | Z23: 14.23 | AA23: 14.77 | AB23: 0.7 | AC23: 13.85 | AD23: 3310 | AE23: 11.05 | AF23: 2640 | AG23: 14.31 | AH23: 3420 | AI23: 11.30 | AJ23: 2700 | AK23: 50 | AL23: 50 | AM23: 0.19 | AN23: 0.24 | AO23: 0.15 | AP23: 0.17 | AQ23: 0.32 | AR23: 0.04 | AS23: Organic table (ITAB &AFZ)
A24: Corn 9,6% CP | B24: Maïs 9,6% MAT | C24: Cereals | D24: 86.4 | E24: 7.6 | F24: 2.3 | G24: 3.3 | H24: 1.2 | I24: 0.29 | J24: 0.37 | K24: 0.20 | L24: 0.44 | M24: 0.06 | N24: 0.24 | O24: 3.2 | P24: 0.5 | Q24: 7.9 | R24: 17.9 | S24: 0.4 | T24: 0.04 | U24: 0.26 | V24: 0.01 | W24: 1.9 | X24: 0.11 | Y24: 0.31 | Z24: 14.27 | AA24: 14.81 | AB24: 0.7 | AC24: 13.89 | AD24: 3320 | AE24: 11.17 | AF24: 2670 | AG24: 14.35 | AH24: 3430 | AI24: 11.30 | AJ24: 2700 | AK24: 50 | AL24: 50 | AM24: 0.19 | AN24: 0.24 | AO24: 0.15 | AP24: 0.17 | AQ24: 0.32 | AR24: 0.04 | AS24: Organic table (ITAB &AFZ)
A25: Crepidula | C25: Fishmeals and solubles | D25: 91.3 | E25: 47.4 | F25: 0.0 | G25: 2.6 | H25: 20.1 | I25: 2.68 | J25: 1.97 | K25: 0.89 | L25: 1.43 | M25: 0.00 | N25: 0.55 | O25: 13.5 | P25: 7.4 | Q25: 6.8 | R25: 3.0 | S25: 1.1 | T25: 0.00 | U25: 0.46 | V25: 0.00 | W25: 0.0 | X25: 0.00 | Y25: 0.00 | Z25: 13.43 | AA25: 13.43 | AB25: 0.00 | AC25: 12.30 | AD25: 2940 | AE25: 7.49 | AF25: 1790 | AG25: 12.26 | AH25: 2930 | AI25: 7.57 | AJ25: 1810 | AK25: 0 | AL25: 0 | AM25: 0.00 | AN25: 0.00 | AO25: 0.00 | AP25: 0.00 | AQ25: 0.00 | AR25: 0.00 | AS25: Organic table (ITAB &AFZ)
A26: Faba Bean (coloured flower) | C26: Legume seeds | D26: 87.9 | E26: 25.6 | F26: 9.1 | G26: 1.1 | H26: 3.4 | I26: 1.67 | J26: 0.92 | K26: 0.18 | L26: 0.51 | M26: 0.21 | N26: 0.32 | O26: 17.2 | P26: 2.6 | Q26: 25.8 | R26: 49.9 | S26: 3.5 | T26: 0.13 | U26: 0.49 | V26: 0.01 | W26: 2.9 | X26: 0.16 | Y26: 1.03 | Z26: 13.35 | AA26: 9.08 | AB26: 1.8 | AC26: 12.64 | AD26: 3020 | AE26: 8.91 | AF26: 2130 | AG26: 12.93 | AH26: 3090 | AI26: 9.08 | AJ26: 2170 | AK26: 15 | AL26: 10 | AM26: 1.41 | AN26: 0.73 | AO26: 0.15 | AP26: 0.24 | AQ26: 0.38 | AR26: 0.15 | AS26: Organic table (ITAB &AFZ)
A27: Faba Bean (white flower) | C27: Legume seeds | D27: 84.4 | E27: 24.4 | F27: 8.6 | G27: 1.0 | H27: 3.4 | I27: 1.60 | J27: 0.87 | K27: 0.18 | L27: 0.48 | M27: 0.20 | N27: 0.31 | O27: 17.2 | P27: 2.6 | Q27: 25.8 | R27: 49.9 | S27: 3.5 | T27: 0.13 | U27: 0.47 | V27: 0.01 | W27: 2.8 | X27: 0.17 | Y27: 1.01 | Z27: 13.47 | AA27: 9.08 | AB27: 1.8 | AC27: 0.00 | AD27: 0 | AE27: 8.95 | AF27: 2140 | AG27: 13.77 | AH27: 3290 | AI27: 12.93 | AJ27: 3090 | AK27: 15 | AL27: 10 | AM27: 1.42 | AN27: 0.73 | AO27: 0.15 | AP27: 0.24 | AQ27: 0.39 | AR27: 0.15 | AS27: Tarasenko N. A, Butina E. A, Gerasimenko E. O. Peculiarities of chemical composition of sainfoin seeds powder. Orient J Chem 2015;31(3) and ICOPP MTT
A28: Fodder beet | C28: Individual component with low DM | D28: 16.1 | E28: 1.3 | F28: 1.0 | G28: 0.1 | H28: 1.7 | I28: 0.07 | J28: 0.06 | K28: 0.02 | L28: 0.04 | M28: 0.02 | N28: 0.01 | O28: 0.1 | P28: 0.0 | Q28: 0.0 | R28: 0.2 | S28: 0.0 | T28: 0.09 | U28: 0.04 | V28: 0.11 | W28: 0.0 | X28: 0.06 | Y28: 0.50 | Z28: 2.10 | AA28: 2.30 | AB28: 0.1 | AC28: 2.10 | AD28: 490 | AE28: 1.40 | AF28: 360 | AG28: 1.40 | AH28: 490 | AI28: 1.50 | AJ28: 340 | AK28: 0.00 | AL28: 0.00 | AM28: 0.06 | AN28: 0.05 | AO28: 0.02 | AP28: 0.01 | AQ28: 0.03 | AR28: 0.01 | AS28: INRA table
A29: Grass pea | C29: Legume seeds | D29: 87.9 | E29: 24.2 | F29: 6.6 | G29: 0.7 | H29: 3.1 | I29: 0.6 | J29: 0.3 | K29: 0.1 | L29: 0.3 | M29: 0.1 | N29: 0.2 | O29: 10.7 | P29: 8.9 | Q29: 19.4 | R29: 50.4 | S29: 6.8 | T29: 0.03 | U29: 0.04 | V29: 0.03 | W29: 2.3 | X29: 0.12 | Y29: 0.92 | Z29: 0.00 | AA29: 0.00 | AB29: 0.00 | AC29: 0.00 | AD29: 0.00 | AE29: 0.00 | AF29: 0.00 | AG29: 0.00 | AH29: 0.00 | AI29: 0.00 | AJ29: 0.00 | AK29: 10 | AL29: 15 | AM29: 0.00 | AN29: 0.00 | AO29: 0.00 | AP29: 0.00 | AQ29: 0.00 | AR29: 0.00 | AS29: INRA table 2002
A30: Hemp cake | C30: Oilseeds (Cake) | D30: 90.4 | E30: 30.4 | F30: 28.4 | G30: 11.1 | H30: 6.1 | I30: 1.04 | J30: 1.08 | K30: 0.70 | L30: 1.22 | M30: 0.30 | N30: 0.52 | O30: 6.6 | P30: 2.5 | Q30: 11.9 | R30: 55.1 | S30: 21.4 | T30: 0.26 | U30: 0.95 | V30: 0.06 | W30: 5.7 | X30: 0.00 | Y30: 0.00 | Z30: 11.05 | AA30: 12.26 | AB30: 3.1 | AC30: 10.21 | AD30: 2440 | AE30: 6.61 | AF30: 1580 | AG30: 11.21 | AH30: 2680 | AI30: 7.15 | AJ30: 1710 | AK30: 20 | AL30: 25 | AM30: 0.88 | AN30: 0.89 | AO30: 0.64 | AP30: 0.41 | AQ30: 1.06 | AR30: 0.00 | AS30: Frech table
A31: Linseed meal, oil > 5% | C31: Oilseeds (Cake) | D31: 90.4 | E31: 33.4 | F31: 7.4 | G31: 12.8 | H31: 4.8 | I31: 1.31 | J31: 1.27 | K31: 0.63 | L31: 1.25 | M31: 0.50 | N31: 0.62 | O31: 5.6 | P31: 4.4 | Q31: 20.2 | R31: 14.7 | S31: 53.8 | T31: 0.39 | U31: 0.84 | V31: 0.06 | W31: 5.5 | X31: 0.47 | Y31: 1.02 | Z31: 15.86 | AA31: 16.32 | AB31: 6.3 | AC31: 14.77 | AD31: 3530 | AE31: 10.29 | AF31: 2460 | AG31: 15.06 | AH31: 3600 | AI31: 10.59 | AJ31: 2530 | AK31: 0 | AL31: 10 | AM31: 10.20 | AN31: 9.90 | AO31: 5.70 | AP31: 4.90 | AQ31: 10.50 | AR31: 4.30 | AS31: Organic table (ITAB &AFZ)
A32: Lithotamne | C32: Minerals | D32: 0.00 | E32: 0.00 | F32: 0.00 | G32: 0.00 | H32: 0.00 | I32: 0.00 | J32: 0.00 | K32: 0.00 | L32: 0.00 | M32: 0.00 | N32: 0.00 | O32: 0.0 | P32: 0.0 | Q32: 0.0 | R32: 0.0 | S32: 0.0 | T32: 33.00 | U32: 0.00 | V32: 0.00 | W32: 0.00 | X32: 3.30 | Y32: 0.00 | Z32: 0.00 | AA32: 0.00 | AB32: 0.00 | AC32: 0.00 | AD32: 0.00 | AE32: 0.00 | AF32: 0.00 | AG32: 0.00 | AH32: 0.00 | AI32: 0.00 | AJ32: 0.00 | AK32: 5 | AL32: 5 | AM32: 0.00 | AN32: 0.00 | AO32: 0.00 | AP32: 0.00 | AQ32: 0.00 | AR32: 0.00
A33: Molasses | C33: Other plant product | D33: 75.5 | E33: 10.7 | F33: 0.0 | G33: 0.2 | H33: 9.6 | I33: 0.16 | J33: 0.07 | K33: 0.02 | L33: 0.09 | M33: 0.08 | N33: 0.07 | O33: 0.0 | P33: 0.0 | Q33: 0.0 | R33: 0.0 | S33: 0.0 | T33: 0.09 | U33: 0.02 | V33: 0.52 | W33: 0.0 | X33: 0.02 | Y33: 0.00 | Z33: 9.92 | AA33: 10.21 | AB33: 0.2 | AC33: 9.62 | AD33: 2300 | AE33: 6.61 | AF33: 1580 | AG33: 9.92 | AH33: 2370 | AI33: 6.82 | AJ33: 1630 | AK33: 5 | AL33: 5 | AM33: 0.15 | AN33: 0.06 | AO33: 0.02 | AP33: 0.07 | AQ33: 0.09 | AR33: 0.08 | AS33: INRA feed table *02
A34: Monocalcium phosphate | C34: Minerals | D34: 98.5 | E34: 0.00 | F34: 0.00 | G34: 0.00 | H34: 80.2 | I34: 0.00 | J34: 0.00 | K34: 0.00 | L34: 0.00 | M34: 0.00 | N34: 0.00 | O34: 0.0 | P34: 0.0 | Q34: 0.0 | R34: 0.0 | S34: 0.0 | T34: 16.70 | U34: 22.40 | V34: 0.07 | W34: 0.00 | X34: 0.48 | Y34: 0.23 | Z34: 0.00 | AA34: 0.00 | AB34: 0.00 | AC34: 0.00 | AD34: 0.00 | AE34: 0.00 | AF34: 0.00 | AG34: 0.00 | AH34: 0.00 | AI34: 0.00 | AJ34: 0.00 | AK34: 5 | AL34: 5 | AM34: 0.00 | AN34: 0.00 | AO34: 0.00 | AP34: 0.00 | AQ34: 0.00 | AR34: 0.00 | AS34: INRA table 2002
A35: Oat | B35: Avoine | C35: Cereals | D35: 87.8 | E35: 9.4 | F35: 11.2 | G35: 4.6 | H35: 2.6 | I35: 0.39 | J35: 0.33 | K35: 0.17 | L35: 0.48 | M35: 0.12 | N35: 0.31 | O35: 16.5 | P35: 1.2 | Q35: 38.6 | R35: 40.9 | S35: 1.6 | T35: 0.10 | U35: 0.32 | V35: 0.01 | W35: 1.9 | X35: 0.09 | Y35: 0.45 | Z35: 11.34 | AA35: 11.97 | AB35: 1 | AC35: 10.92 | AD35: 2610 | AE35: 8.16 | AF35: 1950 | AG35: 11.38 | AH35: 2720 | AI35: 8.54 | AJ35: 2040 | AK35: 10 | AL35: 15 | AM35: 0.29 | AN35: 0.23 | AO35: 0.14 | AP35: 0.23 | AQ35: 0.38 | AR35: 0.09 | AS35: Organic table (ITAB &AFZ)
A36: Oat dehulled | B36: Avoine décortiqué | C36: Cereals | D36: 85.7 | E36: 11.1 | F36: 3.9 | G36: 2.6 | H36: 2.1 | I36: 0.46 | J36: 0.39 | K36: 0.19 | L36: 0.54 | M36: 0.14 | N36: 0.35 | O36: 3.9 | P36: 0.3 | Q36: 8.8 | R36: 8.9 | S36: 0.4 | T36: 0.09 | U36: 0.29 | V36: 0.01 | W36: 1.6 | X36: 0.09 | Y36: 0.45 | Z36: 13.51 | AA36: 11.97 | AB36: 0.9 | AC36: 13.05 | AD36: 3120 | AE36: 10.04 | AF36: 2400 | AG36: 13.26 | AH36: 3170 | AI36: 10.21 | AJ36: 2440 | AK36: 10 | AL36: 15 | AM36: 0.36 | AN36: 0.31 | AO36: 0.16 | AP36: 0.29 | AQ36: 0.46 | AR36: 0.11 | AS36: INRA feed table 2002
A37: Oat withtout hull | B37: Avoine nue | C37: Cereals | D37: 87.6 | E37: 9.4 | F37: 11.6 | G37: 4.7 | H37: 2.5 | I37: 0.40 | J37: 0.33 | K37: 0.17 | L37: 0.49 | M37: 0.12 | N37: 0.31 | O37: 16.6 | P37: 1.2 | Q37: 37.1 | R37: 37.5 | S37: 1.5 | T37: 0.10 | U37: 0.31 | V37: 0.01 | W37: 1.7 | X37: 0.09 | Y37: 0.45 | Z37: 13.51 | AA37: 11.97 | AB37: 1.1 | AC37: 13.05 | AD37: 3120 | AE37: 10.04 | AF37: 2400 | AG37: 13.26 | AH37: 3170 | AI37: 10.21 | AJ37: 2440 | AK37: 10 | AL37: 15 | AM37: 0.36 | AN37: 0.31 | AO37: 0.16 | AP37: 0.29 | AQ37: 0.46 | AR37: 0.11 | AS37: INRA feed table 2002
A38: Okara, fat > 5% | C38: Other plant product | D38: 94.4 | E38: 30.7 | F38: 10.0 | G38: 11.70 | H38: 4.3 | I38: 1.79 | J38: 1.31 | K38: 0.44 | L38: 0.87 | M38: 0.42 | N38: 0.4 | O38: 11.2 | P38: 3.8 | Q38: 23.1 | R38: 54.0 | S38: 7.2 | T38: 0.35 | U38: 0.52 | V38: 0.00 | W38: 3.1 | X38: 0.00 | Y38: 0.00 | Z38: 16.53 | AA38: 17.78 | AB38: 0.00 | AC38: 15.56 | AD38: 3720 | AE38: 10.96 | AF38: 2620 | AG38: 16.65 | AH38: 3980 | AI38: 11.72 | AJ38: 2800 | AK38: 25 | AL38: 0.00 | AM38: 0.00 | AN38: 0.00 | AO38: 0.00 | AP38: 0.00 | AQ38: 0.00 | AR38: 0.00 | AS38: Organic table (ITAB &AFZ)
A39: Oyster shells | C39: Minerals | D39: 99.6 | E39: 0.00 | F39: 0.00 | G39: 0.00 | H39: 95.8 | I39: 0.00 | J39: 0.00 | K39: 0.00 | L39: 0.00 | M39: 0.00 | N39: 0.00 | O39: 0.0 | P39: 0.0 | Q39: 0.0 | R39: 0.0 | S39: 0.0 | T39: 35.00 | U39: 0.00 | V39: 5.20 | W39: 0.00 | X39: 1.01 | Y39: 0.00 | Z39: 0.00 | AA39: 0.00 | AB39: 0.00 | AC39: 0.00 | AD39: 0.00 | AE39: 0.00 | AF39: 0.00 | AG39: 0.00 | AH39: 0.00 | AI39: 0.00 | AJ39: 0.00 | AK39: 5 | AL39: 5 | AM39: 0.00 | AN39: 0.00 | AO39: 0.00 | AP39: 0.00 | AQ39: 0.00 | AR39: 0.00 | AS39: INRA table 2002
A40: Pea (white) | C40: Legume seeds | D40: 87.5 | E40: 20.7 | F40: 6.1 | G40: 1.2 | H40: 3.0 | I40: 1.51 | J40: 0.79 | K40: 0.20 | L40: 0.48 | M40: 0.18 | N40: 0.28 | O40: 14.3 | P40: 3.8 | Q40: 24.8 | R40: 47.3 | S40: 8.8 | T40: 0.11 | U40: 0.43 | V40: 0.00 | W40: 2.0 | X40: 0.11 | Y40: 0.99 | Z40: 13.93 | AA40: 10.00 | AB40: 0.00 | AC40: 13.26 | AD40: 3170 | AE40: 9.71 | AF40: 2320 | AG40: 14.48 | AH40: 3460 | AI40: 9.83 | AJ40: 2350 | AK40: 10 | AL40: 15 | AM40: 1.25 | AN40: 0.60 | AO40: 0.16 | AP40: 0.20 | AQ40: 0.36 | AR40: 0.13 | AS40: Organic table (ITAB &AFZ)
A41: Rape oil | C41: Oil | D41: 99.9 | E41: 0.0 | F41: 0.0 | G41: 99.6 | H41: 0.2 | I41: 0.00 | J41: 0.00 | K41: 0.00 | L41: 0.00 | M41: 0.00 | N41: 0.00 | O41: 4.8 | P41: 1.6 | Q41: 59.9 | R41: 20.4 | S41: 9.2 | T41: 0.00 | U41: 0.00 | V41: 0.01 | W41: 0.00 | X41: 0.00 | Y41: 0.00 | Z41: 33.31 | AA41: 33.31 | AB41: 0.00 | AC41: 33.14 | AD41: 7920 | AE41: 29.67 | AF41: 7090 | AG41: 33.10 | AH41: 7910 | AI41: 29.67 | AJ41: 7090 | AK41: 0 | AL41: 4 | AM41: 0.00 | AN41: 0.00 | AO41: 0.00 | AP41: 0.00 | AQ41: 0.00 | AR41: 0.00 | AS41: INRA feed table 2002
A42: Rapeseed | C42: Legume seeds | D42: 92.4 | E42: 18.7 | F42: 8.5 | G42: 44.0 | H42: 4.0 | I42: 1.16 | J42: 0.89 | K42: 0.41 | L42: 0.88 | M42: 0.24 | N42: 0.47 | O42: 4.8 | P42: 1.6 | Q42: 59.9 | R42: 20.4 | S42: 9.2 | T42: 0.45 | U42: 0.67 | V42: 0.01 | W42: 4.7 | X42: 0.24 | Y42: 0.78 | Z42: 22.09 | AA42: 22.59 | AB42: 2 | AC42: 21.46 | AD42: 5130 | AE42: 17.11 | AF42: 4090 | AG42: 21.84 | AH42: 5220 | AI42: 17.49 | AJ42: 4180 | AK42: 7 | AL42: 5 | AM42: 0.90 | AN42: 0.63 | AO42: 0.33 | AP42: 0.37 | AQ42: 0.70 | AR42: 0.18 | AS42: INRA feed table 2002
A43: Rapeseed cake (low fat) | C43: Oilseeds (Cake) | D43: 90.4 | E43: 33.4 | F43: 7.4 | G43: 12.8 | H43: 4.8 | I43: 1.31 | J43: 1.27 | K43: 0.63 | L43: 1.24 | M43: 0.50 | N43: 0.62 | O43: 5.6 | P43: 4.4 | Q43: 20.2 | R43: 14.7 | S43: 53.8 | T43: 0.39 | U43: 0.84 | V43: 0.06 | W43: 5.5 | X43: 0.47 | Y43: 1.16 | Z43: 15.86 | AA43: 16.32 | AB43: 1 | AC43: 14.77 | AD43: 3530 | AE43: 10.29 | AF43: 2460 | AG43: 15.06 | AH43: 3600 | AI43: 10.59 | AJ43: 2530 | AK43: 0.00 | AL43: 10 | AM43: 1.02 | AN43: 0.99 | AO43: 0.57 | AP43: 0.48 | AQ43: 1.05 | AR43: 0.43 | AS43: Organic table (ITAB &AFZ)
A44: Rapeseed meal, oil > 5% | C44: Legume seeds | D44: 91.5 | E44: 29.7 | F44: 11.5 | G44: 14.2 | H44: 6.3 | I44: 1.64 | J44: 1.30 | K44: 0.60 | L44: 1.32 | M44: 0.37 | N44: 0.72 | O44: 4.7 | P44: 1.6 | Q44: 60.4 | R44: 20.0 | S44: 9.2 | T44: 0.75 | U44: 1.09 | V44: 0.05 | W44: 6.5 | X44: 0.48 | Y44: 1.14 | Z44: 14.27 | AA44: 15.06 | AB44: 0.00 | AC44: 13.39 | AD44: 3200 | AE44: 9.41 | AF44: 2250 | AG44: 14.02 | AH44: 3350 | AI44: 9.87 | AJ44: 2360 | AK44: 0.00 | AL44: 10 | AM44: 1.26 | AN44: 0.99 | AO44: 0.54 | AP44: 0.58 | AQ44: 1.11 | AR44: 0.25 | AS44: Organic table (ITAB &AFZ)
A45: Red clover fresh | C45: ndividual component with low DM | D45: 27.1 | E45: 13.7 | F45: 28.3 | G45: 3.7 | H45: 13.0 | I45: 0.38 | J45: 0.31 | K45: 0.07 | L45: 0.00 | M45: 0.00 | N45: 0.00 | O45: 0.0 | P45: 0.0 | Q45: 0.0 | R45: 0.0 | S45: 0.0 | T45: 0.91 | U45: 0.26 | V45: 0.03 | W45: 0.0 | X45: 0.21 | Y45: 3.41 | Z45: 7.20 | AA45: 0.00 | AB45: 0.00 | AC45: 6.70 | AD45: 0.00 | AE45: 4.00 | AF45: 0.00 | AG45: 7.90 | AH45: 0.00 | AI45: 4.80 | AJ45: 0.00 | AK45: 0.00 | AL45: 0.00 | AM45: 0.27 | AN45: 0.22 | AO45: 0.13 | AP45: 0.03 | AQ45: 0.00 | AR45: 0.00 | AS45: ICOPP MTT
A46: Rice protein concentrate | C46: Other plant product | D46: 94.8 | E46: 46.5 | F46: 1.2 | G46: 3.6 | H46: 2.3 | I46: 1.47 | J46: 1.69 | K46: 1.33 | L46: 2.35 | M46: 0.62 | N46: 1.0 | O46: 18.8 | P46: 2.1 | Q46: 39.9 | R46: 35.8 | S46: 1.5 | T46: 0.10 | U46: 0.45 | V46: 0.10 | W46: 3.9 | X46: 0.04 | Y46: 0.02 | Z46: 16.86 | AA46: 17.28 | AB46: 0.00 | AC46: 15.40 | AD46: 3680 | AE46: 9.75 | AF46: 2330 | AG46: 15.52 | AH46: 3710 | AI46: 10.08 | AJ46: 2410 | AK46: 0.00 | AL46: 0.00 | AM46: 0.00 | AN46: 0.00 | AO46: 0.00 | AP46: 0.00 | AQ46: 0.00 | AR46: 0.00 | AS46: Organic table (ITAB &AFZ)
A47: Pea (coloured) | C47: Legume seeds | D47: 86.1 | E47: 21.0 | F47: 6.2 | G47: 1.3 | H47: 2.7 | I47: 1.52 | J47: 0.79 | K47: 0.20 | L47: 0.48 | M47: 0.18 | N47: 0.28 | O47: 14.3 | P47: 3.8 | Q47: 24.8 | R47: 47.3 | S47: 8.8 | T47: 0.22 | U47: 0.42 | V47: 0.00 | W47: 1.9 | X47: 0.15 | Y47: 0.99 | Z47: 13.72 | AA47: 9.83 | AB47: 2 | AC47: 13.10 | AD47: 3130 | AE47: 9.50 | AF47: 2270 | AG47: 13.56 | AH47: 3240 | AI47: 9.83 | AJ47: 2350 | AK47: 10 | AL47: 15 | AM47: 1.16 | AN47: 0.53 | AO47: 0.12 | AP47: 0.20 | AQ47: 0.32 | AR47: 0.11 | AS47: Organic table (ITAB &AFZ)
A48: Rye | B48: Seigle | C48: Cereals | D48: 84.2 | E48: 9.3 | F48: 2.1 | G48: 1.1 | H48: 1.7 | I48: 0.35 | J48: 0.32 | K48: 0.15 | L48: 0.36 | M48: 0.08 | N48: 0.21 | O48: 14.9 | P48: 0.8 | Q48: 18.1 | R48: 57.7 | S48: 7.1 | T48: 0.06 | U48: 0.29 | V48: 0.03 | W48: 1.9 | X48: 0.10 | Y48: 0.44 | Z48: 12.76 | AA48: 13.05 | AB48: 0.9 | AC48: 12.34 | AD48: 2950 | AE48: 9.50 | AF48: 2270 | AG48: 12.55 | AH48: 3000 | AI48: 9.71 | AJ48: 2320 | AK48: 0 | AL48: 50 | AM48: 0.25 | AN48: 0.22 | AO48: 0.12 | AP48: 0.18 | AQ48: 0.30 | AR48: 0.06 | AS48: Organic table (ITAB &AFZ)
A49: Sainfoin | C49: Legume seeds | D49: 93.4 | E49: 31.2 | F49: 19.4 | G49: 6.9 | H49: 5.1 | I49: 0.53 | J49: 0.35 | K49: 0.18 | L49: =0.35+0.18 -> 0.53 | M49: 0.00 | N49: 0.13 | O49: 7.4 | P49: 3.1 | Q49: 25.0 | R49: 18.8 | S49: 41.3 | T49: 0.76 | U49: 0.55 | V49: 0.00 | W49: 6.2 | X49: 0.18 | Y49: 1.09 | Z49: 13.90 | AA49: 14.70 | AB49: 0.00 | AC49: 13.10 | AD49: =Swine5[[#This Row],[ME growing pig Mj/kg ]]*239 -> 3130.9 | AE49: 9.10 | AF49: =Swine5[[#This Row],[NE growing pig Mj/kg ]]*239 -> 2174.9 | AG49: 13.80 | AH49: =Swine5[[#This Row],[ME pig adult Mj/kg ]]*239 -> 3298.2 | AI49: 9.50 | AJ49: =Swine5[[#This Row],[NE pig adult Mj/kg ]]*239 -> 2270.5 | AK49: 10 | AL49: 20 | AM49: 1.45 | AN49: 0.00 | AO49: 0.00 | AP49: 0.00 | AQ49: 0.00 | AR49: 0.00 | AS49: Tarasenko N. A, Butina E. A, Gerasimenko E. O. Peculiarities of chemical composition of sainfoin seeds powder. Orient J Chem 2015;31(3) and ICOPP MTT
A50: Sesame oil meal, oil > 5% | C50: Oilseeds (Cake) | D50: 93.6 | E50: 43.2 | F50: 6.6 | G50: 14.3 | H50: 8.6 | I50: 1.01 | J50: 1.28 | K50: 1.11 | L50: 1.88 | M50: 0.48 | N50: 0.8 | O50: 8.8 | P50: 4.9 | Q50: 38.9 | R50: 43.7 | S50: 0.4 | T50: 1.87 | U50: 1.15 | V50: 0.01 | W50: 8.6 | X50: 0.56 | Y50: 0.97 | Z50: 16.03 | AA50: 16.57 | AB50: 3.3 | AC50: 14.77 | AD50: 3530 | AE50: 10.21 | AF50: 2440 | AG50: 15.19 | AH50: 3630 | AI50: 10.50 | AJ50: 2510 | AK50: 5 | AL50: 10 | AM50: 0.00 | AN50: 0.00 | AO50: 0.00 | AP50: 0.00 | AQ50: 0.00 | AR50: 0.00 | AS50: Organic table (ITAB &AFZ)
A51: Sodium chlorite | C51: Minerals | D51: 99.6 | E51: 0.0 | F51: 0.0 | G51: 0.0 | H51: 99.3 | I51: 0.00 | J51: 0.00 | K51: 0.00 | L51: 0.00 | M51: 0.00 | N51: 0.00 | O51: 0.0 | P51: 0.0 | Q51: 0.0 | R51: 0.0 | S51: 0.0 | T51: 0.00 | U51: 0.00 | V51: 38.00 | X51: 0.00 | Y51: 0.00 | Z51: 0.00 | AA51: 0.00 | AB51: 0.00 | AC51: 0.00 | AD51: 0.00 | AE51: 0.00 | AF51: 0.00 | AG51: 0.00 | AH51: 0.00 | AI51: 0.00 | AJ51: 0.00 | AK51: 5 | AL51: 5 | AM51: 0.00 | AN51: 0.00 | AO51: 0.00 | AP51: 0.00 | AQ51: 0.00 | AR51: 0.00 | AS51: Organic table (ITAB &AFZ)
A52: Sorghum | B52: Sorghum | C52: Cereals | D52: 87.7 | E52: 9.0 | F52: 3.5 | G52: 2.9 | H52: 1.9 | I52: 2.20 | J52: 3.00 | K52: 1.50 | L52: 3.20 | M52: 0.90 | N52: 1.70 | O52: 14.3 | P52: 1.7 | Q52: 38.2 | R52: 42.2 | S52: 1.8 | T52: 0.03 | U52: 0.30 | V52: 0.02 | W52: 2.1 | X52: 0.15 | Y52: 0.36 | Z52: 14.23 | AA52: 14.52 | AB52: 0.8 | AC52: 13.89 | AD52: 3320 | AE52: 10.92 | AF52: 2610 | AG52: 14.10 | AH52: 3370 | AI52: 11.09 | AJ52: 2650 | AK52: 40 | AL52: 80 | AM52: 0.16 | AN52: 0.22 | AO52: 0.13 | AP52: 0.13 | AQ52: 0.26 | AR52: 0.07 | AS52: Organic table (ITAB &AFZ)
A53: Soya bean | C53: Legume seeds | D53: 88.2 | E53: 35.7 | F53: 6.3 | G53: 18.6 | H53: 4.6 | I53: 2.22 | J53: 1.44 | K53: 0.52 | L53: 1.04 | M53: 0.45 | N53: 0.53 | O53: 11.2 | P53: 3.8 | Q53: 23.1 | R53: 54.0 | S53: 7.2 | T53: 0.29 | U53: 0.54 | V53: 0.01 | W53: 3.3 | X53: 0.20 | Y53: 1.66 | Z53: 20.30 | AA53: 0.00 | AB53: 0.00 | AC53: 19.30 | AD53: =239*Swine5[[#This Row],[ME growing pig Mj/kg ]] -> 4612.7 | AE53: 14.00 | AF53: =Swine5[[#This Row],[NE growing pig Mj/kg ]]*239 -> 3346 | AG53: 0.00 | AH53: 0 | AI53: 0.00 | AJ53: 0 | AK53: 15 | AL53: 10 | AM53: 1.27 | AN53: 0.71 | AO53: 0.32 | AP53: 0.18 | AQ53: 0.50 | AR53: 0.13 | AS53: Organic table (ITAB &AFZ)
A54: Soya bean thermically treated | C54: Legume seeds | D54: 90.7 | E54: 37.6 | F54: 4.2 | G54: 17.5 | H54: 5.2 | I54: 2.34 | J54: 1.51 | K54: 0.54 | L54: 1.10 | M54: 0.48 | N54: 0.56 | O54: 11.2 | P54: 3.8 | Q54: 23.1 | R54: 54.0 | S54: 7.2 | T54: 0.30 | U54: 0.55 | V54: 0.01 | W54: 3.3 | X54: 0.23 | Y54: 1.83 | Z54: 16.28 | AA54: 17.70 | AB54: 1.8 | AC54: 15.27 | AD54: 3650 | AE54: 11.09 | AF54: 2650 | AG54: 16.49 | AH54: 3940 | AI54: 11.88 | AJ54: 2840 | AK54: 15 | AL54: 10 | AM54: 1.84 | AN54: 1.14 | AO54: 0.42 | AP54: 0.42 | AQ54: 0.84 | AR54: 0.40 | AS54: Organic table (ITAB &AFZ)
A55: Soya bean toasted | C55: Legume seeds | D55: 88.6. | E55: 35.7 | F55: 5.8 | G55: 19.7 | H55: 4.9 | I55: 2.22 | J55: 1.44 | K55: 0.52 | L55: 1.04 | M55: 0.45 | N55: 0.53 | O55: 10.5 | P55: 3.8 | Q55: 21.7 | R55: 53.1 | S55: 7.4 | T55: 0.30 | U55: 0.53 | V55: 0.01 | W55: 3.2 | X55: 0.22 | Y55: 1.75 | Z55: 16.40 | AA55: 17.78 | AB55: 1.7 | AC55: 15.44 | AD55: 3690 | AE55: 11.34 | AF55: 2710 | AG55: 16.65 | AH55: 3980 | AI55: 12.13 | AJ55: 2900 | AK55: 15 | AL55: 10 | AM55: 1.75 | AN55: 1.09 | AO55: 0.40 | AP55: 0.40 | AQ55: 0.80 | AR55: 0.38 | AS55: INRA feed table 2002
A56: Soya oil | C56: Oil | D56: 99.8 | E56: 0.0 | F56: 0.0 | G56: 99.7 | H56: 0.0 | I56: 0.00 | J56: 0.00 | K56: 0.00 | L56: 0.00 | M56: 0.00 | N56: 0.00 | O56: 10.5 | P56: 3.8 | Q56: 21.7 | R56: 53.1 | S56: 7.4 | T56: 0.00 | U56: 0.00 | V56: 0.01 | W56: 0.0 | X56: 0.00 | Y56: 0.02 | Z56: 33.26 | AA56: 33.26 | AB56: 0.00 | AC56: 33.10 | AD56: 7910 | AE56: 29.71 | AF56: 7100 | AG56: 33.05 | AH56: 7900 | AI56: 29.71 | AJ56: 7100 | AK56: 0.00 | AL56: 4 | AM56: 0.00 | AN56: 0.00 | AO56: 0.00 | AP56: 0.00 | AQ56: 0.00 | AR56: 0.00 | AS56: INRA feed table 2002
A57: Soyabean cake (high protein) | C57: Oilseeds (Cake) | D57: 94.4 | E57: 46.2 | F57: 5.9 | G57: 8.7 | H57: 6.2 | I57: 2.60 | J57: 1.79 | K57: 0.66 | L57: 1.38 | M57: 0.63 | N57: 0.71 | O57: 11.2 | P57: 3.8 | Q57: 23.1 | R57: 54.0 | S57: 7.2 | T57: 0.35 | U57: 0.66 | V57: 0.00 | W57: 3.9 | X57: 0.28 | Y57: 2.12 | Z57: 17.11 | AA57: 18.08 | AB57: 2.1 | AC57: 15.82 | AD57: 3780 | AE57: 10.33 | AF57: 2470 | AG57: 16.57 | AH57: 3960 | AI57: 10.96 | AJ57: 2620 | AK57: 10 | AL57: 25 | AM57: 2.35 | AN57: 1.56 | AO57: 0.60 | AP57: 0.62 | AQ57: 1.23 | AR57: 0.56 | AS57: Organic table (ITAB &AFZ)
A58: Soyabean cake (low protein) | C58: Oilseeds (Cake) | D58: 92.6 | E58: 42.0 | F58: 6.1 | G58: 8.9 | H58: 6.0 | I58: 2.37 | J58: 1.65 | K58: 0.60 | L58: 1.24 | M58: 0.56 | N58: 0.64 | O58: 11.2 | P58: 3.8 | Q58: 23.1 | R58: 54.0 | S58: 7.2 | T58: 0.34 | U58: 0.64 | V58: 0.00 | W58: 3.8 | X58: 0.27 | Y58: 2.05 | Z58: 16.65 | AA58: 17.62 | AB58: 2.0 | AC58: 15.44 | AD58: 3690 | AE58: 10.21 | AF58: 2440 | AG58: 16.19 | AH58: 3870 | AI58: 10.84 | AJ58: 2590 | AK58: 10 | AL58: 25 | AM58: 2.13 | AN58: 1.430000019 | AO58: 0.55 | AP58: 0.55 | AQ58: 1.1 | AR58: 0.5 | AS58: Organic table (ITAB &AFZ)
A59: Spelt organic | C59: Cereals | D59: 86.9 | E59: 9.9 | F59: 11.1 | G59: 1.3 | H59: 2.7 | I59: 3.00 | J59: 3.00 | K59: 1.60 | L59: 3.90 | M59: 1.20 | N59: 2.30 | O59: 17.8 | P59: 0.8 | Q59: 15.2 | R59: 56.4 | S59: 5.9 | T59: 0.08 | U59: 0.37 | V59: 0.01 | W59: 2.4 | X59: 0.16 | Y59: 0.19 | Z59: 7.53 | AA59: 8.74 | AB59: 0.00 | AC59: 7.32 | AD59: 1750 | AE59: 6.19 | AF59: 1480 | AG59: 8.49 | AH59: 2030 | AI59: 6.69 | AJ59: 1600 | AK59: 0.00 | AL59: 0.00 | AM59: 0.00 | AN59: 0.00 | AO59: 0.00 | AP59: 0.00 | AQ59: 0.00 | AR59: 0.00 | AS59: Organic table (ITAB &AFZ)
A60: Sunflower bean | C60: Legume seeds | D60: 93.6 | E60: 15.2 | F60: 14.4 | G60: 45.1 | H60: 3.1 | I60: 0.62 | J60: 0.58 | K60: 0.35 | L60: 0.61 | M60: 0.21 | N60: 0.27 | O60: 6.4 | P60: 4.3 | Q60: 20.2 | R60: 65.2 | S60: 0.3 | T60: 0.26 | U60: 0.51 | V60: 0.01 | W60: 4.3 | X60: 0.27 | Y60: 0.77 | Z60: 19.58 | AA60: 20.38 | AB60: 0.00 | AC60: 19.04 | AD60: 4550 | AE60: 15.90 | AF60: 3800 | AG60: 19.67 | AH60: 4700 | AI60: 16.19 | AJ60: 3870 | AK60: 0.00 | AL60: 0.00 | AM60: 0.00 | AN60: 0.00 | AO60: 0.00 | AP60: 0.00 | AQ60: 0.00 | AR60: 0 | AS60: Organic table (ITAB &AFZ)
A61: Sunflower cake (dehulled) | C61: Oilseeds (Cake) | D61: 93.8 | E61: 33.7 | F61: 18.5 | G61: 8.8 | H61: 6.2 | I61: 1.21 | J61: 1.22 | K61: 0.76 | L61: 1.32 | M61: 0.43 | N61: 0.57 | O61: 6.3 | P61: 4.3 | Q61: 20.3 | R61: 64.9 | S61: 0.3 | T61: 0.39 | U61: 0.99 | V61: 0.00 | W61: 8.4 | X61: 0.49 | Y61: 1.32 | Z61: 12.59 | AA61: 13.64 | AB61: 1.9 | AC61: 11.67 | AD61: 2790 | AE61: 7.66 | AF61: 1830 | AG61: 12.51 | AH61: 2990 | AI61: 8.16 | AJ61: 1950 | AK61: 5 | AL61: 20 | AM61: 1.00 | AN61: 0.99 | AO61: 0.69 | AP61: 0.47 | AQ61: 1.16 | AR61: 0.36 | AS61: INRA feed table 2002
A62: Sunflower cake (high protein) | C62: Oilseeds (Cake) | D62: 94.2 | E62: 33.3 | F62: 18.9 | G62: 8.6 | H62: 6.0 | I62: 1.20 | J62: 1.20 | K62: 0.75 | L62: 1.31 | M62: 0.42 | N62: 0.56 | O62: 6.4 | P62: 4.3 | Q62: 20.2 | R62: 65.2 | S62: 0.3 | T62: 0.39 | U62: 0.97 | V62: 0.01 | W62: 8.3 | X62: 0.48 | Y62: 1.41 | Z62: 12.55 | AA62: 13.60 | AB62: 1.8 | AC62: 11.63 | AD62: 2780 | AE62: 7.66 | AF62: 1830 | AG62: 12.47 | AH62: 2980 | AI62: 8.16 | AJ62: 1950 | AK62: 5 | AL62: 20 | AM62: 1 | AN62: 0.9899999619 | AO62: 0.6800000191 | AP62: 0.4599999905 | AQ62: 1.139999962 | AR62: 0.3599999905 | AS62: Organic table (ITAB &AFZ)
A63: Sunflower cake (low protein) | C63: Oilseeds (Cake) | D63: 92.3 | E63: 24.1 | F63: 24.6 | G63: 14.9 | H63: 5.3 | I63: 0.90 | J63: 0.89 | K63: 0.54 | L63: 0.96 | M63: 0.31 | N63: 0.41 | O63: 6.4 | P63: 4.3 | Q63: 20.2 | R63: 65.2 | S63: 0.3 | T63: 0.36 | U63: 0.85 | V63: 0.00 | W63: 7.2 | X63: 0.42 | Y63: 1.25 | Z63: 11.30 | AA63: 12.59 | AB63: 1.6 | AC63: 10.63 | AD63: 2540 | AE63: 7.62 | AF63: 1820 | AG63: 11.67 | AH63: 2790 | AI63: 8.16 | AJ63: 1950 | AK63: 5 | AL63: 20 | AM63: 0.69 | AN63: 0.65 | AO63: 0.4699999809 | AP63: 0.3 | AQ63: 0.7599999905 | AR63: 0.2400000095 | AS63: Organic table (ITAB &AFZ)
A64: Sunflower oil | C64: Oil | D64: 99.3 | E64: 0.0 | F64: 0.0 | G64: 99.5 | H64: 0.1 | I64: 0.00 | J64: 0.00 | K64: 0.00 | L64: 0.00 | M64: 0.00 | N64: 0.00 | O64: 6.3 | P64: 4.3 | Q64: 20.3 | R64: 64.9 | S64: 0.3 | T64: 0.00 | U64: 0.00 | V64: 0.01 | W64: 0.0 | X64: 0.00 | Y64: 0.00 | Z64: 33.10 | AA64: 33.10 | AB64: 0.00 | AC64: 32.93 | AD64: 7870 | AE64: 29.62 | AF64: 7080 | AG64: 32.89 | AH64: 7860 | AI64: 29.62 | AJ64: 7080 | AK64: 0.00 | AL64: 0.00 | AM64: 0.00 | AN64: 0.00 | AO64: 0.00 | AP64: 0.00 | AQ64: 0.00 | AR64: 0.00 | AS64: INRA feed table 2002
A65: Triticale 10,9% CP | B65: Triticale 10,9% MAT | C65: Cereals | D65: 87.0 | E65: 10.9 | F65: 2.9 | G65: 1.5 | H65: 1.7 | I65: 0.43 | J65: 0.36 | K65: 0.19 | L65: 0.47 | M65: 0.14 | N65: 0.29 | O65: 17.0 | P65: 0.9 | Q65: 13.5 | R65: 60.8 | S65: 7.1 | T65: 0.06 | U65: 0.33 | V65: 0.01 | W65: 2.5 | X65: 0.11 | Y65: 0.50 | Z65: 13.64 | AA65: 13.89 | AB65: 1.1 | AC65: 13.22 | AD65: 3160 | AE65: 10.29 | AF65: 2460 | AG65: 13.39 | AH65: 3200 | AI65: 10.42 | AJ65: 2490 | AK65: 30 | AL65: 50 | AM65: 0.33 | AN65: 0.27 | AO65: 0.16 | AP65: 0.24 | AQ65: 0.39 | AR65: 0.11 | AS65: Organic table (ITAB &AFZ)
A66: Triticale 7,9% CP | B66: Triticale 7,9% MAT | C66: Cereals | D66: 87.0 | E66: 7.9 | F66: 2.9 | G66: 1.5 | H66: 1.7 | I66: 0.31 | J66: 0.26 | K66: 0.14 | L66: 0.34 | M66: 0.10 | N66: 0.21 | O66: 17.0 | P66: 0.9 | Q66: 13.5 | R66: 60.8 | S66: 7.1 | T66: 0.06 | U66: 0.33 | V66: 0.01 | W66: 2.5 | X66: 0.11 | Y66: 0.50 | Z66: 13.39 | AA66: 13.72 | AB66: 1.1 | AC66: 13.14 | AD66: 3140 | AE66: 10.08 | AF66: 2410 | AG66: 13.31 | AH66: 3180 | AI66: 10.21 | AJ66: 2440 | AK66: 30 | AL66: 50 | AM66: 0.33 | AN66: 0.27 | AO66: 0.16 | AP66: 0.24 | AQ66: 0.39 | AR66: 0.11 | AS66: Organic table (ITAB &AFZ)
A67: Triticale 8,9% CP | B67: Triticale 8,9% MAT | C67: Cereals | D67: 87.0 | E67: 8.9 | F67: 2.9 | G67: 1.5 | H67: 1.7 | I67: 0.35 | J67: 0.30 | K67: 0.15 | L67: 0.39 | M67: 0.12 | N67: 0.23 | O67: 17.0 | P67: 0.9 | Q67: 13.5 | R67: 60.8 | S67: 7.1 | T67: 0.06 | U67: 0.33 | V67: 0.01 | W67: 2.5 | X67: 0.11 | Y67: 0.50 | Z67: 13.56 | AA67: 13.81 | AB67: 1.1 | AC67: 13.18 | AD67: 3150 | AE67: 10.29 | AF67: 2460 | AG67: 13.35 | AH67: 3190 | AI67: 10.38 | AJ67: 2480 | AK67: 30 | AL67: 50 | AM67: 0.33 | AN67: 0.27 | AO67: 0.16 | AP67: 0.24 | AQ67: 0.39 | AR67: 0.11 | AS67: Organic table (ITAB &AFZ)
A68: Triticale 9,9% CP | B68: Triticale 9,9% MAT | C68: Cereals | D68: 87.0 | E68: 9.9 | F68: 2.9 | G68: 1.5 | H68: 1.7 | I68: 0.39 | J68: 0.33 | K68: 0.17 | L68: 0.43 | M68: 0.13 | N68: 0.26 | O68: 17.0 | P68: 0.9 | Q68: 13.5 | R68: 60.8 | S68: 7.1 | T68: 0.06 | U68: 0.33 | V68: 0.01 | W68: 2.5 | X68: 0.11 | Y68: 0.50 | Z68: 13.35 | AA68: 13.64 | AB68: 1.1 | AC68: 12.97 | AD68: 3100 | AE68: 10.17 | AF68: 2430 | AG68: 13.18 | AH68: 3150 | AI68: 10.29 | AJ68: 2460 | AK68: 30 | AL68: 50 | AM68: 0.33 | AN68: 0.27 | AO68: 0.16 | AP68: 0.24 | AQ68: 0.39 | AR68: 0.11 | AS68: Organic table (ITAB &AFZ)
A69: Vetch common | C69: Legume seeds | D69: 90.9 | E69: 27.2 | F69: 5.9 | G69: 1.0 | H69: 2.9 | I69: 1.75 | J69: 1.02 | K69: 0.22 | L69: 0.66 | M69: 0.24 | N69: 0.4 | O69: 19.9 | P69: 4.8 | Q69: 8.9 | R69: 61.5 | S69: 2.6 | T69: 0.43 | U69: 0.19 | V69: 0.00 | W69: 0.2 | X69: 0.14 | Y69: 0.96 | Z69: 13.89 | AA69: 14.31 | AB69: 0.00 | AC69: 13.05 | AD69: 3120 | AE69: 9.58 | AF69: 2290 | AG69: 13.47 | AH69: 3220 | AI69: 9.75 | AJ69: 2330 | AK69: 10 | AL69: 20 | AM69: 0.00 | AN69: 0.00 | AO69: 0.00 | AP69: 0.00 | AQ69: 0.00 | AR69: 0.00 | AS69: Organic table (ITAB &AFZ)
A70: Wheat 10,5% CP | B70: Blé tendre 10,5% MAT | C70: Cereals | D70: 86.9 | E70: 10.9 | F70: 2.4 | G70: 1.4 | H70: 1.5 | I70: 0.31 | J70: 0.33 | K70: 0.18 | L70: 0.42 | M70: 0.13 | N70: 0.25 | O70: 1.8 | P70: 0.1 | Q70: 1.6 | R70: 5.8 | S70: 0.6 | T70: 0.06 | U70: 0.31 | V70: 0.01 | W70: 2.0 | X70: 0.10 | Y70: 0.40 | Z70: 13.72 | AA70: 14.02 | AB70: 1.4 | AC70: 13.31 | AD70: 3180 | AE70: 10.42 | AF70: 2490 | AG70: 13.51 | AH70: 3230 | AI70: 10.54 | AJ70: 2520 | AK70: 50 | AL70: 50 | AM70: 0.25 | AN70: 0.28 | AO70: 0.16 | AP70: 0.22 | AQ70: 0.38 | AR70: 0.12 | AS70: Organic table (ITAB &AFZ)
A71: Wheat 11,5% CP | B71: Blé tendre 11,5% MAT | C71: Cereals | D71: 86.9 | E71: 11.5 | F71: 2.4 | G71: 1.4 | H71: 1.5 | I71: 0.34 | J71: 0.36 | K71: 0.20 | L71: 0.46 | M71: 0.14 | N71: 0.27 | O71: 1.8 | P71: 0.1 | Q71: 1.6 | R71: 5.8 | S71: 0.6 | T71: 0.06 | U71: 0.31 | V71: 0.01 | W71: 2.0 | X71: 0.10 | Y71: 0.40 | Z71: 13.89 | AA71: 14.14 | AB71: 1.4 | AC71: 13.47 | AD71: 3220 | AE71: 10.46 | AF71: 2500 | AG71: 13.64 | AH71: 3260 | AI71: 10.54 | AJ71: 2520 | AK71: 50 | AL71: 50 | AM71: 0.25 | AN71: 0.28 | AO71: 0.16 | AP71: 0.22 | AQ71: 0.38 | AR71: 0.12 | AS71: Organic table (ITAB &AFZ)
A72: Wheat 9,5% CP | B72: Blé tendre 9,5% MAT | C72: Cereals | D72: 86.9 | E72: 9.5 | F72: 2.4 | G72: 1.4 | H72: 1.5 | I72: 0.28 | J72: 0.30 | K72: 0.16 | L72: 0.38 | M72: 0.12 | N72: 0.23 | O72: 1.8 | P72: 0.1 | Q72: 1.6 | R72: 5.8 | S72: 0.6 | T72: 0.06 | U72: 0.31 | V72: 0.01 | W72: 2.0 | X72: 0.10 | Y72: 0.40 | Z72: 13.81 | AA72: 14.52 | AB72: 1.4 | AC72: 13.39 | AD72: 3200 | AE72: 10.46 | AF72: 2500 | AG72: 13.60 | AH72: 3250 | AI72: 10.63 | AJ72: 2540 | AK72: 50 | AL72: 50 | AM72: 0.25 | AN72: 0.28 | AO72: 0.16 | AP72: 0.22 | AQ72: 0.38 | AR72: 0.12 | AS72: Organic table (ITAB &AFZ)
A73: Wheat bran | C73: Wheat by-products | D73: 87.5 | E73: 10.5 | F73: 2.6 | G73: 1.6 | H73: 1.6 | I73: 0.31 | J73: 0.32 | K73: 0.17 | L73: 0.41 | M73: 0.13 | N73: 0.24 | O73: 17.8 | P73: 0.8 | Q73: 15.2 | R73: 56.4 | S73: 5.9 | T73: 0.06 | U73: 0.32 | V73: 0.01 | W73: 2.1 | X73: 0.10 | Y73: 0.40 | Z73: 13.72 | AA73: 14.02 | AB73: 4.8 | AC73: 13.31 | AD73: 3180 | AE73: 10.42 | AF73: 2490 | AG73: 13.51 | AH73: 3230 | AI73: 6.70 | AJ73: 1600 | AK73: 5 | AL73: 10 | AM73: 0.25 | AN73: 0.2700000048 | AO73: 0.15 | AP73: 0.2200000048 | AQ73: 0.3700000048 | AR73: 0.1100000024 | AS73: Organic table (ITAB &AFZ)
A74: Wheat middlings, all types except durum, organic | C74: Wheat by-products | D74: 86.6 | E74: 15.2 | F74: 6.6 | G74: 3.9 | H74: 4.4 | I74: 0.60 | J74: 0.49 | K74: 0.23 | L74: 0.54 | M74: 0.20 | N74: 0.31 | O74: 17.8 | P74: 0.8 | Q74: 15.2 | R74: 56.4 | S74: 5.9 | T74: 0.11 | U74: 0.88 | V74: 0.01 | W74: 7.0 | X74: 0.35 | Y74: 1.09 | Z74: 11.21 | AA74: 11.92 | AB74: 0.00 | AC74: 10.75 | AD74: 2570 | AE74: 7.95 | AF74: 1900 | AG74: 11.34 | AH74: 2710 | AI74: 8.33 | AJ74: 1990 | AK74: 0.00 | AL74: 0.00 | AM74: 0.46 | AN74: 0.36 | AO74: 0.19 | AP74: 0.24 | AQ74: 0.43 | AR74: 0.16 | AS74: Organic table (ITAB &AFZ)
A75: Whey (liquid) | C75: 9.Individual component with low DM | D75: 6.9 | E75: 0.9 | F75: 5.0 | G75: 0.00 | H75: 0.7 | I75: 0.00 | J75: 0.00 | K75: 0.00 | L75: 0.00 | M75: 0.00 | N75: 0.00 | O75: 0.0 | P75: 0.0 | Q75: 0.0 | R75: 0.0 | S75: 0.0 | T75: 0.01 | U75: 0.00 | V75: 0.00 | W75: 0.00 | X75: 0.00 | Y75: 0.00 | Z75: 0.00 | AA75: 0.00 | AB75: 0.00 | AC75: 0.00 | AD75: 0.00 | AE75: 0.00 | AF75: 0.00 | AG75: 0.00 | AH75: 0.00 | AI75: 0.00 | AJ75: 0.00 | AK75: 0.00 | AL75: 0.00 | AM75: 0.00 | AN75: 0.00 | AO75: 0.00 | AP75: 0.00 | AQ75: 0.00 | AR75: 0.00 | AS75: DAVID J. SCHINGOETHE 1975
A76: Whey dreid (Full fat) | C76: Dairy productcts | D76: 96.2 | E76: 13.3 | F76: 0.0 | G76: 18.8 | H76: 8.2 | I76: 0.99 | J76: 0.75 | K76: 0.20 | L76: 0.44 | M76: 0.19 | N76: 0.24 | O76: 52.4 | P76: 22.9 | Q76: 38.8 | R76: 7.2 | S76: 1.8 | T76: 0.81 | U76: 0.70 | V76: 0.63 | W76: 0.00 | X76: 0.00 | Y76: 2.06 | Z76: 18.41 | AA76: 18.41 | AB76: 6.3 | AC76: 17.91 | AD76: 4280 | AE76: 14.44 | AF76: 3450 | AG76: 17.87 | AH76: 4270 | AI76: 14.39 | AJ76: 3440 | AK76: 4 | AL76: 15 | AM76: 0.88 | AN76: 0.64 | AO76: 0.19 | AP76: 0.21 | AQ76: 0.40 | AR76: 0.16 | AS76: INRA feed table 2002
A77: Whey dried (low fat) | C77: Dairy productcts | D77: 95.7 | E77: 14.4 | F77: 0.0 | G77: 9.9 | H77: 8.5 | I77: 1.07 | J77: 0.82 | K77: 0.22 | L77: 0.48 | M77: 0.20 | N77: 0.26 | O77: 27.7 | P77: 12.1 | Q77: 20.5 | R77: 3.8 | S77: 0.9 | T77: 0.88 | U77: 0.72 | V77: 0.64 | W77: 0.00 | X77: 0.00 | Y77: 2.07 | Z77: 16.49 | AA77: 16.49 | AB77: 6.5 | AC77: 15.98 | AD77: 3820 | AE77: 12.59 | AF77: 3010 | AG77: 15.94 | AH77: 3810 | AI77: 12.55 | AJ77: 3000 | AK77: 4 | AL77: 15 | AM77: 0.95 | AN77: 0.70 | AO77: 0.20 | AP77: 0.23 | AQ77: 0..43 | AR77: 0.18 | AS77: INRA feed table 2002
A78: Whey, acid or sweet, dehydrated | C78: Dairy productcts | D78: 96.7 | E78: 11.8 | F78: 0.0 | G78: 2.5 | H78: 8.0 | I78: 0.88 | J78: 0.66 | K78: 0.18 | L78: 0.39 | M78: 0.16 | N78: 0.21 | O78: 29.3 | P78: 12.8 | Q78: 21.7 | R78: 4.0 | S78: 1.0 | T78: 0.77 | U78: 0.68 | V78: 0.63 | W78: 0.0 | X78: 0.15 | Y78: 2.07 | Z78: 15.36 | AA78: 15.36 | AB78: 0.00 | AC78: 14.90 | AD78: 3560 | AE78: 11.76 | AF78: 2810 | AG78: 14.85 | AH78: 3550 | AI78: 11.72 | AJ78: 2800 | AK78: 4 | AL78: 15 | AM78: 0.79 | AN78: 0.56 | AO78: 0.16 | AP78: 0.19 | AQ78: 0.35 | AR78: 0.14 | AS78: Organic table (ITAB &AFZ)
A79: White Lupine | C79: Legume seeds | D79: 87.5 | E79: 32.9 | F79: 11.8 | G79: 6.7 | H79: 3.4 | I79: 1.61 | J79: 1.23 | K79: 0.26 | L79: 0.81 | M79: 0.23 | N79: 0.55 | O79: 7.4 | P79: 2.0 | Q79: 49.1 | R79: 14.7 | S79: 8.3 | T79: 0.26 | U79: 0.36 | V79: 0.03 | W79: 2.2 | X79: 0.14 | Y79: 0.97 | Z79: 14.56 | AA79: 15.48 | AB79: 1.8 | AC79: 13.56 | AD79: 3240 | AE79: 8.87 | AF79: 2120 | AG79: 14.23 | AH79: 3400 | AI79: 9.46 | AJ79: 2260 | AK79: 5 | AL79: 10 | AM79: 1.32 | AN79: 0.96 | AO79: 0.20 | AP79: 0.41 | AQ79: 0.61 | AR79: 0.00 | AS79: Organic table (ITAB &AFZ)
A80: White Lupine leaves | C80: Forage | D80: 20.2 | E80: 21.5 | F80: 23.5 | G80: 3.1 | H80: 8.0 | I80: 0.00 | J80: 0.00 | K80: 0.00 | L80: 0.00 | M80: 0.00 | N80: 0.00 | O80: 0.00 | P80: 0.00 | Q80: 0.00 | R80: 0.00 | S80: 0.00 | T80: 1.27 | U80: 0.26 | V80: 0.00 | W80: 0.00 | X80: 0.00 | Y80: 0.00 | Z80: 0.00 | AA80: 0.00 | AB80: 0.00 | AC80: 0.00 | AD80: 0.00 | AE80: 0.00 | AF80: 0.00 | AG80: 0.00 | AH80: 0.00 | AI80: 0.00 | AJ80: 0.00 | AK80: 10 | AL80: 15 | AM80: 0.00 | AN80: 0.00 | AO80: 0.00 | AP80: 0.00 | AQ80: 0.00 | AR80: 0.00 | AS80: Feedipedia
A81: Yeast dried | C81: Other plant product | D81: 93.3 | E81: 46.5 | F81: 1.8 | G81: 3.6 | H81: 7.1 | I81: 0.69 | J81: 0.39 | K81: 0.15 | L81: 0.48 | M81: 0.05 | N81: 0.33 | O81: 0.00 | P81: 0.00 | Q81: 0.00 | R81: 0.00 | S81: 0.00 | T81: 0.03 | U81: 1.31 | V81: 0.18 | W81: 0.00 | X81: 0.24 | Y81: 0.00 | Z81: 17.11 | AA81: 0.00 | AB81: 0.00 | AC81: 14.52 | AD81: 3470 | AE81: 10.42 | AF81: 2490 | AG81: 0.00 | AH81: 0.00 | AI81: 0.00 | AJ81: 0.00 | AK81: 5 | AL81: 10 | AM81: 0.00 | AN81: 0.00 | AO81: 0.00 | AP81: 0.00 | AQ81: 0.00 | AR81: 0.00 | AS81: French table and Feedipedia

Sheet Swine_needs
A1: Obj_reference | B1: Scénarios | C1: Swine requiment | D1: Type of animals to select inclusing levels | E1: Weight/Age | F1: ME objective (MJ or g/kg) | G1: ME Max | H1: NE objective (MJ or g/kg) | I1: NE max | J1: CP min | K1: Cp max | L1: Fiber Min | M1: Fiber max | N1: Fat min | O1: Fat Max | P1: Ca min | Q1: Ca max | R1: P min | S1: P max | T1: P avail | U1: Na min | V1: Na max | W1: Tot Lys min | X1: Tot Lys max | Y1: Lys Dig min | Z1: Lys Dig max | AA1: Met tot min | AB1: met tot max | AC1: Met Dig min | AD1: Met Dig Max | AE1: TRY tot min | AF1: Try tot max | AG1: Try Dig min | AH1: Try Dig max | AI1: Met+Cys tot min | AJ1: Met+Cys tot max | AK1: Met+Cys Dig min | AL1: Met+Cys Dig Max | AM1: Thr tot min | AN1: Thr tot max | AO1: Thr Dig min | AP1: Thr Dig max | AQ1: ME growing pigs min | AR1: ME growing pigs max | AS1: NE growing pigs min | AT1: NE growing pigs max
A2: =B2&"_"&C2 -> Pigs_2_Phasis_Grower | B2: Pigs_2_Phasis | C2: Grower | D2: Pigs and sows | E2: 35 - 70 kg | F2: 12.4 | G2: 13.9 | H2: 9.0 | I2: 10.5 | J2: 17.0 | K2: 18.5 | L2: 2.0 | M2: 3.5 | N2: 1.0 | O2: 2.5 | P2: 6.0 | Q2: 7.5 | R2: 4.0 | S2: 5.5 | T2: 2.3 | U2: 0.5 | V2: 2.0 | W2: 9.0 | X2: 10.5 | Y2: 7.7 | Z2: 8.9 | AA2: 2.7 | AB2: 3.2 | AC2: 2.3 | AD2: 2.7 | AE2: 1.7 | AF2: 2.0 | AG2: 1.5 | AH2: 1.7 | AI2: 5.9 | AJ2: 6.8 | AK2: 5.0 | AL2: 5.8 | AM2: 6.6 | AN2: 7.7 | AO2: 5.6 | AP2: 6.5 | AQ2: 0.0 | AR2: 100.0 | AS2: 0.0 | AT2: 100.0
A3: Pigs_2_Phasis_Weaners | B3: Pigs_2_Phasis | C3: Weaners | D3: Piglets | E3: < 35 kg | F3: 12.4 | G3: 13.9 | H3: 9.0 | I3: 10.5 | J3: 15.0 | K3: 16.5 | L3: 4.0 | M3: 5.5 | N3: 3.0 | O3: 4.5 | P3: 5.0 | Q3: 6.5 | R3: 4.0 | S3: 5.5 | T3: 3.2 | U3: 1.5 | V3: 3.0 | W3: 10.0 | X3: 11.5 | Y3: 8.5 | Z3: 9.8 | AA3: 3.0 | AB3: 3.5 | AC3: 2.6 | AD3: 2.9 | AE3: 1.9 | AF3: 2.2 | AG3: 1.6 | AH3: 1.9 | AI3: 6.5 | AJ3: 7.5 | AK3: 5.5 | AL3: 6.4 | AM3: 7.3 | AN3: 8.4 | AO3: 6.2 | AP3: 7.1 | AQ3: 0.0 | AR3: 100.0 | AS3: 0.0 | AT3: 100.0
A4: Pigs_3_Phasis_Weaners | B4: Pigs_3_Phasis | C4: Weaners | D4: Piglets | E4: < 35 kg | F4: 12.0 | G4: 13.5 | H4: 9.5 | I4: 11.0 | J4: 17.0 | K4: 18.5 | L4: 2.0 | M4: 3.5 | N4: 3.0 | O4: 4.5 | P4: 6.0 | Q4: 7.5 | R4: 5.0 | S4: 6.5 | T4: 3.2 | U4: 0.5 | V4: 2.0 | W4: 11.0 | X4: 12.5 | Y4: 9.4 | Z4: 10.6 | AA4: 3.3 | AB4: 3.8 | AC4: 2.8 | AD4: 3.2 | AE4: 2.1 | AF4: 2.4 | AG4: 1.8 | AH4: 2.0 | AI4: 7.2 | AJ4: 8.1 | AK4: 6.1 | AL4: 6.9 | AM4: 8.0 | AN4: 9.1 | AO4: 6.8 | AP4: 7.8 | AQ4: 0.0 | AR4: 100.0 | AS4: 0.0 | AT4: 100.0
A5: Pigs_3_Phasis_Grower | B5: Pigs_3_Phasis | C5: Grower | D5: Pigs and sows | E5: 35 - 70 kg | F5: 12.4 | G5: 13.9 | H5: 9.0 | I5: 10.5 | J5: 17.0 | K5: 18.5 | L5: 2.0 | M5: 3.5 | N5: 1.0 | O5: 2.5 | P5: 6.0 | Q5: 7.5 | R5: 4.0 | S5: 5.5 | T5: 2.3 | U5: 0.5 | V5: 2.0 | W5: 9.0 | X5: 10.5 | Y5: 7.7 | Z5: 8.9 | AA5: 2.7 | AB5: 3.2 | AC5: 2.3 | AD5: 2.7 | AE5: 1.7 | AF5: 2.0 | AG5: 1.5 | AH5: 1.7 | AI5: 5.9 | AJ5: 6.8 | AK5: 5.0 | AL5: 5.8 | AM5: 6.6 | AN5: 7.7 | AO5: 5.6 | AP5: 6.5 | AQ5: 0.0 | AR5: 100.0 | AS5: 0.0 | AT5: 100.0
A6: Pigs_3_Phasis_Finisher | B6: Pigs_3_Phasis | C6: Finisher | D6: Pigs and sows | E6: > 75 kg | F6: 11.6 | G6: 13.1 | H6: 8.5 | I6: 10.0 | J6: 13.0 | K6: 14.5 | L6: 3.0 | M6: 4.5 | N6: 1.0 | O6: 2.5 | P6: 4.0 | Q6: 5.5 | R6: 3.0 | S6: 4.5 | T6: 1.7 | U6: 0.0 | V6: 1.5 | W6: 6.5 | X6: 8.0 | Y6: 5.5 | Z6: 6.8 | AA6: 2.0 | AB6: 2.4 | AC6: 1.7 | AD6: 2.0 | AE6: 1.2 | AF6: 1.5 | AG6: 1.0 | AH6: 1.3 | AI6: 4.2 | AJ6: 5.2 | AK6: 3.6 | AL6: 4.4 | AM6: 4.7 | AN6: 5.8 | AO6: 4.0 | AP6: 5.0 | AQ6: 0.0 | AR6: 100.0 | AS6: 0.0 | AT6: 100.0
A7: Pigs_Fatteners_3_Phasis_Grower_1 | B7: Pigs_Fatteners_3_Phasis | C7: Grower_1 | D7: Pigs and sows | E7: 35 - 50 kg | F7: 12.4 | G7: 13.9 | H7: 9.0 | I7: 10.5 | J7: 17.0 | K7: 18.5 | L7: 2.0 | M7: 3.5 | N7: 1.0 | O7: 2.5 | P7: 6.0 | Q7: 7.5 | R7: 4.0 | S7: 5.5 | T7: 2.3 | U7: 0.5 | V7: 2.0 | W7: 9.0 | X7: 10.5 | Y7: 7.7 | Z7: 8.9 | AA7: 2.7 | AB7: 3.2 | AC7: 2.3 | AD7: 2.7 | AE7: 1.7 | AF7: 2.0 | AG7: 1.5 | AH7: 1.7 | AI7: 5.9 | AJ7: 6.8 | AK7: 5.0 | AL7: 5.8 | AM7: 6.6 | AN7: 7.7 | AO7: 5.6 | AP7: 6.5 | AQ7: 0.0 | AR7: 100.0 | AS7: 0.0 | AT7: 100.0
A8: Pigs_Fatteners_3_Phasis_Grower_2 | B8: Pigs_Fatteners_3_Phasis | C8: Grower_2 | D8: Pigs and sows | E8: 50 - 75 kg | F8: 12.0 | G8: 13.5 | H8: 8.5 | I8: 10.0 | J8: 15.0 | K8: 16.5 | L8: 2.0 | M8: 3.5 | N8: 1.0 | O8: 2.5 | P8: 5.0 | Q8: 6.5 | R8: 3.5 | S8: 5.0 | T8: 1.9 | U8: 0.5 | V8: 2.0 | W8: 8.0 | X8: 9.5 | Y8: 6.8 | Z8: 8.1 | AA8: 2.4 | AB8: 2.9 | AC8: 2.0 | AD8: 2.4 | AE8: 1.5 | AF8: 1.8 | AG8: 1.3 | AH8: 1.5 | AI8: 5.2 | AJ8: 6.2 | AK8: 4.4 | AL8: 5.2 | AM8: 5.8 | AN8: 6.9 | AO8: 5.0 | AP8: 5.9 | AQ8: 0.0 | AR8: 100.0 | AS8: 0.0 | AT8: 100.0
A9: Pigs_Fatteners_3_Phasis_Finisher | B9: Pigs_Fatteners_3_Phasis | C9: Finisher | D9: Pigs and sows | E9: > 75 kg | F9: 11.6 | G9: 13.1 | H9: 8.5 | I9: 10.0 | J9: 13.0 | K9: 14.5 | L9: 3.0 | M9: 4.5 | N9: 1.0 | O9: 2.5 | P9: 4.0 | Q9: 5.5 | R9: 3.0 | S9: 4.5 | T9: 1.7 | U9: 0.0 | V9: 1.5 | W9: 6.5 | X9: 8.0 | Y9: 5.5 | Z9: 6.8 | AA9: 2.0 | AB9: 2.4 | AC9: 1.7 | AD9: 2.0 | AE9: 1.2 | AF9: 1.5 | AG9: 1.0 | AH9: 1.3 | AI9: 4.2 | AJ9: 5.2 | AK9: 3.6 | AL9: 4.4 | AM9: 4.7 | AN9: 5.8 | AO9: 4.0 | AP9: 5.0 | AQ9: 0.0 | AR9: 100.0 | AS9: 0.0 | AT9: 100.0
A10: Multi-Phasis_Weaners | B10: Multi-Phasis | C10: Weaners | D10: Piglets | E10: < 35 kg | F10: 12.4 | G10: 13.9 | H10: 9.0 | I10: 10.5 | J10: 15.0 | K10: 16.5 | L10: 4.0 | M10: 5.5 | N10: 3.0 | O10: 4.5 | P10: 5.0 | Q10: 6.5 | R10: 4.0 | S10: 5.5 | T10: 3.2 | U10: 1.5 | V10: 3.0 | W10: 10.0 | X10: 11.5 | Y10: 8.5 | Z10: 9.8 | AA10: 3.0 | AB10: 3.5 | AC10: 2.6 | AD10: 2.9 | AE10: 1.9 | AF10: 2.2 | AG10: 1.6 | AH10: 1.9 | AI10: 6.5 | AJ10: 7.5 | AK10: 5.5 | AL10: 6.4 | AM10: 7.3 | AN10: 8.4 | AO10: 6.2 | AP10: 7.1 | AQ10: 0.0 | AR10: 100.0 | AS10: 0.0 | AT10: 100.0
A11: Multi-Phasis_Piglets | B11: Multi-Phasis | C11: Piglets | D11: Piglets | E11: < 35 kg | F11: 12.0 | G11: 13.5 | H11: 9.5 | I11: 11.0 | J11: 17.0 | K11: 18.5 | L11: 2.0 | M11: 3.5 | N11: 3.0 | O11: 4.5 | P11: 6.0 | Q11: 7.5 | R11: 5.0 | S11: 6.5 | T11: 3.2 | U11: 0.5 | V11: 2.0 | W11: 11.0 | X11: 10.5 | Y11: 9.4 | Z11: 8.9 | AA11: 3.3 | AB11: 3.2 | AC11: 2.8 | AD11: 2.7 | AE11: 2.1 | AF11: 2.0 | AG11: 1.8 | AH11: 1.7 | AI11: 7.2 | AJ11: 6.8 | AK11: 6.1 | AL11: 5.8 | AM11: 8.0 | AN11: 7.7 | AO11: 6.8 | AP11: 6.5 | AQ11: 0.0 | AR11: 100.0 | AS11: 0.0 | AT11: 100.0
A12: Multi-Phasis_Grower_1 | B12: Multi-Phasis | C12: Grower_1 | D12: Pigs and sows | E12: 35 - 50 kg | F12: 12.4 | G12: 13.9 | H12: 9.0 | I12: 10.5 | J12: 17.0 | K12: 18.5 | L12: 2.0 | M12: 3.5 | N12: 1.0 | O12: 2.5 | P12: 6.0 | Q12: 7.5 | R12: 4.0 | S12: 5.5 | T12: 2.3 | U12: 0.5 | V12: 2.0 | W12: 9.0 | X12: 10.5 | Y12: 7.7 | Z12: 8.9 | AA12: 2.7 | AB12: 3.2 | AC12: 2.3 | AD12: 2.7 | AE12: 1.7 | AF12: 2.0 | AG12: 1.5 | AH12: 1.7 | AI12: 5.9 | AJ12: 6.8 | AK12: 5.0 | AL12: 5.8 | AM12: 6.6 | AN12: 7.7 | AO12: 5.6 | AP12: 6.5 | AQ12: 0.0 | AR12: 100.0 | AS12: 0.0 | AT12: 100.0
A13: Multi-Phasis_Grower_2 | B13: Multi-Phasis | C13: Grower_2 | D13: Pigs and sows | E13: 50 - 75 kg | F13: 12.0 | G13: 13.5 | H13: 8.5 | I13: 10.0 | J13: 15.0 | K13: 16.5 | L13: 2.0 | M13: 3.5 | N13: 1.0 | O13: 2.5 | P13: 5.0 | Q13: 6.5 | R13: 3.5 | S13: 5.0 | T13: 1.9 | U13: 0.5 | V13: 2.0 | W13: 8.0 | X13: 9.5 | Y13: 6.8 | Z13: 8.1 | AA13: 2.4 | AB13: 2.9 | AC13: 2.0 | AD13: 2.4 | AE13: 1.5 | AF13: 1.8 | AG13: 1.3 | AH13: 1.5 | AI13: 5.2 | AJ13: 6.2 | AK13: 4.4 | AL13: 5.2 | AM13: 5.8 | AN13: 6.9 | AO13: 5.0 | AP13: 5.9 | AQ13: 0.0 | AR13: 100.0 | AS13: 0.0 | AT13: 100.0
A14: Multi-Phasis_Finisher | B14: Multi-Phasis | C14: Finisher | D14: Pigs and sows | E14: > 75 kg | F14: 11.6 | G14: 13.1 | H14: 8.5 | I14: 10.0 | J14: 13.0 | K14: 14.5 | L14: 3.0 | M14: 4.5 | N14: 1.0 | O14: 2.5 | P14: 4.0 | Q14: 5.5 | R14: 3.0 | S14: 4.5 | T14: 1.7 | U14: 0.0 | V14: 1.5 | W14: 6.5 | X14: 8.0 | Y14: 5.5 | Z14: 6.8 | AA14: 2.0 | AB14: 2.4 | AC14: 1.7 | AD14: 2.0 | AE14: 1.2 | AF14: 1.5 | AG14: 1.0 | AH14: 1.3 | AI14: 4.2 | AJ14: 5.2 | AK14: 3.6 | AL14: 4.4 | AM14: 4.7 | AN14: 5.8 | AO14: 4.0 | AP14: 5.0 | AQ14: 0.0 | AR14: 100.0 | AS14: 0.0 | AT14: 100.0
A15: Single_Feeding_Grower | B15: Single_Feeding | C15: Grower | D15: Pigs and sows | E15: > 30 Kg | F15: 12.4 | G15: 13.9 | H15: 9.0 | I15: 10.5 | J15: 17.0 | K15: 18.5 | L15: 2.0 | M15: 3.5 | N15: 1.0 | O15: 2.5 | P15: 6.0 | Q15: 7.5 | R15: 4.0 | S15: 5.5 | T15: 2.3 | U15: 0.5 | V15: 2.0 | W15: 9.0 | X15: 10.5 | Y15: 7.7 | Z15: 8.9 | AA15: 2.7 | AB15: 3.2 | AC15: 2.3 | AD15: 2.7 | AE15: 1.7 | AF15: 2.0 | AG15: 1.5 | AH15: 1.7 | AI15: 5.9 | AJ15: 6.8 | AK15: 5.0 | AL15: 5.8 | AM15: 6.6 | AN15: 7.7 | AO15: 5.6 | AP15: 6.5 | AQ15: 0.0 | AR15: 100.0 | AS15: 0.0 | AT15: 100.0
A16: Single_Feeding_Piglets | B16: Single_Feeding | C16: Piglets | D16: Piglets | E16: < 35 kg | F16: 12.0 | G16: 13.5 | H16: 9.5 | I16: 11.0 | J16: 17.0 | K16: 18.5 | L16: 2.0 | M16: 3.5 | N16: 3.0 | O16: 4.5 | P16: 6.0 | Q16: 7.5 | R16: 5.0 | S16: 6.5 | T16: 3.2 | U16: 0.5 | V16: 2.0 | W16: 11.0 | X16: 12.5 | Y16: 9.4 | Z16: 10.6 | AA16: 3.3 | AB16: 3.8 | AC16: 2.8 | AD16: 3.2 | AE16: 2.1 | AF16: 2.4 | AG16: 1.8 | AH16: 2.0 | AI16: 7.2 | AJ16: 8.1 | AK16: 6.1 | AL16: 6.9 | AM16: 8.0 | AN16: 9.1 | AO16: 6.8 | AP16: 7.8 | AQ16: 0.0 | AR16: 100.0 | AS16: 0.0 | AT16: 100.0
A17: Single_Feeding_Weaners | B17: Single_Feeding | C17: Weaners | D17: Piglets | E17: < 35 kg | F17: 12.4 | G17: 13.9 | H17: 9.0 | I17: 10.5 | J17: 15.0 | K17: 16.5 | L17: 4.0 | M17: 5.5 | N17: 3.0 | O17: 4.5 | P17: 5.0 | Q17: 6.5 | R17: 4.0 | S17: 5.5 | T17: 3.2 | U17: 1.5 | V17: 3.0 | W17: 10.0 | X17: 14.5 | Y17: 8.5 | Z17: 12.3 | AA17: 3.0 | AB17: 4.4 | AC17: 2.6 | AD17: 3.7 | AE17: 1.9 | AF17: 2.8 | AG17: 1.6 | AH17: 2.3 | AI17: 6.5 | AJ17: 9.4 | AK17: 5.5 | AL17: 8.0 | AM17: 7.3 | AN17: 10.6 | AO17: 6.2 | AP17: 9.0 | AQ17: 0.0 | AR17: 100.0 | AS17: 0.0 | AT17: 100.0
A18: Sow_Single_Feeding_Lactation | B18: Sow_Single_Feeding | C18: Lactation | D18: Pigs and sows | E18: lactation | F18: 12.2 | G18: 13.7 | H18: 8.5 | I18: 10.0 | J18: 17.5 | K18: 19.0 | L18: 2.5 | M18: 4.0 | N18: 4.0 | O18: 6.0 | P18: 7.0 | Q18: 8.5 | R18: 5.5 | S18: 7.0 | T18: 3.5 | U18: 1.0 | V18: 2.5 | W18: 8.0 | X18: 9.5 | Y18: 6.8 | Z18: 8.1 | AA18: 2.4 | AB18: 2.9 | AC18: 2.0 | AD18: 2.4 | AE18: 1.5 | AF18: 1.8 | AG18: 1.3 | AH18: 1.5 | AI18: 5.2 | AJ18: 6.2 | AK18: 4.4 | AL18: 5.2 | AM18: 5.8 | AN18: 6.9 | AO18: 5.0 | AP18: 5.9 | AQ18: 0.0 | AR18: 100.0 | AS18: 0.0 | AT18: 100.0
A19: Sows_2_Phasis_Gestation | B19: Sows_2_Phasis | C19: Gestation | D19: Pigs and sows | E19: gestation | F19: 11.0 | G19: 12.5 | H19: 8.1 | I19: 9.6 | J19: 12.0 | K19: 13.5 | L19: 7.0 | M19: 8.5 | N19: 1.0 | O19: 2.5 | P19: 5.0 | Q19: 6.5 | R19: 3.0 | S19: 4.5 | T19: 1.7 | U19: 1.0 | V19: 2.5 | W19: 5.0 | X19: 6.5 | Y19: 4.3 | Z19: 5.5 | AA19: 1.5 | AB19: 2.0 | AC19: 1.3 | AD19: 1.7 | AE19: 1.0 | AF19: 1.2 | AG19: 0.8 | AH19: 1.0 | AI19: 3.3 | AJ19: 4.2 | AK19: 2.8 | AL19: 3.6 | AM19: 3.7 | AN19: 4.7 | AO19: 3.1 | AP19: 4.0 | AQ19: 0.0 | AR19: 100.0 | AS19: 0.0 | AT19: 100.0
A20: Sows_2_Phasis_Lactation | B20: Sows_2_Phasis | C20: Lactation | D20: Pigs and sows | E20: lactation | F20: 12.2 | G20: 13.7 | H20: 8.5 | I20: 12.5 | J20: 17.5 | K20: 21.5 | L20: 2.5 | M20: 6.5 | N20: 4.0 | O20: 7.5 | P20: 7.0 | Q20: 10.5 | R20: 5.5 | S20: 9.5 | T20: 3.5 | U20: 1.0 | V20: 4.5 | W20: 8.0 | X20: 12.5 | Y20: 6.8 | Z20: 10.6 | AA20: 2.4 | AB20: 3.7 | AC20: 2.0 | AD20: 3.2 | AE20: 1.5 | AF20: 2.4 | AG20: 1.3 | AH20: 2.0 | AI20: 5.2 | AJ20: 8.1 | AK20: 4.4 | AL20: 6.9 | AM20: 5.8 | AN20: 9.1 | AO20: 5.0 | AP20: 7.7 | AQ20: 0.0 | AR20: 100.0 | AS20: 0.0 | AT20: 100.0
A21: Sows_4_Phasis_Early gestation | B21: Sows_4_Phasis | C21: Early gestation | D21: Pigs and sows | E21: < 3 weeks until farrowing | F21: 11.0 | G21: 12.5 | H21: 8.1 | I21: 9.6 | J21: 12.0 | K21: 13.5 | L21: 7.0 | M21: 8.5 | N21: 1.0 | O21: 2.5 | P21: 5.0 | Q21: 6.5 | R21: 3.0 | S21: 4.5 | T21: 1.7 | U21: 1.0 | V21: 2.5 | W21: 5.0 | X21: 6.5 | Y21: 4.3 | Z21: 5.5 | AA21: 1.5 | AB21: 2.0 | AC21: 1.3 | AD21: 1.7 | AE21: 1.0 | AF21: 1.2 | AG21: 0.8 | AH21: 1.0 | AI21: 3.3 | AJ21: 4.2 | AK21: 2.8 | AL21: 3.6 | AM21: 3.7 | AN21: 4.7 | AO21: 3.1 | AP21: 4.0 | AQ21: 0.0 | AR21: 100.0 | AS21: 0.0 | AT21: 100.0
A22: Sows_4_Phasis_Late gestation | B22: Sows_4_Phasis | C22: Late gestation | D22: Pigs and sows | E22: > 3 weeks until farrowing | F22: 11.0 | G22: 12.5 | H22: 8.1 | I22: 11.5 | J22: 12.0 | K22: 15.5 | L22: 7.0 | M22: 10.5 | N22: 1.0 | O22: 4.5 | P22: 5.0 | Q22: 8.5 | R22: 3.5 | S22: 7.5 | T22: 1.9 | U22: 1.0 | V22: 4.5 | W22: 5.0 | X22: 9.5 | Y22: 4.3 | Z22: 8.0 | AA22: 1.5 | AB22: 2.8 | AC22: 1.3 | AD22: 2.4 | AE22: 1.0 | AF22: 1.8 | AG22: 0.8 | AH22: 1.5 | AI22: 3.3 | AJ22: 6.1 | AK22: 2.8 | AL22: 5.2 | AM22: 3.7 | AN22: 6.9 | AO22: 3.1 | AP22: 5.9 | AQ22: 0.0 | AR22: 100.0 | AS22: 0.0 | AT22: 100.0
A23: Sows_4_Phasis_Early lactation | B23: Sows_4_Phasis | C23: Early lactation | D23: Pigs and sows | E23: < 3 weeks | F23: 11.8 | G23: 13.3 | H23: 8.5 | I23: 10.0 | J23: 16.5 | K23: 18.0 | L23: 3.0 | M23: 4.5 | N23: 4.0 | O23: 5.5 | P23: 6.5 | Q23: 8.0 | R23: 5.0 | S23: 6.5 | T23: 3.5 | U23: 1.0 | V23: 2.5 | W23: 7.5 | X23: 9.0 | Y23: 6.4 | Z23: 7.7 | AA23: 2.3 | AB23: 2.7 | AC23: 1.9 | AD23: 2.3 | AE23: 1.4 | AF23: 1.7 | AG23: 1.2 | AH23: 1.5 | AI23: 4.9 | AJ23: 5.9 | AK23: 4.1 | AL23: 5.0 | AM23: 5.5 | AN23: 6.6 | AO23: 4.7 | AP23: 5.6 | AQ23: 0.0 | AR23: 100.0 | AS23: 0.0 | AT23: 100.0
A24: Sows_4_Phasis_Late lactation | B24: Sows_4_Phasis | C24: Late lactation | D24: Pigs and sows | E24: > 3 weeks | F24: 12.2 | G24: 13.7 | H24: 8.5 | I24: 12.5 | J24: 17.5 | K24: 21.5 | L24: 2.5 | M24: 6.5 | N24: 4.0 | O24: 7.5 | P24: 7.0 | Q24: 10.5 | R24: 5.5 | S24: 9.5 | T24: 3.5 | U24: 1.0 | V24: 4.5 | W24: 8.0 | X24: 12.5 | Y24: 6.8 | Z24: 10.6 | AA24: 2.4 | AB24: 3.7 | AC24: 2.0 | AD24: 3.2 | AE24: 1.5 | AF24: 2.4 | AG24: 1.3 | AH24: 2.0 | AI24: 5.2 | AJ24: 8.1 | AK24: 4.4 | AL24: 6.9 | AM24: 5.8 | AN24: 9.1 | AO24: 5.0 | AP24: 7.7 | AQ24: 0.0 | AR24: 100.0 | AS24: 0.0 | AT24: 100.0
A25: =B25&"_"&C25 -> Pigs fatteners Alfala 1 kg _Finisher | B25: Pigs fatteners Alfala 1 kg | C25: Finisher | D25: Pigs and sows | E25: > 75 kg | F25: 6.3 | G25: 0.0 | H25: 11.6 | I25: 0.0 | J25: 17.2 | K25: 0.0 | L25: 4.7 | M25: 0.0 | N25: 2.2 | O25: 0.0 | P25: 5.9 | Q25: 0.0 | R25: 4.7 | S25: 0.0 | T25: 0.0 | U25: 0.9 | V25: 0.0 | W25: 9.1 | X25: 0.0 | Y25: 7.7 | Z25: 0.0 | AA25: 2.7 | AB25: 0.0 | AC25: 2.3 | AD25: 0.0 | AE25: 1.7 | AF25: 0.0 | AG25: 1.5 | AH25: 0.0 | AI25: 5.9 | AJ25: 0.0 | AK25: 5.0 | AL25: 0.0 | AM25: 6.6 | AN25: 0.0 | AO25: 5.6 | AP25: 0.0
A26: _
A27: _
A28: _
A29: _
A30: _
A31: _
A32: _
A33: _
A34: _
A35: _
A36: _
A37: _
A38: _
A39: _
A40: _
A41: _
A42: _
A43: _
A44: _
A45: _
A46: _
A47: _
A48: _
A49: _
A50: _
A51: _
A52: _
A53: _
A54: _
A55: _
A56: _
A57: =B57&"_"&C57 -> _
A58: _
A59: _
A60: _
A61: _
A62: _
A63: _
A64: _
A65: _
A66: _
A67: _
A68: _
A69: _
A70: _
A71: _
A72: _
A73: _
A74: _
A75: _
A76: _
A77: _
A78: _
A79: _
A80: _
A81: _
A82: _
A83: _
A84: _
A85: _
A86: _
A87: _
A88: _
A89: =B89&"_"&C89 -> _
A90: _
A91: _
A92: _
A93: _
A94: _
A95: _
A96: _
A97: _
A98: _
A99: _
A100: _

Sheet Roughage_Forage
A2: STEP 1 : Feeding scenario | B2: Identity of the farm: | C2: Mr example | L2: Scenario | O2: Sows_2_Phasis
B3: Farmer's name: | C3: Guido | L3: Feeding phase | O3: Gestation
B4: Date: | C4: 2020-12-10 | G4: =TEXT(C4,"aaaammjj") -> 20201210 | L4: Category of animal | O4: =_xlfn.IFNA(VLOOKUP($O$8,Requirement,4,FALSE),) -> Pigs and sows
B5: Objectives(Kg) | C5: 100 | L5: Weight/age | O5: =_xlfn.IFNA(VLOOKUP($O$8,Requirement,5,FALSE),) -> gestation
B6: Number of phasis of feeds | C6: 2
B7: Stage of growth | C7: 35
O8: =O2&"_"&O3 -> Sows_2_Phasis_Gestation
A10: STEP 2 : Roughage/forage intake and nutritionnal value | B10: Forage | C10: Intake (Kg Fresh) | D10: DM (%) | E10: ME pig adult (MJ/Kg DM) | F10: NE pig adult (MJ/Kg DM) | G10: CP % DM | H10: Fiber % DM | I10: FAT % DM | J10: LYS % DM | K10: THR % DM | L10: MET % DM | M10: MET+CYS % DM | N10: TRY % DM | O10: DIS LYS pig % DM | P10: DIS THR pig % DM | Q10: DIS MET pig % DM | R10: DIS MET+CYS pig % DM | S10: DIS TRY PIG % DM | T10: Ca % DM | U10: P % DM | V10: Na % DM
B11: Red clover silage | C11: 1.00 | D11: 0.35 | E11: 13.60 | F11: =F17/E17*E11 -> 10.01 | G11: =3.1/0.274 -> 11.31 | H11: 10.00 | I11: 0.00 | J11: 0.00 | K11: 0.00 | L11: 0.00 | M11: 0.00 | N11: 0.00 | O11: 0.61 | P11: 0.27 | Q11: 0.21 | R11: 0.00 | S11: 0.06 | T11: 0.00 | U11: 0.00 | V11: 0.00
B12: List | C12: 0 | D12: 0 | E12: 0 | F12: 0 | G12: 0 | H12: 0 | I12: 0 | J12: 0 | K12: 0 | L12: 0 | M12: 0 | N12: 0 | O12: 0 | P12: 0 | Q12: 0 | R12: 0 | S12: 0 | T12: 0 | U12: 0 | V12: 0
B14: TOTAL FORAGE | C14: =SUM(C11:C12) -> 1.00 | E14: =SUMPRODUCT($C$11:$C$12*$D$11:$D$12*E11:E12) -> 4.76 | F14: =SUMPRODUCT($C$11:$C$12*$D$11:$D$12*F11:F12) -> 3.51 | G14: =SUMPRODUCT($C$11:$C$12*$D$11:$D$12*G11:G12) -> 3.96 | H14: =SUMPRODUCT($C$11:$C$12*$D$11:$D$12*H11:H12) -> 3.50 | I14: =SUMPRODUCT($C$11:$C$12*$D$11:$D$12*I11:I12) -> 0.00 | J14: =SUMPRODUCT($C$11:$C$12*$D$11:$D$12*J11:J12) -> 0.00 | K14: =SUMPRODUCT($C$11:$C$12*$D$11:$D$12*K11:K12) -> 0.00 | L14: =SUMPRODUCT($C$11:$C$12*$D$11:$D$12*L11:L12) -> 0.00 | M14: =SUMPRODUCT($C$11:$C$12*$D$11:$D$12*M11:M12) -> 0.00 | N14: =SUMPRODUCT($C$11:$C$12*$D$11:$D$12*N11:N12) -> 0.00 | O14: =SUMPRODUCT($C$11:$C$12*$D$11:$D$12*O11:O12) -> 0.21 | P14: =SUMPRODUCT($C$11:$C$12*$D$11:$D$12*P11:P12) -> 0.09 | Q14: =SUMPRODUCT($C$11:$C$12*$D$11:$D$12*Q11:Q12) -> 0.07 | R14: =SUMPRODUCT($C$11:$C$12*$D$11:$D$12*R11:R12) -> 0.00 | S14: =SUMPRODUCT($C$11:$C$12*$D$11:$D$12*S11:S12) -> 0.02 | T14: =SUMPRODUCT($C$11:$C$12*$D$11:$D$12*T11:T12) -> 0.00 | U14: =SUMPRODUCT($C$11:$C$12*$D$11:$D$12*U11:U12) -> 0.00 | V14: =SUMPRODUCT($C$11:$C$12*$D$11:$D$12*V11:V12) -> 0.00
A16: STEP 3 : Animal needs and classical ration planning | E16: ME adult pigs | F16: NE adult pigs | G16: CP % max | H16: Fiber Obj | I16: FAT Obj | J16: LYS Min | K16: THR Min | L16: MET Min | M16: MET+CYS Min | N16: TRY Min | O16: DIS Lys | P16: DIS THR | Q16: DIS MET | R16: DIS MET + CYS | S16: DIS TRY | T16: Ca Obj | U16: P Obj | V16: Na Obj
D17: Min | E17: =_xlfn.IFNA(VLOOKUP($O$8,Requirement,6,FALSE),) -> 11.00 | F17: =_xlfn.IFNA(VLOOKUP($O$8,Requirement,8,FALSE),) -> 8.10 | G17: =_xlfn.IFNA(VLOOKUP($O$8,Requirement,10,FALSE),) -> 12.00 | H17: =_xlfn.IFNA(VLOOKUP($O$8,Requirement,12,FALSE),) -> 7.00 | I17: =_xlfn.IFNA(VLOOKUP($O$8,Requirement,14,FALSE),) -> 1.00 | J17: =_xlfn.IFNA(VLOOKUP($O$8,Requirement,23,FALSE),) -> 5.00 | K17: =_xlfn.IFNA(VLOOKUP($O$8,Requirement,39,FALSE),) -> 3.65 | L17: =_xlfn.IFNA(VLOOKUP($O$8,Requirement,27,FALSE),) -> 1.50 | M17: =_xlfn.IFNA(VLOOKUP($O$8,Requirement,35,FALSE),) -> 3.25 | N17: =_xlfn.IFNA(VLOOKUP($O$8,Requirement,31,FALSE),) -> 0.95 | O17: =_xlfn.IFNA(VLOOKUP($O$8,Requirement,25,FALSE),) -> 4.25 | P17: =_xlfn.IFNA(VLOOKUP($O$8,Requirement,41,FALSE),) -> 3.10 | Q17: =_xlfn.IFNA(VLOOKUP($O$8,Requirement,29,FALSE),) -> 1.28 | R17: =_xlfn.IFNA(VLOOKUP($O$8,Requirement,37,FALSE),) -> 2.76 | S17: =_xlfn.IFNA(VLOOKUP($O$8,Requirement,33,FALSE),) -> 0.81 | T17: =_xlfn.IFNA(VLOOKUP($O$8,Requirement,16,FALSE),) -> 5.00 | U17: =_xlfn.IFNA(VLOOKUP($O$8,Requirement,18,FALSE),) -> 3.00 | V17: =_xlfn.IFNA(VLOOKUP($O$8,Requirement,21,FALSE),) -> 1.00
D18: Max | E18: =_xlfn.IFNA(VLOOKUP($O$8,Requirement,7,FALSE),) -> 12.50 | F18: =_xlfn.IFNA(VLOOKUP($O$8,Requirement,9,FALSE),) -> 9.60 | G18: =_xlfn.IFNA(VLOOKUP($O$8,Requirement,11,FALSE),) -> 13.50 | H18: =_xlfn.IFNA(VLOOKUP($O$8,Requirement,13,FALSE),) -> 8.50 | I18: =_xlfn.IFNA(VLOOKUP($O$8,Requirement,15,FALSE),) -> 2.50 | J18: =_xlfn.IFNA(VLOOKUP($O$8,Requirement,24,FALSE),) -> 6.50 | K18: =_xlfn.IFNA(VLOOKUP($O$8,Requirement,40,FALSE),) -> 4.75 | L18: =_xlfn.IFNA(VLOOKUP($O$8,Requirement,28,FALSE),) -> 1.95 | M18: =_xlfn.IFNA(VLOOKUP($O$8,Requirement,36,FALSE),) -> 4.23 | N18: =_xlfn.IFNA(VLOOKUP($O$8,Requirement,32,FALSE),) -> 1.24 | O18: =_xlfn.IFNA(VLOOKUP($O$8,Requirement,26,FALSE),) -> 5.53 | P18: =_xlfn.IFNA(VLOOKUP($O$8,Requirement,42,FALSE),) -> 4.03 | Q18: =_xlfn.IFNA(VLOOKUP($O$8,Requirement,30,FALSE),) -> 1.66 | R18: =_xlfn.IFNA(VLOOKUP($O$8,Requirement,38,FALSE),) -> 3.59 | S18: =_xlfn.IFNA(VLOOKUP($O$8,Requirement,34,FALSE),) -> 1.05 | T18: =_xlfn.IFNA(VLOOKUP($O$8,Requirement,17,FALSE),) -> 6.50 | U18: =_xlfn.IFNA(VLOOKUP($O$8,Requirement,19,FALSE),) -> 4.50 | V18: =_xlfn.IFNA(VLOOKUP($O$8,Requirement,22,FALSE),) -> 2.50
B20: Kg concentrate/day | C20: Needs | E20: ME adult pigs | F20: NE adult pigs | G20: CP % max | H20: Fiber Obj | I20: FAT Obj | J20: LYS Min | K20: THR Min | L20: MET Min | M20: MET+CYS Min | N20: TRY Min | O20: DIS Lys | P20: DIS THR | Q20: DIS MET | R20: DIS MET + CYS | S20: DIS TRY | T20: Ca Obj | U20: P Obj | V20: Na Obj
B21: 3.5 | C21: Objective | E21: =AVERAGE(E17:E18) -> 11.75 | F21: 8.85 | G21: 12.75 | H21: 7.75 | I21: 1.75 | J21: 5.75 | K21: 4.20 | L21: 1.73 | M21: 3.74 | N21: 1.09 | O21: 4.89 | P21: 3.57 | Q21: 1.47 | R21: 3.18 | S21: 0.93 | T21: 5.75 | U21: 3.75 | V21: 1.75
C23: TOTAL NEEDS | E23: =E21*$B$21 -> 41.13 | F23: 30.98 | G23: 44.63 | H23: 27.13 | I23: 6.13 | J23: 20.13 | K23: 14.69 | L23: 6.04 | M23: 13.08 | N23: 3.82 | O23: 17.11 | P23: 12.49 | Q23: 5.13 | R23: 11.12 | S23: 3.25 | T23: 20.13 | U23: 13.13 | V23: 6.13
A25: STEP 4 : Animal needs cover by concentrate | E25: ME pig adult (MJ/Kg) | F25: NE pig adult (MJ/Kg) | G25: CP % raw | H25: Fiber % raw | I25: FAT % raw | J25: LYS % raw | K25: THR % raw | L25: MET % Raw | M25: MET+CYS % raw | N25: TRY % raw | O25: DIS LYS pig % | P25: DIS THR pig % | Q25: DIS MET pig % | R25: DIS MET+CYS pig % | S25: DIS TRY PIG% | T25: Ca % Raw | U25: P % Raw | V25: Na % Raw
B26: TOTAL needs cover by concentrate (TOTAL NEEDS - FORAGE INTAKE) | C26: Kg | E26: =E23-E14 -> 36.37 | F26: 27.47 | G26: 40.67 | H26: 23.63 | I26: 6.13 | J26: 20.13 | K26: 14.69 | L26: 6.04 | M26: 13.08 | N26: 3.82 | O26: 16.89 | P26: 12.39 | Q26: 5.06 | R26: 11.12 | S26: 3.23 | T26: 20.13 | U26: 13.13 | V26: 6.13
B27: Objective TOTAL needs/Kg of concentrate | C27: 3.20 | E27: =E26/$C$27 -> 11.36 | F27: =F26/$C$27 -> 8.58 | G27: 12.71 | H27: 7.38 | I27: 1.91 | J27: =J26/$C$27 -> 6.29 | K27: 4.59 | L27: 1.89 | M27: 4.09 | N27: 1.19 | O27: 5.28 | P27: 3.87 | Q27: 1.58 | R27: 3.47 | S27: 1.01 | T27: 6.29 | U27: 4.10 | V27: 1.91
A29: STEP 5 : Nutritional recommandation for concentrate | B29: Scénarios | C29: Swine requiment | D29: Type of animals to select inclusing levels | E29: Weight/Age | F29: ME objective (MJ or g/kg) | G29: ME Max | H29: NE objective (MJ or g/kg) | I29: NE max | J29: CP min | K29: Cp max | L29: Fiber Min | M29: Fiber max | N29: Fat min | O29: Fat Max | P29: Ca min | Q29: Ca max | R29: P min | S29: P max | T29: P avail | U29: Na min | V29: Na max | W29: Tot Lys min | X29: Tot Lys max | Y29: Lys Dig min | Z29: Lys Dig max | AA29: Met tot min | AB29: met tot max | AC29: Met Dig min | AD29: Met Dig Max | AE29: TRY tot min | AF29: Try tot max | AG29: Try Dig min | AH29: Try Dig max | AI29: Met+Cys tot min | AJ29: Met+Cys tot max | AK29: Met+Cys Dig min | AL29: Met+Cys Dig Max | AM29: Thr tot min | AN29: Thr tot max | AO29: Thr Dig min | AP29: Thr Dig max
A30: Copy | B30: =CONCATENATE(O3,"_",O2,"_",B11,"_",C11,"Kg") -> Gestation_Sows_2_Phasis_Red clover silage_1Kg | C30: =O3 -> Gestation | D30: =O4 -> Pigs and sows | E30: =O5 -> gestation | F30: =E27 -> 11.36 | G30: 0 | H30: =F27 -> 8.58 | I30: 0 | J30: =G27 -> 12.71 | K30: 0 | L30: =H27 -> 7.38 | M30: 0 | N30: =I27 -> 1.91 | O30: 0 | P30: =T27 -> 6.29 | Q30: 0 | R30: =U27 -> 4.10 | S30: 0 | T30: 0 | U30: =V27 -> 1.91 | V30: 0 | W30: =J27 -> 6.29 | X30: 0 | Y30: =O27 -> 5.28 | Z30: 0 | AA30: =L27 -> 1.89 | AB30: 0 | AC30: =Q27 -> 1.58 | AD30: 0 | AE30: =N27 -> 1.19 | AF30: 0 | AG30: =S27 -> 1.01 | AH30: 0 | AI30: =M27 -> 4.09 | AJ30: 0 | AK30: =R27 -> 3.47 | AL30: 0 | AM30: =K27 -> 4.59 | AN30: 0 | AO30: =P27 -> 3.87 | AP30: 0

Sheet PDF_Export
B1: =CONCATENATE("RATION REALIZED ON: "&TEXT(Tool!E5,"jj/mm/aaaa")) -> RATION REALIZED ON: 10/12/2020
B3: Context:
B4: =Tool!D3 -> Identity of the farm: | C4: =IF(Tool!E3<>"",Tool!E3,"") -> Mr example
B5: =Tool!D4 -> Farmer's name: | C5: =IF(Tool!E4<>"",Tool!E4,"") -> Guido
B6: =Tool!D5 -> Date: | C6: =IF(Tool!E5<>"",Tool!E5,"") -> 2020-12-10
B7: =Tool!D6 -> Objectives(Kg) | C7: =IF(Tool!E6<>"",Tool!E6,"") -> 100
B8: =Tool!D7 -> Number of phasis of feeds | C8: =IF(Tool!E7<>"",Tool!E7,"") -> 2
B9: =Tool!D8 -> Stage of growth | C9: =IF(Tool!E8<>"",Tool!E8,"") -> 35
B11: Scenario seleected
B12: Tool scenario: | C12: =Tool!Q3&"_"&Tool!Q4 -> Gestating sow red clover silage 1 kg_Finisher
B14: Feedstuff composition: | C14: =Tool!E9 -> 500 | D14: Kg
C16: % | D16: Kg | E16: % Costs | F16: Cost (€/T)
B17: =IF(Tool!D12<>"",IF(Tool!F12<>0,Tool!D12,""),"") ->  | C17: =IF(Tool!F12<>"",IF(Tool!F12<>0,Tool!F12,"")) ->  | D17: =IF(Tool!E12<>"",IF(Tool!E12<>0,Tool!E12,""),"") ->  | E17: =IF(B17<>"",Tool!AH12,"") ->  | F17: =IF(B17<>"",Tool!AF12,"") ->  | G17: =IF(F17<>"","/Tonne","") -> 
B18: =IF(Tool!D13<>"",IF(Tool!F13<>0,Tool!D13,""),"") ->  | C18: =IF(Tool!F13<>"",IF(Tool!F13<>0,Tool!F13,"")) ->  | D18: =IF(Tool!E13<>"",IF(Tool!E13<>0,Tool!E13,""),"") ->  | E18: =IF(B18<>"",Tool!AH13,"") ->  | F18: =IF(B18<>"",Tool!AF13,"") ->  | G18: =IF(F18<>"","/Tonne","") -> 
B19: =IF(Tool!D14<>"",IF(Tool!F14<>0,Tool!D14,""),"") ->  | C19: =IF(Tool!F14<>"",IF(Tool!F14<>0,Tool!F14,"")) ->  | D19: =IF(Tool!E14<>"",IF(Tool!E14<>0,Tool!E14,""),"") ->  | E19: =IF(B19<>"",Tool!AH14,"") ->  | F19: =IF(B19<>"",Tool!AF14,"") ->  | G19: =IF(F19<>"","/Tonne","") -> 
B20: =IF(Tool!D15<>"",IF(Tool!F15<>0,Tool!D15,""),"") ->  | C20: =IF(Tool!F15<>"",IF(Tool!F15<>0,Tool!F15,"")) ->  | D20: =IF(Tool!E15<>"",IF(Tool!E15<>0,Tool!E15,""),"") ->  | E20: =IF(B20<>"",Tool!AH15,"") ->  | F20: =IF(B20<>"",Tool!AF15,"") ->  | G20: =IF(F20<>"","/Tonne","") -> 
B21: =IF(Tool!D16<>"",IF(Tool!F16<>0,Tool!D16,""),"") ->  | C21: =IF(Tool!F16<>"",IF(Tool!F16<>0,Tool!F16,"")) ->  | D21: =IF(Tool!E16<>"",IF(Tool!E16<>0,Tool!E16,""),"") ->  | E21: =IF(B21<>"",Tool!AH16,"") ->  | F21: =IF(B21<>"",Tool!AF16,"") ->  | G21: =IF(F21<>"","/Tonne","") -> 
B22: =IF(Tool!D17<>"",IF(Tool!F17<>0,Tool!D17,""),"") ->  | C22: =IF(Tool!F17<>"",IF(Tool!F17<>0,Tool!F17,"")) ->  | D22: =IF(Tool!E17<>"",IF(Tool!E17<>0,Tool!E17,""),"") ->  | E22: =IF(B22<>"",Tool!AH17,"") ->  | F22: =IF(B22<>"",Tool!AF17,"") ->  | G22: =IF(F22<>"","/Tonne","") -> 
B23: =IF(Tool!D18<>"",IF(Tool!F18<>0,Tool!D18,""),"") ->  | C23: =IF(Tool!F18<>"",IF(Tool!F18<>0,Tool!F18,"")) ->  | D23: =IF(Tool!E18<>"",IF(Tool!E18<>0,Tool!E18,""),"") ->  | E23: =IF(B23<>"",Tool!AH18,"") ->  | F23: =IF(B23<>"",Tool!AF18,"") ->  | G23: =IF(F23<>"","/Tonne","") -> 
B24: =IF(Tool!D19<>"",IF(Tool!F19<>0,Tool!D19,""),"") ->  | C24: =IF(Tool!F19<>"",IF(Tool!F19<>0,Tool!F19,"")) ->  | D24: =IF(Tool!E19<>"",IF(Tool!E19<>0,Tool!E19,""),"") ->  | E24: =IF(B24<>"",Tool!AH19,"") ->  | F24: =IF(B24<>"",Tool!AF19,"") ->  | G24: =IF(F24<>"","/Tonne","") -> 
B25: =IF(Tool!D20<>"",IF(Tool!F20<>0,Tool!D20,""),"") ->  | C25: =IF(Tool!F20<>"",IF(Tool!F20<>0,Tool!F20,"")) ->  | D25: =IF(Tool!E20<>"",IF(Tool!E20<>0,Tool!E20,""),"") ->  | E25: =IF(B25<>"",Tool!AH20,"") ->  | F25: =IF(B25<>"",Tool!AF20,"") ->  | G25: =IF(F25<>"","/Tonne","") -> 
B26: =IF(Tool!D23<>"",IF(Tool!F23<>0,Tool!D23,""),"") ->  | C26: =IF(Tool!F23<>"",IF(Tool!F23<>0,Tool!F23,"")) ->  | D26: =IF(Tool!E23<>"",IF(Tool!E23<>0,Tool!E23,""),"") ->  | E26: =IF(B26<>"",Tool!AH23,"") ->  | F26: =IF(B26<>"",Tool!AF23,"") ->  | G26: =IF(F26<>"","/Tonne","") -> 
B28: Number of feedstuffs: | C28: =10-COUNTBLANK(B17:B26) -> 0
B29: Ration cost | C29: =Tool!AG27 -> 0 | D29: /Tonne
B31: Ration results:
C33: TOTAL | F33: Min | G33: Max
B34: ME growing pig (MJ/Kg) | C34: =Tool!G25 -> 0.00 | D34: Mj/Kg | F34: =Tool!G28 -> 0.00 | G34: =Tool!G29 -> 0.00
B35: NE growing pig (MJ/Kg) | C35: =Tool!H25 -> 0.00 | D35: Mj/Kg | F35: =Tool!H28 -> 0.00 | G35: =Tool!H29 -> 0.00
B36: ME pig adult (MJ/Kg) | C36: =Tool!I25 -> 0.00 | D36: Mj/Kg | F36: =Tool!I28 -> 0.00 | G36: =Tool!I29 -> 0.00
B37: NE pig adult (MJ/Kg) | C37: =Tool!J25 -> 0.00 | D37: Mj/Kg | F37: =Tool!J28 -> 0.00 | G37: =Tool!J29 -> 0.00
B38: CP % raw | C38: =Tool!K25 -> 0.00 | D38: % | F38: =Tool!K28 -> 0.00 | G38: =Tool!K29 -> 0.00
B39: Fiber % raw | C39: =Tool!L25 -> 0.00 | D39: % | F39: =Tool!L28 -> 0.00 | G39: =Tool!L29 -> 0.00
B40: FAT % raw | C40: =Tool!M25 -> 0.00 | D40: % | F40: =Tool!M28 -> 0.00 | G40: =Tool!M29 -> 0.00
B41: LYS % raw | C41: =Tool!N25 -> 0.00 | D41: % | F41: =Tool!N28 -> 0.00 | G41: =Tool!N29 -> 0.00
B42: THR % raw | C42: =Tool!O25 -> 0.00 | D42: % | F42: =Tool!O28 -> 0.00 | G42: =Tool!O29 -> 0.00
B43: MET % Raw | C43: =Tool!P25 -> 0.00 | D43: % | F43: =Tool!P28 -> 0.00 | G43: =Tool!P29 -> 0.00
B44: MET+CYS % raw | C44: =Tool!Q25 -> 0.00 | D44: % | F44: =Tool!Q28 -> 0.00 | G44: =Tool!Q29 -> 0.00
B45: TRY % raw | C45: =Tool!R25 -> 0.00 | D45: % | F45: =Tool!R28 -> 0.00 | G45: =Tool!R29 -> 0.00
B46: DIS LYS pig % | C46: =Tool!S25 -> 0.00 | D46: % | F46: =Tool!S28 -> 0.00 | G46: =Tool!S29 -> 0.00
B47: DIS THR pig % | C47: =Tool!T25 -> 0.00 | D47: % | F47: =Tool!T28 -> 0.00 | G47: =Tool!T29 -> 0.00
B48: DIS MET pig % | C48: =Tool!U25 -> 0.00 | D48: % | F48: =Tool!U28 -> 0.00 | G48: =Tool!U29 -> 0.00
B49: DIS MET+CYS pig % | C49: =Tool!V25 -> 0.00 | D49: % | F49: =Tool!V28 -> 0.00 | G49: =Tool!V29 -> 0.00
B50: DIS TRY PIG% | C50: =Tool!W25 -> 0.00 | D50: % | F50: =Tool!W28 -> 0.00 | G50: =Tool!W29 -> 0.00
B51: Ca % Raw | C51: =Tool!X25 -> 0.00 | D51: % | F51: =Tool!X28 -> 0.00 | G51: =Tool!X29 -> 0.00
B52: P % Raw | C52: =Tool!Y25 -> 0.00 | D52: % | F52: =Tool!Y28 -> 0.00 | G52: =Tool!Y29 -> 0.00
B53: Na % Raw | C53: =Tool!Z25 -> 0.00 | D53: % | F53: =Tool!Z28 -> 0.00 | G53: =Tool!Z29 -> 0.00

Sheet About

Sheet References

Sheet Contribution (hidden)
A1: Feedstuffs - ME - Growing Pigs | B1: % of contribution off each feedstuff for Energy (pigs) | C1: Feedstuffs - ME - Adults | D1: % of contribution off each feedstuff for Energy (Adults) | E1: Feedstuffs CP | F1: % of contribution off each feedstuff for Proteins | G1: Feedstuffs LYS | H1: % of contribution off each feedstuff for Lysine | I1: Feedstuffs MET | J1: % of contribution off each feedstuff for Methionine
A2: =IF(B2<>0,Tool!D12,"") ->  | B2: =Tool!G12*Tool!F12/Tool!$G$25 ->  | C2: =IF(D2<>0,Tool!D12,"") ->  | D2: =Tool!H12*Tool!F12/Tool!$H$25 ->  | E2: =IF(F2<>0,Tool!D12,"") ->  | F2: =Tool!K12*Tool!F12/Tool!$K$25 ->  | G2: =IF(H2<>0,Tool!D12,"") ->  | H2: =Tool!N12*Tool!F12/Tool!$N$25*10 ->  | I2: =IF(J2<>0,Tool!D12,"") ->  | J2: =Tool!P12*Tool!F12/Tool!$P$25*10 -> 
A3: =IF(B3<>0,Tool!D13,"") ->  | B3: =Tool!G13*Tool!F13/Tool!$G$25 ->  | C3: =IF(D3<>0,Tool!D13,"") ->  | D3: =Tool!H13*Tool!F13/Tool!$H$25 ->  | E3: =IF(F3<>0,Tool!D13,"") ->  | F3: =Tool!K13*Tool!F13/Tool!$K$25 ->  | G3: =IF(H3<>0,Tool!D13,"") ->  | H3: =Tool!N13*Tool!F13/Tool!$N$25*10 ->  | I3: =IF(J3<>0,Tool!D13,"") ->  | J3: =Tool!P13*Tool!F13/Tool!$P$25*10 -> 
A4: =IF(B4<>0,Tool!D14,"") ->  | B4: =Tool!G14*Tool!F14/Tool!$G$25 ->  | C4: =IF(D4<>0,Tool!D14,"") ->  | D4: =Tool!H14*Tool!F14/Tool!$H$25 ->  | E4: =IF(F4<>0,Tool!D14,"") ->  | F4: =Tool!K14*Tool!F14/Tool!$K$25 ->  | G4: =IF(H4<>0,Tool!D14,"") ->  | H4: =Tool!N14*Tool!F14/Tool!$N$25*10 ->  | I4: =IF(J4<>0,Tool!D14,"") ->  | J4: =Tool!P14*Tool!F14/Tool!$P$25*10 -> 
A5: =IF(B5<>0,Tool!D15,"") ->  | B5: =Tool!G15*Tool!F15/Tool!$G$25 ->  | C5: =IF(D5<>0,Tool!D15,"") ->  | D5: =Tool!H15*Tool!F15/Tool!$H$25 ->  | E5: =IF(F5<>0,Tool!D15,"") ->  | F5: =Tool!K15*Tool!F15/Tool!$K$25 ->  | G5: =IF(H5<>0,Tool!D15,"") ->  | H5: =Tool!N15*Tool!F15/Tool!$N$25*10 ->  | I5: =IF(J5<>0,Tool!D15,"") ->  | J5: =Tool!P15*Tool!F15/Tool!$P$25*10 -> 
A6: =IF(B6<>0,Tool!D16,"") ->  | B6: =Tool!G16*Tool!F16/Tool!$G$25 ->  | C6: =IF(D6<>0,Tool!D16,"") ->  | D6: =Tool!H16*Tool!F16/Tool!$H$25 ->  | E6: =IF(F6<>0,Tool!D16,"") ->  | F6: =Tool!K16*Tool!F16/Tool!$K$25 ->  | G6: =IF(H6<>0,Tool!D16,"") ->  | H6: =Tool!N16*Tool!F16/Tool!$N$25*10 ->  | I6: =IF(J6<>0,Tool!D16,"") ->  | J6: =Tool!P16*Tool!F16/Tool!$P$25*10 -> 
A7: =IF(B7<>0,Tool!D17,"") ->  | B7: =Tool!G17*Tool!F17/Tool!$G$25 ->  | C7: =IF(D7<>0,Tool!D17,"") ->  | D7: =Tool!H17*Tool!F17/Tool!$H$25 ->  | E7: =IF(F7<>0,Tool!D17,"") ->  | F7: =Tool!K17*Tool!F17/Tool!$K$25 ->  | G7: =IF(H7<>0,Tool!D17,"") ->  | H7: =Tool!N17*Tool!F17/Tool!$N$25*10 ->  | I7: =IF(J7<>0,Tool!D17,"") ->  | J7: =Tool!P17*Tool!F17/Tool!$P$25*10 -> 
A8: =IF(B8<>0,Tool!D18,"") ->  | B8: =Tool!G18*Tool!F18/Tool!$G$25 ->  | C8: =IF(D8<>0,Tool!D18,"") ->  | D8: =Tool!H18*Tool!F18/Tool!$H$25 ->  | E8: =IF(F8<>0,Tool!D18,"") ->  | F8: =Tool!K18*Tool!F18/Tool!$K$25 ->  | G8: =IF(H8<>0,Tool!D18,"") ->  | H8: =Tool!N18*Tool!F18/Tool!$N$25*10 ->  | I8: =IF(J8<>0,Tool!D18,"") ->  | J8: =Tool!P18*Tool!F18/Tool!$P$25*10 -> 
A9: =IF(B9<>0,Tool!D19,"") ->  | B9: =Tool!G19*Tool!F19/Tool!$G$25 ->  | C9: =IF(D9<>0,Tool!D19,"") ->  | D9: =Tool!H19*Tool!F19/Tool!$H$25 ->  | E9: =IF(F9<>0,Tool!D19,"") ->  | F9: =Tool!K19*Tool!F19/Tool!$K$25 ->  | G9: =IF(H9<>0,Tool!D19,"") ->  | H9: =Tool!N19*Tool!F19/Tool!$N$25*10 ->  | I9: =IF(J9<>0,Tool!D19,"") ->  | J9: =Tool!P19*Tool!F19/Tool!$P$25*10 -> 
A10: =IF(B10<>0,Tool!D20,"") ->  | B10: =Tool!G20*Tool!F20/Tool!$G$25 ->  | C10: =IF(D10<>0,Tool!D20,"") ->  | D10: =Tool!H20*Tool!F20/Tool!$H$25 ->  | E10: =IF(F10<>0,Tool!D20,"") ->  | F10: =Tool!K20*Tool!F20/Tool!$K$25 ->  | G10: =IF(H10<>0,Tool!D20,"") ->  | H10: =Tool!N20*Tool!F20/Tool!$N$25*10 ->  | I10: =IF(J10<>0,Tool!D20,"") ->  | J10: =Tool!P20*Tool!F20/Tool!$P$25*10 -> 
A11: =IF(B11<>0,Tool!D23,"") ->  | B11: =Tool!G23*Tool!F23/Tool!$G$25 ->  | C11: =IF(D11<>0,Tool!D23,"") ->  | D11: =Tool!H23*Tool!F23/Tool!$H$25 ->  | E11: =IF(F11<>0,Tool!D23,"") ->  | F11: =Tool!K23*Tool!F23/Tool!$K$25 ->  | G11: =IF(H11<>0,Tool!D23,"") ->  | H11: =Tool!N23*Tool!F23/Tool!$N$25*10 ->  | I11: =IF(J11<>0,Tool!D23,"") ->  | J11: =Tool!P23*Tool!F23/Tool!$P$25*10 -> 
A12: TOTAL | B12: =SUM(B2:B11) ->  | C12: =IF(D12<>0,Tool!D24,"") ->  | D12: =SUM(D2:D11) ->  | G12: =IF(H12<>0,Tool!D24,"") ->  | I12: =IF(J12<>0,Tool!D24,"") -> 

Sheet List_sheet (hidden)
A1: Valeur scenarios | B1: Ligne | C1: Ligne filtrée | D1: Ligne triee | E1: Liste unique scenarios | F1: Valeur formula | G1: Ligne | H1: Ligne filtrée | I1: Ligne triee | J1: Liste unique Formula
A2: =IFERROR(Table2[[#This Row],[Scénarios]],"") -> Pigs_2_Phasis | B2: =ROW()-1 -> 1 | C2: =IF(COUNTIF($A$2:A2,A2)=1,ROW()-1,"") -> 1 | D2: =IFERROR(SMALL(C:C,B2),"") -> 1 | E2: =IFERROR(INDEX($A$2:$A$99,D2),"") -> Pigs_2_Phasis | F2: =IFERROR(Table2[[#This Row],[Swine requiment ]],"") -> Grower | G2: =ROW()-1 -> 1 | H2: =IF(COUNTIF($F$2:F2,F2)=1,ROW()-1,"") -> 1 | I2: =IFERROR(SMALL(H:H,G2),"") -> 1 | J2: =IFERROR(INDEX($F$2:$F$99,I2),"") -> Grower
A3: =IFERROR(Table2[[#This Row],[Scénarios]],"") -> Pigs_2_Phasis | B3: =ROW()-1 -> 2 | C3: =IF(COUNTIF($A$2:A3,A3)=1,ROW()-1,"") ->  | D3: =IFERROR(SMALL(C:C,B3),"") -> 3 | E3: =IFERROR(INDEX($A$2:$A$99,D3),"") -> Pigs_3_Phasis | F3: =IFERROR(Table2[[#This Row],[Swine requiment ]],"") -> Weaners | G3: =ROW()-1 -> 2 | H3: =IF(COUNTIF($F$2:F3,F3)=1,ROW()-1,"") -> 2 | I3: =IFERROR(SMALL(H:H,G3),"") -> 2 | J3: =IFERROR(INDEX($F$2:$F$99,I3),"") -> Weaners
A4: =IFERROR(Table2[[#This Row],[Scénarios]],"") -> Pigs_3_Phasis | B4: 3 | C4: =IF(COUNTIF($A$2:A4,A4)=1,ROW()-1,"") -> 3 | D4: 6 | E4: Pigs_Fatteners_3_Phasis | F4: =IFERROR(Table2[[#This Row],[Swine requiment ]],"") -> Weaners | G4: 3 | H4: =IF(COUNTIF($F$2:F4,F4)=1,ROW()-1,"") ->  | I4: 5 | J4: Finisher
A5: =IFERROR(Table2[[#This Row],[Scénarios]],"") -> Pigs_3_Phasis | B5: 4 | C5: =IF(COUNTIF($A$2:A5,A5)=1,ROW()-1,"") ->  | D5: 9 | E5: Multi-Phasis | F5: =IFERROR(Table2[[#This Row],[Swine requiment ]],"") -> Grower | G5: 4 | H5: =IF(COUNTIF($F$2:F5,F5)=1,ROW()-1,"") ->  | I5: 6 | J5: Grower_1
A6: =IFERROR(Table2[[#This Row],[Scénarios]],"") -> Pigs_3_Phasis | B6: 5 | C6: =IF(COUNTIF($A$2:A6,A6)=1,ROW()-1,"") ->  | D6: 14 | E6: Single_Feeding | F6: =IFERROR(Table2[[#This Row],[Swine requiment ]],"") -> Finisher | G6: 5 | H6: =IF(COUNTIF($F$2:F6,F6)=1,ROW()-1,"") -> 5 | I6: 7 | J6: Grower_2
A7: =IFERROR(Table2[[#This Row],[Scénarios]],"") -> Pigs_Fatteners_3_Phasis | B7: 6 | C7: =IF(COUNTIF($A$2:A7,A7)=1,ROW()-1,"") -> 6 | D7: 17 | E7: Sow_Single_Feeding | F7: =IFERROR(Table2[[#This Row],[Swine requiment ]],"") -> Grower_1 | G7: 6 | H7: =IF(COUNTIF($F$2:F7,F7)=1,ROW()-1,"") -> 6 | I7: 10 | J7: Piglets
A8: =IFERROR(Table2[[#This Row],[Scénarios]],"") -> Pigs_Fatteners_3_Phasis | B8: 7 | C8: =IF(COUNTIF($A$2:A8,A8)=1,ROW()-1,"") ->  | D8: 18 | E8: Sows_2_Phasis | F8: =IFERROR(Table2[[#This Row],[Swine requiment ]],"") -> Grower_2 | G8: 7 | H8: =IF(COUNTIF($F$2:F8,F8)=1,ROW()-1,"") -> 7 | I8: 17 | J8: Lactation
A9: =IFERROR(Table2[[#This Row],[Scénarios]],"") -> Pigs_Fatteners_3_Phasis | B9: 8 | C9: =IF(COUNTIF($A$2:A9,A9)=1,ROW()-1,"") ->  | D9: 20 | E9: Sows_4_Phasis | F9: =IFERROR(Table2[[#This Row],[Swine requiment ]],"") -> Finisher | G9: 8 | H9: =IF(COUNTIF($F$2:F9,F9)=1,ROW()-1,"") ->  | I9: 18 | J9: Gestation
A10: =IFERROR(Table2[[#This Row],[Scénarios]],"") -> Multi-Phasis | B10: 9 | C10: =IF(COUNTIF($A$2:A10,A10)=1,ROW()-1,"") -> 9 | D10: 24 | E10: Pigs fatteners Alfala 1 kg | F10: =IFERROR(Table2[[#This Row],[Swine requiment ]],"") -> Weaners | G10: 9 | H10: =IF(COUNTIF($F$2:F10,F10)=1,ROW()-1,"") ->  | I10: 20 | J10: Early gestation
A11: =IFERROR(Table2[[#This Row],[Scénarios]],"") -> Multi-Phasis | B11: 10 | C11: =IF(COUNTIF($A$2:A11,A11)=1,ROW()-1,"") ->  | D11: 25 | E11: 0 | F11: =IFERROR(Table2[[#This Row],[Swine requiment ]],"") -> Piglets | G11: 10 | H11: =IF(COUNTIF($F$2:F11,F11)=1,ROW()-1,"") -> 10 | I11: 21 | J11: Late gestation
A12: =IFERROR(Table2[[#This Row],[Scénarios]],"") -> Multi-Phasis | B12: 11 | C12: =IF(COUNTIF($A$2:A12,A12)=1,ROW()-1,"") ->  | F12: =IFERROR(Table2[[#This Row],[Swine requiment ]],"") -> Grower_1 | G12: 11 | H12: =IF(COUNTIF($F$2:F12,F12)=1,ROW()-1,"") ->  | I12: 22 | J12: Early lactation
A13: =IFERROR(Table2[[#This Row],[Scénarios]],"") -> Multi-Phasis | B13: 12 | C13: =IF(COUNTIF($A$2:A13,A13)=1,ROW()-1,"") ->  | F13: =IFERROR(Table2[[#This Row],[Swine requiment ]],"") -> Grower_2 | G13: 12 | H13: =IF(COUNTIF($F$2:F13,F13)=1,ROW()-1,"") ->  | I13: 23 | J13: Late lactation
A14: =IFERROR(Table2[[#This Row],[Scénarios]],"") -> Multi-Phasis | B14: 13 | C14: =IF(COUNTIF($A$2:A14,A14)=1,ROW()-1,"") ->  | F14: =IFERROR(Table2[[#This Row],[Swine requiment ]],"") -> Finisher | G14: 13 | H14: =IF(COUNTIF($F$2:F14,F14)=1,ROW()-1,"") ->  | I14: 25 | J14: 0
A15: =IFERROR(Table2[[#This Row],[Scénarios]],"") -> Single_Feeding | B15: 14 | C15: =IF(COUNTIF($A$2:A15,A15)=1,ROW()-1,"") -> 14 | F15: =IFERROR(Table2[[#This Row],[Swine requiment ]],"") -> Grower | G15: 14 | H15: =IF(COUNTIF($F$2:F15,F15)=1,ROW()-1,"") -> 
A16: =IFERROR(Table2[[#This Row],[Scénarios]],"") -> Single_Feeding | B16: 15 | C16: =IF(COUNTIF($A$2:A16,A16)=1,ROW()-1,"") ->  | F16: =IFERROR(Table2[[#This Row],[Swine requiment ]],"") -> Piglets | G16: 15 | H16: =IF(COUNTIF($F$2:F16,F16)=1,ROW()-1,"") -> 
A17: =IFERROR(Table2[[#This Row],[Scénarios]],"") -> Single_Feeding | B17: 16 | C17: =IF(COUNTIF($A$2:A17,A17)=1,ROW()-1,"") ->  | F17: =IFERROR(Table2[[#This Row],[Swine requiment ]],"") -> Weaners | G17: 16 | H17: =IF(COUNTIF($F$2:F17,F17)=1,ROW()-1,"") -> 
A18: =IFERROR(Table2[[#This Row],[Scénarios]],"") -> Sow_Single_Feeding | B18: 17 | C18: =IF(COUNTIF($A$2:A18,A18)=1,ROW()-1,"") -> 17 | F18: =IFERROR(Table2[[#This Row],[Swine requiment ]],"") -> Lactation | G18: 17 | H18: =IF(COUNTIF($F$2:F18,F18)=1,ROW()-1,"") -> 17
A19: =IFERROR(Table2[[#This Row],[Scénarios]],"") -> Sows_2_Phasis | B19: 18 | C19: =IF(COUNTIF($A$2:A19,A19)=1,ROW()-1,"") -> 18 | F19: =IFERROR(Table2[[#This Row],[Swine requiment ]],"") -> Gestation | G19: 18 | H19: =IF(COUNTIF($F$2:F19,F19)=1,ROW()-1,"") -> 18
A20: =IFERROR(Table2[[#This Row],[Scénarios]],"") -> Sows_2_Phasis | B20: 19 | C20: =IF(COUNTIF($A$2:A20,A20)=1,ROW()-1,"") ->  | F20: =IFERROR(Table2[[#This Row],[Swine requiment ]],"") -> Lactation | G20: 19 | H20: =IF(COUNTIF($F$2:F20,F20)=1,ROW()-1,"") -> 
A21: =IFERROR(Table2[[#This Row],[Scénarios]],"") -> Sows_4_Phasis | B21: 20 | C21: =IF(COUNTIF($A$2:A21,A21)=1,ROW()-1,"") -> 20 | F21: =IFERROR(Table2[[#This Row],[Swine requiment ]],"") -> Early gestation | G21: 20 | H21: =IF(COUNTIF($F$2:F21,F21)=1,ROW()-1,"") -> 20
A22: =IFERROR(Table2[[#This Row],[Scénarios]],"") -> Sows_4_Phasis | B22: 21 | C22: =IF(COUNTIF($A$2:A22,A22)=1,ROW()-1,"") ->  | F22: =IFERROR(Table2[[#This Row],[Swine requiment ]],"") -> Late gestation | G22: 21 | H22: =IF(COUNTIF($F$2:F22,F22)=1,ROW()-1,"") -> 21
A23: =IFERROR(Table2[[#This Row],[Scénarios]],"") -> Sows_4_Phasis | B23: 22 | C23: =IF(COUNTIF($A$2:A23,A23)=1,ROW()-1,"") ->  | F23: =IFERROR(Table2[[#This Row],[Swine requiment ]],"") -> Early lactation | G23: 22 | H23: =IF(COUNTIF($F$2:F23,F23)=1,ROW()-1,"") -> 22
A24: =IFERROR(Table2[[#This Row],[Scénarios]],"") -> Sows_4_Phasis | B24: 23 | C24: =IF(COUNTIF($A$2:A24,A24)=1,ROW()-1,"") ->  | F24: =IFERROR(Table2[[#This Row],[Swine requiment ]],"") -> Late lactation | G24: 23 | H24: =IF(COUNTIF($F$2:F24,F24)=1,ROW()-1,"") -> 23
A25: =IFERROR(Table2[[#This Row],[Scénarios]],"") -> Pigs fatteners Alfala 1 kg | B25: 24 | C25: =IF(COUNTIF($A$2:A25,A25)=1,ROW()-1,"") -> 24 | F25: =IFERROR(Table2[[#This Row],[Swine requiment ]],"") -> Finisher | G25: 24 | H25: =IF(COUNTIF($F$2:F25,F25)=1,ROW()-1,"") -> 
A26: =IFERROR(Table2[[#This Row],[Scénarios]],"") -> 0 | B26: 25 | C26: =IF(COUNTIF($A$2:A26,A26)=1,ROW()-1,"") -> 25 | F26: =IFERROR(Table2[[#This Row],[Swine requiment ]],"") -> 0 | G26: 25 | H26: =IF(COUNTIF($F$2:F26,F26)=1,ROW()-1,"") -> 25
A27: =IFERROR(Table2[[#This Row],[Scénarios]],"") -> 0 | B27: 26 | C27: =IF(COUNTIF($A$2:A27,A27)=1,ROW()-1,"") ->  | F27: =IFERROR(Table2[[#This Row],[Swine requiment ]],"") -> 0 | G27: 26 | H27: =IF(COUNTIF($F$2:F27,F27)=1,ROW()-1,"") -> 
A28: =IFERROR(Table2[[#This Row],[Scénarios]],"") -> 0 | B28: 27 | C28: =IF(COUNTIF($A$2:A28,A28)=1,ROW()-1,"") ->  | F28: =IFERROR(Table2[[#This Row],[Swine requiment ]],"") -> 0 | G28: 27 | H28: =IF(COUNTIF($F$2:F28,F28)=1,ROW()-1,"") -> 
A29: =IFERROR(Table2[[#This Row],[Scénarios]],"") -> 0 | B29: 28 | C29: =IF(COUNTIF($A$2:A29,A29)=1,ROW()-1,"") ->  | F29: =IFERROR(Table2[[#This Row],[Swine requiment ]],"") -> 0 | G29: 28 | H29: =IF(COUNTIF($F$2:F29,F29)=1,ROW()-1,"") -> 
A30: =IFERROR(Table2[[#This Row],[Scénarios]],"") -> 0 | B30: 29 | C30: =IF(COUNTIF($A$2:A30,A30)=1,ROW()-1,"") ->  | F30: =IFERROR(Table2[[#This Row],[Swine requiment ]],"") -> 0 | G30: 29 | H30: =IF(COUNTIF($F$2:F30,F30)=1,ROW()-1,"") -> 
A31: =IFERROR(Table2[[#This Row],[Scénarios]],"") -> 0 | B31: 30 | C31: =IF(COUNTIF($A$2:A31,A31)=1,ROW()-1,"") ->  | F31: =IFERROR(Table2[[#This Row],[Swine requiment ]],"") -> 0 | G31: 30 | H31: =IF(COUNTIF($F$2:F31,F31)=1,ROW()-1,"") -> 
A32: =IFERROR(Table2[[#This Row],[Scénarios]],"") -> 0 | B32: 31 | C32: =IF(COUNTIF($A$2:A32,A32)=1,ROW()-1,"") ->  | F32: =IFERROR(Table2[[#This Row],[Swine requiment ]],"") -> 0 | G32: 31 | H32: =IF(COUNTIF($F$2:F32,F32)=1,ROW()-1,"") -> 
A33: =IFERROR(Table2[[#This Row],[Scénarios]],"") -> 0 | B33: 32 | C33: =IF(COUNTIF($A$2:A33,A33)=1,ROW()-1,"") ->  | F33: =IFERROR(Table2[[#This Row],[Swine requiment ]],"") -> 0 | G33: 32 | H33: =IF(COUNTIF($F$2:F33,F33)=1,ROW()-1,"") -> 
A34: =IFERROR(Table2[[#This Row],[Scénarios]],"") -> 0 | B34: 33 | C34: =IF(COUNTIF($A$2:A34,A34)=1,ROW()-1,"") ->  | F34: =IFERROR(Table2[[#This Row],[Swine requiment ]],"") -> 0 | G34: 33 | H34: =IF(COUNTIF($F$2:F34,F34)=1,ROW()-1,"") -> 
A35: =IFERROR(Table2[[#This Row],[Scénarios]],"") -> 0 | B35: 34 | C35: =IF(COUNTIF($A$2:A35,A35)=1,ROW()-1,"") ->  | F35: =IFERROR(Table2[[#This Row],[Swine requiment ]],"") -> 0 | G35: 34 | H35: =IF(COUNTIF($F$2:F35,F35)=1,ROW()-1,"") -> 
A36: =IFERROR(Table2[[#This Row],[Scénarios]],"") -> 0 | B36: 35 | C36: =IF(COUNTIF($A$2:A36,A36)=1,ROW()-1,"") ->  | F36: =IFERROR(Table2[[#This Row],[Swine requiment ]],"") -> 0 | G36: 35 | H36: =IF(COUNTIF($F$2:F36,F36)=1,ROW()-1,"") -> 
A37: =IFERROR(Table2[[#This Row],[Scénarios]],"") -> 0 | B37: 36 | C37: =IF(COUNTIF($A$2:A37,A37)=1,ROW()-1,"") ->  | F37: =IFERROR(Table2[[#This Row],[Swine requiment ]],"") -> 0 | G37: 36 | H37: =IF(COUNTIF($F$2:F37,F37)=1,ROW()-1,"") -> 
A38: =IFERROR(Table2[[#This Row],[Scénarios]],"") -> 0 | B38: 37 | C38: =IF(COUNTIF($A$2:A38,A38)=1,ROW()-1,"") ->  | F38: =IFERROR(Table2[[#This Row],[Swine requiment ]],"") -> 0 | G38: 37 | H38: =IF(COUNTIF($F$2:F38,F38)=1,ROW()-1,"") -> 
A39: =IFERROR(Table2[[#This Row],[Scénarios]],"") -> 0 | B39: 38 | C39: =IF(COUNTIF($A$2:A39,A39)=1,ROW()-1,"") ->  | F39: =IFERROR(Table2[[#This Row],[Swine requiment ]],"") -> 0 | G39: 38 | H39: =IF(COUNTIF($F$2:F39,F39)=1,ROW()-1,"") -> 
A40: =IFERROR(Table2[[#This Row],[Scénarios]],"") -> 0 | B40: 39 | C40: =IF(COUNTIF($A$2:A40,A40)=1,ROW()-1,"") ->  | F40: =IFERROR(Table2[[#This Row],[Swine requiment ]],"") -> 0 | G40: 39 | H40: =IF(COUNTIF($F$2:F40,F40)=1,ROW()-1,"") -> 
A41: =IFERROR(Table2[[#This Row],[Scénarios]],"") -> 0 | B41: 40 | C41: =IF(COUNTIF($A$2:A41,A41)=1,ROW()-1,"") ->  | F41: =IFERROR(Table2[[#This Row],[Swine requiment ]],"") -> 0 | G41: 40 | H41: =IF(COUNTIF($F$2:F41,F41)=1,ROW()-1,"") -> 
A42: =IFERROR(Table2[[#This Row],[Scénarios]],"") -> 0 | B42: 41 | C42: =IF(COUNTIF($A$2:A42,A42)=1,ROW()-1,"") ->  | F42: =IFERROR(Table2[[#This Row],[Swine requiment ]],"") -> 0 | G42: 41 | H42: =IF(COUNTIF($F$2:F42,F42)=1,ROW()-1,"") -> 
A43: =IFERROR(Table2[[#This Row],[Scénarios]],"") -> 0 | B43: 42 | C43: =IF(COUNTIF($A$2:A43,A43)=1,ROW()-1,"") ->  | F43: =IFERROR(Table2[[#This Row],[Swine requiment ]],"") -> 0 | G43: 42 | H43: =IF(COUNTIF($F$2:F43,F43)=1,ROW()-1,"") -> 
A44: =IFERROR(Table2[[#This Row],[Scénarios]],"") -> 0 | B44: 43 | C44: =IF(COUNTIF($A$2:A44,A44)=1,ROW()-1,"") ->  | F44: =IFERROR(Table2[[#This Row],[Swine requiment ]],"") -> 0 | G44: 43 | H44: =IF(COUNTIF($F$2:F44,F44)=1,ROW()-1,"") -> 
A45: =IFERROR(Table2[[#This Row],[Scénarios]],"") -> 0 | B45: 44 | C45: =IF(COUNTIF($A$2:A45,A45)=1,ROW()-1,"") ->  | F45: =IFERROR(Table2[[#This Row],[Swine requiment ]],"") -> 0 | G45: 44 | H45: =IF(COUNTIF($F$2:F45,F45)=1,ROW()-1,"") -> 
A46: =IFERROR(Table2[[#This Row],[Scénarios]],"") -> 0 | B46: 45 | C46: =IF(COUNTIF($A$2:A46,A46)=1,ROW()-1,"") ->  | F46: =IFERROR(Table2[[#This Row],[Swine requiment ]],"") -> 0 | G46: 45 | H46: =IF(COUNTIF($F$2:F46,F46)=1,ROW()-1,"") -> 
A47: =IFERROR(Table2[[#This Row],[Scénarios]],"") -> 0 | B47: 46 | C47: =IF(COUNTIF($A$2:A47,A47)=1,ROW()-1,"") ->  | F47: =IFERROR(Table2[[#This Row],[Swine requiment ]],"") -> 0 | G47: 46 | H47: =IF(COUNTIF($F$2:F47,F47)=1,ROW()-1,"") -> 
A48: =IFERROR(Table2[[#This Row],[Scénarios]],"") -> 0 | B48: 47 | C48: =IF(COUNTIF($A$2:A48,A48)=1,ROW()-1,"") ->  | F48: =IFERROR(Table2[[#This Row],[Swine requiment ]],"") -> 0 | G48: 47 | H48: =IF(COUNTIF($F$2:F48,F48)=1,ROW()-1,"") -> 
A49: =IFERROR(Table2[[#This Row],[Scénarios]],"") -> 0 | B49: 48 | C49: =IF(COUNTIF($A$2:A49,A49)=1,ROW()-1,"") ->  | F49: =IFERROR(Table2[[#This Row],[Swine requiment ]],"") -> 0 | G49: 48 | H49: =IF(COUNTIF($F$2:F49,F49)=1,ROW()-1,"") -> 
A50: =IFERROR(Table2[[#This Row],[Scénarios]],"") -> 0 | B50: 49 | C50: =IF(COUNTIF($A$2:A50,A50)=1,ROW()-1,"") ->  | F50: =IFERROR(Table2[[#This Row],[Swine requiment ]],"") -> 0 | G50: 49 | H50: =IF(COUNTIF($F$2:F50,F50)=1,ROW()-1,"") -> 
A51: =IFERROR(Table2[[#This Row],[Scénarios]],"") -> 0 | B51: 50 | C51: =IF(COUNTIF($A$2:A51,A51)=1,ROW()-1,"") ->  | F51: =IFERROR(Table2[[#This Row],[Swine requiment ]],"") -> 0 | G51: 50 | H51: =IF(COUNTIF($F$2:F51,F51)=1,ROW()-1,"") -> 
A52: =IFERROR(Table2[[#This Row],[Scénarios]],"") -> 0 | B52: 51 | C52: =IF(COUNTIF($A$2:A52,A52)=1,ROW()-1,"") ->  | F52: =IFERROR(Table2[[#This Row],[Swine requiment ]],"") -> 0 | G52: 51 | H52: =IF(COUNTIF($F$2:F52,F52)=1,ROW()-1,"") -> 
A53: =IFERROR(Table2[[#This Row],[Scénarios]],"") -> 0 | B53: 52 | C53: =IF(COUNTIF($A$2:A53,A53)=1,ROW()-1,"") ->  | F53: =IFERROR(Table2[[#This Row],[Swine requiment ]],"") -> 0 | G53: 52 | H53: =IF(COUNTIF($F$2:F53,F53)=1,ROW()-1,"") -> 
A54: =IFERROR(Table2[[#This Row],[Scénarios]],"") -> 0 | B54: 53 | C54: =IF(COUNTIF($A$2:A54,A54)=1,ROW()-1,"") ->  | F54: =IFERROR(Table2[[#This Row],[Swine requiment ]],"") -> 0 | G54: 53 | H54: =IF(COUNTIF($F$2:F54,F54)=1,ROW()-1,"") -> 
A55: =IFERROR(Table2[[#This Row],[Scénarios]],"") -> 0 | B55: 54 | C55: =IF(COUNTIF($A$2:A55,A55)=1,ROW()-1,"") ->  | F55: =IFERROR(Table2[[#This Row],[Swine requiment ]],"") -> 0 | G55: 54 | H55: =IF(COUNTIF($F$2:F55,F55)=1,ROW()-1,"") -> 
A56: =IFERROR(Table2[[#This Row],[Scénarios]],"") -> 0 | B56: 55 | C56: =IF(COUNTIF($A$2:A56,A56)=1,ROW()-1,"") ->  | F56: =IFERROR(Table2[[#This Row],[Swine requiment ]],"") -> 0 | G56: 55 | H56: =IF(COUNTIF($F$2:F56,F56)=1,ROW()-1,"") -> 
A57: =IFERROR(Table2[[#This Row],[Scénarios]],"") -> 0 | B57: 56 | C57: =IF(COUNTIF($A$2:A57,A57)=1,ROW()-1,"") ->  | F57: =IFERROR(Table2[[#This Row],[Swine requiment ]],"") -> 0 | G57: 56 | H57: =IF(COUNTIF($F$2:F57,F57)=1,ROW()-1,"") -> 
A58: =IFERROR(Table2[[#This Row],[Scénarios]],"") -> 0 | B58: 57 | C58: =IF(COUNTIF($A$2:A58,A58)=1,ROW()-1,"") ->  | F58: =IFERROR(Table2[[#This Row],[Swine requiment ]],"") -> 0 | G58: 57 | H58: =IF(COUNTIF($F$2:F58,F58)=1,ROW()-1,"") -> 
A59: =IFERROR(Table2[[#This Row],[Scénarios]],"") -> 0 | B59: 58 | C59: =IF(COUNTIF($A$2:A59,A59)=1,ROW()-1,"") ->  | F59: =IFERROR(Table2[[#This Row],[Swine requiment ]],"") -> 0 | G59: 58 | H59: =IF(COUNTIF($F$2:F59,F59)=1,ROW()-1,"") -> 
A60: =IFERROR(Table2[[#This Row],[Scénarios]],"") -> 0 | B60: 59 | C60: =IF(COUNTIF($A$2:A60,A60)=1,ROW()-1,"") ->  | F60: =IFERROR(Table2[[#This Row],[Swine requiment ]],"") -> 0 | G60: 59 | H60: =IF(COUNTIF($F$2:F60,F60)=1,ROW()-1,"") -> 
A61: =IFERROR(Table2[[#This Row],[Scénarios]],"") -> 0 | B61: 60 | C61: =IF(COUNTIF($A$2:A61,A61)=1,ROW()-1,"") ->  | F61: =IFERROR(Table2[[#This Row],[Swine requiment ]],"") -> 0 | G61: 60 | H61: =IF(COUNTIF($F$2:F61,F61)=1,ROW()-1,"") -> 
A62: =IFERROR(Table2[[#This Row],[Scénarios]],"") -> 0 | B62: 61 | C62: =IF(COUNTIF($A$2:A62,A62)=1,ROW()-1,"") ->  | F62: =IFERROR(Table2[[#This Row],[Swine requiment ]],"") -> 0 | G62: 61 | H62: =IF(COUNTIF($F$2:F62,F62)=1,ROW()-1,"") -> 
A63: =IFERROR(Table2[[#This Row],[Scénarios]],"") -> 0 | B63: 62 | C63: =IF(COUNTIF($A$2:A63,A63)=1,ROW()-1,"") ->  | F63: =IFERROR(Table2[[#This Row],[Swine requiment ]],"") -> 0 | G63: 62 | H63: =IF(COUNTIF($F$2:F63,F63)=1,ROW()-1,"") -> 
A64: =IFERROR(Table2[[#This Row],[Scénarios]],"") -> 0 | B64: 63 | C64: =IF(COUNTIF($A$2:A64,A64)=1,ROW()-1,"") ->  | F64: =IFERROR(Table2[[#This Row],[Swine requiment ]],"") -> 0 | G64: 63 | H64: =IF(COUNTIF($F$2:F64,F64)=1,ROW()-1,"") -> 
A65: =IFERROR(Table2[[#This Row],[Scénarios]],"") -> 0 | B65: 64 | C65: =IF(COUNTIF($A$2:A65,A65)=1,ROW()-1,"") ->  | F65: =IFERROR(Table2[[#This Row],[Swine requiment ]],"") -> 0 | G65: 64 | H65: =IF(COUNTIF($F$2:F65,F65)=1,ROW()-1,"") -> 
A66: =IFERROR(Table2[[#This Row],[Scénarios]],"") -> 0 | B66: 65 | C66: =IF(COUNTIF($A$2:A66,A66)=1,ROW()-1,"") ->  | F66: =IFERROR(Table2[[#This Row],[Swine requiment ]],"") -> 0 | G66: 65 | H66: =IF(COUNTIF($F$2:F66,F66)=1,ROW()-1,"") -> 
A67: =IFERROR(Table2[[#This Row],[Scénarios]],"") -> 0 | B67: =ROW()-1 -> 66 | C67: =IF(COUNTIF($A$2:A67,A67)=1,ROW()-1,"") ->  | D67: =IFERROR(SMALL(C:C,B67),"") ->  | E67: =IFERROR(INDEX($A$2:$A$99,D67),"") ->  | F67: =IFERROR(Table2[[#This Row],[Swine requiment ]],"") -> 0 | G67: =ROW()-1 -> 66 | H67: =IF(COUNTIF($F$2:F67,F67)=1,ROW()-1,"") ->  | I67: =IFERROR(SMALL(H:H,G67),"") ->  | J67: =IFERROR(INDEX($F$2:$F$99,I67),"") -> 
A68: =IFERROR(Table2[[#This Row],[Scénarios]],"") -> 0 | B68: 67 | C68: =IF(COUNTIF($A$2:A68,A68)=1,ROW()-1,"") ->  | F68: =IFERROR(Table2[[#This Row],[Swine requiment ]],"") -> 0 | G68: 67 | H68: =IF(COUNTIF($F$2:F68,F68)=1,ROW()-1,"") -> 
A69: =IFERROR(Table2[[#This Row],[Scénarios]],"") -> 0 | B69: 68 | C69: =IF(COUNTIF($A$2:A69,A69)=1,ROW()-1,"") ->  | F69: =IFERROR(Table2[[#This Row],[Swine requiment ]],"") -> 0 | G69: 68 | H69: =IF(COUNTIF($F$2:F69,F69)=1,ROW()-1,"") -> 
A70: =IFERROR(Table2[[#This Row],[Scénarios]],"") -> 0 | B70: 69 | C70: =IF(COUNTIF($A$2:A70,A70)=1,ROW()-1,"") ->  | F70: =IFERROR(Table2[[#This Row],[Swine requiment ]],"") -> 0 | G70: 69 | H70: =IF(COUNTIF($F$2:F70,F70)=1,ROW()-1,"") -> 
A71: =IFERROR(Table2[[#This Row],[Scénarios]],"") -> 0 | B71: 70 | C71: =IF(COUNTIF($A$2:A71,A71)=1,ROW()-1,"") ->  | F71: =IFERROR(Table2[[#This Row],[Swine requiment ]],"") -> 0 | G71: 70 | H71: =IF(COUNTIF($F$2:F71,F71)=1,ROW()-1,"") -> 
A72: =IFERROR(Table2[[#This Row],[Scénarios]],"") -> 0 | B72: 71 | C72: =IF(COUNTIF($A$2:A72,A72)=1,ROW()-1,"") ->  | F72: =IFERROR(Table2[[#This Row],[Swine requiment ]],"") -> 0 | G72: 71 | H72: =IF(COUNTIF($F$2:F72,F72)=1,ROW()-1,"") -> 
A73: =IFERROR(Table2[[#This Row],[Scénarios]],"") -> 0 | B73: 72 | C73: =IF(COUNTIF($A$2:A73,A73)=1,ROW()-1,"") ->  | F73: =IFERROR(Table2[[#This Row],[Swine requiment ]],"") -> 0 | G73: 72 | H73: =IF(COUNTIF($F$2:F73,F73)=1,ROW()-1,"") -> 
A74: =IFERROR(Table2[[#This Row],[Scénarios]],"") -> 0 | B74: 73 | C74: =IF(COUNTIF($A$2:A74,A74)=1,ROW()-1,"") ->  | F74: =IFERROR(Table2[[#This Row],[Swine requiment ]],"") -> 0 | G74: 73 | H74: =IF(COUNTIF($F$2:F74,F74)=1,ROW()-1,"") -> 
A75: =IFERROR(Table2[[#This Row],[Scénarios]],"") -> 0 | B75: 74 | C75: =IF(COUNTIF($A$2:A75,A75)=1,ROW()-1,"") ->  | F75: =IFERROR(Table2[[#This Row],[Swine requiment ]],"") -> 0 | G75: 74 | H75: =IF(COUNTIF($F$2:F75,F75)=1,ROW()-1,"") -> 
A76: =IFERROR(Table2[[#This Row],[Scénarios]],"") -> 0 | B76: 75 | C76: =IF(COUNTIF($A$2:A76,A76)=1,ROW()-1,"") ->  | F76: =IFERROR(Table2[[#This Row],[Swine requiment ]],"") -> 0 | G76: 75 | H76: =IF(COUNTIF($F$2:F76,F76)=1,ROW()-1,"") -> 
A77: =IFERROR(Table2[[#This Row],[Scénarios]],"") -> 0 | B77: 76 | C77: =IF(COUNTIF($A$2:A77,A77)=1,ROW()-1,"") ->  | F77: =IFERROR(Table2[[#This Row],[Swine requiment ]],"") -> 0 | G77: 76 | H77: =IF(COUNTIF($F$2:F77,F77)=1,ROW()-1,"") -> 
A78: =IFERROR(Table2[[#This Row],[Scénarios]],"") -> 0 | B78: 77 | C78: =IF(COUNTIF($A$2:A78,A78)=1,ROW()-1,"") ->  | F78: =IFERROR(Table2[[#This Row],[Swine requiment ]],"") -> 0 | G78: 77 | H78: =IF(COUNTIF($F$2:F78,F78)=1,ROW()-1,"") -> 
A79: =IFERROR(Table2[[#This Row],[Scénarios]],"") -> 0 | B79: 78 | C79: =IF(COUNTIF($A$2:A79,A79)=1,ROW()-1,"") ->  | F79: =IFERROR(Table2[[#This Row],[Swine requiment ]],"") -> 0 | G79: 78 | H79: =IF(COUNTIF($F$2:F79,F79)=1,ROW()-1,"") -> 
A80: =IFERROR(Table2[[#This Row],[Scénarios]],"") -> 0 | B80: 79 | C80: =IF(COUNTIF($A$2:A80,A80)=1,ROW()-1,"") ->  | F80: =IFERROR(Table2[[#This Row],[Swine requiment ]],"") -> 0 | G80: 79 | H80: =IF(COUNTIF($F$2:F80,F80)=1,ROW()-1,"") -> 
A81: =IFERROR(Table2[[#This Row],[Scénarios]],"") -> 0 | B81: 80 | C81: =IF(COUNTIF($A$2:A81,A81)=1,ROW()-1,"") ->  | F81: =IFERROR(Table2[[#This Row],[Swine requiment ]],"") -> 0 | G81: 80 | H81: =IF(COUNTIF($F$2:F81,F81)=1,ROW()-1,"") -> 
A82: =IFERROR(Table2[[#This Row],[Scénarios]],"") -> 0 | B82: 81 | C82: =IF(COUNTIF($A$2:A82,A82)=1,ROW()-1,"") ->  | F82: =IFERROR(Table2[[#This Row],[Swine requiment ]],"") -> 0 | G82: 81 | H82: =IF(COUNTIF($F$2:F82,F82)=1,ROW()-1,"") -> 
A83: =IFERROR(Table2[[#This Row],[Scénarios]],"") -> 0 | B83: 82 | C83: =IF(COUNTIF($A$2:A83,A83)=1,ROW()-1,"") ->  | F83: =IFERROR(Table2[[#This Row],[Swine requiment ]],"") -> 0 | G83: 82 | H83: =IF(COUNTIF($F$2:F83,F83)=1,ROW()-1,"") -> 
A84: =IFERROR(Table2[[#This Row],[Scénarios]],"") -> 0 | B84: 83 | C84: =IF(COUNTIF($A$2:A84,A84)=1,ROW()-1,"") ->  | F84: =IFERROR(Table2[[#This Row],[Swine requiment ]],"") -> 0 | G84: 83 | H84: =IF(COUNTIF($F$2:F84,F84)=1,ROW()-1,"") -> 
A85: =IFERROR(Table2[[#This Row],[Scénarios]],"") -> 0 | B85: 84 | C85: =IF(COUNTIF($A$2:A85,A85)=1,ROW()-1,"") ->  | F85: =IFERROR(Table2[[#This Row],[Swine requiment ]],"") -> 0 | G85: 84 | H85: =IF(COUNTIF($F$2:F85,F85)=1,ROW()-1,"") -> 
A86: =IFERROR(Table2[[#This Row],[Scénarios]],"") -> 0 | B86: 85 | C86: =IF(COUNTIF($A$2:A86,A86)=1,ROW()-1,"") ->  | F86: =IFERROR(Table2[[#This Row],[Swine requiment ]],"") -> 0 | G86: 85 | H86: =IF(COUNTIF($F$2:F86,F86)=1,ROW()-1,"") -> 
A87: =IFERROR(Table2[[#This Row],[Scénarios]],"") -> 0 | B87: 86 | C87: =IF(COUNTIF($A$2:A87,A87)=1,ROW()-1,"") ->  | F87: =IFERROR(Table2[[#This Row],[Swine requiment ]],"") -> 0 | G87: 86 | H87: =IF(COUNTIF($F$2:F87,F87)=1,ROW()-1,"") -> 
A88: =IFERROR(Table2[[#This Row],[Scénarios]],"") -> 0 | B88: 87 | C88: =IF(COUNTIF($A$2:A88,A88)=1,ROW()-1,"") ->  | F88: =IFERROR(Table2[[#This Row],[Swine requiment ]],"") -> 0 | G88: 87 | H88: =IF(COUNTIF($F$2:F88,F88)=1,ROW()-1,"") -> 
A89: =IFERROR(Table2[[#This Row],[Scénarios]],"") -> 0 | B89: 88 | C89: =IF(COUNTIF($A$2:A89,A89)=1,ROW()-1,"") ->  | F89: =IFERROR(Table2[[#This Row],[Swine requiment ]],"") -> 0 | G89: 88 | H89: =IF(COUNTIF($F$2:F89,F89)=1,ROW()-1,"") -> 
A90: =IFERROR(Table2[[#This Row],[Scénarios]],"") -> 0 | B90: 89 | C90: =IF(COUNTIF($A$2:A90,A90)=1,ROW()-1,"") ->  | F90: =IFERROR(Table2[[#This Row],[Swine requiment ]],"") -> 0 | G90: 89 | H90: =IF(COUNTIF($F$2:F90,F90)=1,ROW()-1,"") -> 
A91: =IFERROR(Table2[[#This Row],[Scénarios]],"") -> 0 | B91: 90 | C91: =IF(COUNTIF($A$2:A91,A91)=1,ROW()-1,"") ->  | F91: =IFERROR(Table2[[#This Row],[Swine requiment ]],"") -> 0 | G91: 90 | H91: =IF(COUNTIF($F$2:F91,F91)=1,ROW()-1,"") -> 
A92: =IFERROR(Table2[[#This Row],[Scénarios]],"") -> 0 | B92: 91 | C92: =IF(COUNTIF($A$2:A92,A92)=1,ROW()-1,"") ->  | F92: =IFERROR(Table2[[#This Row],[Swine requiment ]],"") -> 0 | G92: 91 | H92: =IF(COUNTIF($F$2:F92,F92)=1,ROW()-1,"") -> 
A93: =IFERROR(Table2[[#This Row],[Scénarios]],"") -> 0 | B93: 92 | C93: =IF(COUNTIF($A$2:A93,A93)=1,ROW()-1,"") ->  | F93: =IFERROR(Table2[[#This Row],[Swine requiment ]],"") -> 0 | G93: 92 | H93: =IF(COUNTIF($F$2:F93,F93)=1,ROW()-1,"") -> 
A94: =IFERROR(Table2[[#This Row],[Scénarios]],"") -> 0 | B94: 93 | C94: =IF(COUNTIF($A$2:A94,A94)=1,ROW()-1,"") ->  | F94: =IFERROR(Table2[[#This Row],[Swine requiment ]],"") -> 0 | G94: 93 | H94: =IF(COUNTIF($F$2:F94,F94)=1,ROW()-1,"") -> 
A95: =IFERROR(Table2[[#This Row],[Scénarios]],"") -> 0 | B95: 94 | C95: =IF(COUNTIF($A$2:A95,A95)=1,ROW()-1,"") ->  | F95: =IFERROR(Table2[[#This Row],[Swine requiment ]],"") -> 0 | G95: 94 | H95: =IF(COUNTIF($F$2:F95,F95)=1,ROW()-1,"") -> 
A96: =IFERROR(Table2[[#This Row],[Scénarios]],"") -> 0 | B96: 95 | C96: =IF(COUNTIF($A$2:A96,A96)=1,ROW()-1,"") ->  | F96: =IFERROR(Table2[[#This Row],[Swine requiment ]],"") -> 0 | G96: 95 | H96: =IF(COUNTIF($F$2:F96,F96)=1,ROW()-1,"") -> 
A97: =IFERROR(Table2[[#This Row],[Scénarios]],"") -> 0 | B97: 96 | C97: =IF(COUNTIF($A$2:A97,A97)=1,ROW()-1,"") ->  | F97: =IFERROR(Table2[[#This Row],[Swine requiment ]],"") -> 0 | G97: 96 | H97: =IF(COUNTIF($F$2:F97,F97)=1,ROW()-1,"") -> 
A98: =IFERROR(Table2[[#This Row],[Scénarios]],"") -> 0 | B98: 97 | C98: =IF(COUNTIF($A$2:A98,A98)=1,ROW()-1,"") ->  | F98: =IFERROR(Table2[[#This Row],[Swine requiment ]],"") -> 0 | G98: 97 | H98: =IF(COUNTIF($F$2:F98,F98)=1,ROW()-1,"") -> 
A99: =IFERROR(Table2[[#This Row],[Scénarios]],"") -> 0 | B99: 98 | C99: =IF(COUNTIF($A$2:A99,A99)=1,ROW()-1,"") ->  | F99: =IFERROR(Table2[[#This Row],[Swine requiment ]],"") -> 0 | G99: 98 | H99: =IF(COUNTIF($F$2:F99,F99)=1,ROW()-1,"") -> 
A100: =IFERROR(Table2[[#This Row],[Scénarios]],"") -> 0 | B100: 99 | C100: =IF(COUNTIF($A$2:A100,A100)=1,ROW()-1,"") ->  | F100: =IFERROR(Table2[[#This Row],[Swine requiment ]],"") -> 0 | G100: 99 | H100: =IF(COUNTIF($F$2:F100,F100)=1,ROW()-1,"") -> 
